Body Name,Service Area,Expenses Type,Invoice Payment Date,Transaction Number,Supplier Name,Net Amount
Manchester City Council,Hospitality + Trading Services,Goods purchased for resale in Council outlets,01-Sep-22,5105832237,Albert Jones Memorials,"2,567.00"
Manchester City Council,Adult Social Care,"Consumable items eg Toilet rolls, soap etc",01-Sep-22,5105832300,All 4 Pets Limited,"1,017.50"
Manchester City Council,Adult Social Care,Professional fees,01-Sep-22,5105832276,ANS Group Plc,"2,750.00"
Manchester City Council,Childrens & Education Services,Training and Development,01-Sep-22,5105832236,Associated Optical Products,"-2,923.75"
Manchester City Council,Adult Social Care,Furniture,01-Sep-22,5105832271,Back Care Solutions Ltd,920.00
Manchester City Council,Childrens & Education Services,Personal needs of client,01-Sep-22,5105832254,Care Solutions Recruitment,"19,505.68"
Manchester City Council,Adult Social Care,Cleaning Equipment and Materials,01-Sep-22,5105832256,Concept Care,880.00
Manchester City Council,Regeneration Finance,Gas,01-Sep-22,1907861014,Corona Energy Ltd,"33,532.86"
Manchester City Council,Housing Revenue Account,Gas,01-Sep-22,1907861015,Corona Energy Ltd,"13,849.84"
Manchester City Council,Housing Revenue Account,Gas,01-Sep-22,1907860880,Corona Energy Ltd,"13,573.30"
Manchester City Council,Childrens & Education Services,Gas,01-Sep-22,1907861033,Corona Energy Ltd,"11,935.73"
Manchester City Council,Manchester Leisure,Gas,01-Sep-22,1907861017,Corona Energy Ltd,"10,400.03"
Manchester City Council,Manchester Leisure,Gas,01-Sep-22,1907860844,Corona Energy Ltd,"6,390.61"
Manchester City Council,Manchester Leisure,Gas,01-Sep-22,1907860971,Corona Energy Ltd,"5,920.98"
Manchester City Council,Manchester Leisure,Gas,01-Sep-22,1907860947,Corona Energy Ltd,"5,836.30"
Manchester City Council,Regeneration Finance,Gas,01-Sep-22,1907860905,Corona Energy Ltd,"5,546.11"
Manchester City Council,Manchester Leisure,Gas,01-Sep-22,1907860886,Corona Energy Ltd,"4,785.51"
Manchester City Council,Manchester Leisure,Gas,01-Sep-22,1907860935,Corona Energy Ltd,"4,425.59"
Manchester City Council,Manchester Leisure,Gas,01-Sep-22,1907860960,Corona Energy Ltd,"3,757.09"
Manchester City Council,Regeneration Finance,Gas,01-Sep-22,1907860833,Corona Energy Ltd,"2,778.62"
Manchester City Council,Adult Social Care,Gas,01-Sep-22,1907860892,Corona Energy Ltd,"2,377.85"
Manchester City Council,Manchester Leisure,Gas,01-Sep-22,1907860936,Corona Energy Ltd,"2,335.39"
Manchester City Council,Manchester Leisure,Gas,01-Sep-22,1907860923,Corona Energy Ltd,"2,260.87"
Manchester City Council,Manchester Leisure,Gas,01-Sep-22,1907860921,Corona Energy Ltd,"2,160.34"
Manchester City Council,Manchester Leisure,Gas,01-Sep-22,1907860862,Corona Energy Ltd,"2,017.41"
Manchester City Council,Manchester Leisure,Gas,01-Sep-22,1907860857,Corona Energy Ltd,"2,000.93"
Manchester City Council,Manchester Leisure,Gas,01-Sep-22,1907860951,Corona Energy Ltd,"1,994.76"
Manchester City Council,Regeneration Finance,Gas,01-Sep-22,1907860932,Corona Energy Ltd,"1,869.70"
Manchester City Council,Manchester Leisure,Gas,01-Sep-22,1907860937,Corona Energy Ltd,"1,860.14"
Manchester City Council,Manchester Leisure,Gas,01-Sep-22,1907860989,Corona Energy Ltd,"1,846.77"
Manchester City Council,Manchester Leisure,Gas,01-Sep-22,1907860994,Corona Energy Ltd,"1,674.59"
Manchester City Council,Manchester Leisure,Gas,01-Sep-22,1907860842,Corona Energy Ltd,"1,651.37"
Manchester City Council,Hospitality + Trading Services,Gas,01-Sep-22,1907860847,Corona Energy Ltd,"1,564.09"
Manchester City Council,Manchester Leisure,Gas,01-Sep-22,1907860997,Corona Energy Ltd,"1,441.80"
Manchester City Council,Regeneration Finance,Gas,01-Sep-22,1907860907,Corona Energy Ltd,"1,383.16"
Manchester City Council,Manchester Leisure,Gas,01-Sep-22,1907860843,Corona Energy Ltd,"1,359.50"
Manchester City Council,Manchester Leisure,Gas,01-Sep-22,1907860953,Corona Energy Ltd,"1,322.57"
Manchester City Council,Manchester Leisure,Gas,01-Sep-22,1907860888,Corona Energy Ltd,"1,282.46"
Manchester City Council,Regeneration Finance,Gas,01-Sep-22,1907860987,Corona Energy Ltd,"1,247.43"
Manchester City Council,Regeneration Finance,Gas,01-Sep-22,1907860837,Corona Energy Ltd,"1,183.49"
Manchester City Council,Regeneration Finance,Gas,01-Sep-22,1907860915,Corona Energy Ltd,"1,146.44"
Manchester City Council,Manchester Leisure,Gas,01-Sep-22,1907860961,Corona Energy Ltd,"1,099.94"
Manchester City Council,Regeneration Finance,Gas,01-Sep-22,1907860912,Corona Energy Ltd,910.24
Manchester City Council,Regeneration Finance,Gas,01-Sep-22,1907860931,Corona Energy Ltd,886.67
Manchester City Council,Adult Social Care,Gas,01-Sep-22,1907861025,Corona Energy Ltd,875.41
Manchester City Council,Manchester Leisure,Gas,01-Sep-22,1907860900,Corona Energy Ltd,853.10
Manchester City Council,Regeneration Finance,Gas,01-Sep-22,1907860899,Corona Energy Ltd,824.45
Manchester City Council,Regeneration Finance,Gas,01-Sep-22,1907860910,Corona Energy Ltd,807.37
Manchester City Council,Regeneration Finance,Gas,01-Sep-22,1907860870,Corona Energy Ltd,773.62
Manchester City Council,Adult Social Care,Gas,01-Sep-22,1907860943,Corona Energy Ltd,764.38
Manchester City Council,Regeneration Finance,Gas,01-Sep-22,1907860976,Corona Energy Ltd,756.79
Manchester City Council,Regeneration Finance,Gas,01-Sep-22,1907861012,Corona Energy Ltd,742.27
Manchester City Council,Regeneration Finance,Gas,01-Sep-22,1907861030,Corona Energy Ltd,719.42
Manchester City Council,Regeneration Finance,Gas,01-Sep-22,1907860993,Corona Energy Ltd,717.38
Manchester City Council,Regeneration Finance,Gas,01-Sep-22,1907860925,Corona Energy Ltd,694.98
Manchester City Council,Manchester Leisure,Gas,01-Sep-22,1907860990,Corona Energy Ltd,674.18
Manchester City Council,Hospitality + Trading Services,Gas,01-Sep-22,1907860846,Corona Energy Ltd,661.95
Manchester City Council,Manchester Leisure,Gas,01-Sep-22,1907861022,Corona Energy Ltd,633.35
Manchester City Council,Manchester Leisure,Gas,01-Sep-22,1907861011,Corona Energy Ltd,630.25
Manchester City Council,Regeneration Finance,Gas,01-Sep-22,1907860914,Corona Energy Ltd,627.91
Manchester City Council,Housing Revenue Account,Gas,01-Sep-22,1907860985,Corona Energy Ltd,589.49
Manchester City Council,Adult Social Care,Gas,01-Sep-22,1907860992,Corona Energy Ltd,576.24
Manchester City Council,Adult Social Care,Gas,01-Sep-22,1907860854,Corona Energy Ltd,567.29
Manchester City Council,Regeneration Finance,Gas,01-Sep-22,1907860926,Corona Energy Ltd,560.05
Manchester City Council,Adult Social Care,Gas,01-Sep-22,1907860824,Corona Energy Ltd,554.34
Manchester City Council,Adult Social Care,Gas,01-Sep-22,1907860981,Corona Energy Ltd,522.36
Manchester City Council,Manchester Leisure,Gas,01-Sep-22,1907861023,Corona Energy Ltd,521.42
Manchester City Council,Adult Social Care,Gas,01-Sep-22,1907860830,Corona Energy Ltd,503.99
Manchester City Council,Manchester Leisure,Gas,01-Sep-22,1700138036,Corona Energy Ltd,-614.18
Manchester City Council,Childrens & Education Services,Gas,01-Sep-22,1700138039,Corona Energy Ltd,"-1,432.29"
Manchester City Council,Childrens & Education Services,Transport Taxis,01-Sep-22,1907850381,Cresta Car Hire,507.60
Manchester City Council,Adult Social Care,Grant and subscriptions awarded,01-Sep-22,5105832287,Divrse Ltd,"56,700.00"
Manchester City Council,Regeneration Finance,Legal Fees,01-Sep-22,5105832251,Eversheds Llp,"44,058.90"
Manchester City Council,Manchester Leisure,GRIR,01-Sep-22,5105832228,Everyone Active,-550.00
Manchester City Council,Chief Executives,Advertising,01-Sep-22,5105832303,Fonemedia Limited,"5,000.00"
Manchester City Council,Childrens & Education Services,Hire of Premises,01-Sep-22,5105831764,Greater Manchester Police Sports &,642.00
Manchester City Council,Highways Services,Purchase of stores for re-distribution,01-Sep-22,5105832265,Instarmac Group Ltd,"1,599.36"
Manchester City Council,Manchester Leisure,Hire of Equipment,01-Sep-22,5105832232,Kenyon International,"3,229.00"
Manchester City Council,Environment and Operations,Construction Works,01-Sep-22,5105832295,Kiely Bros Ltd,"111,438.67"
Manchester City Council,Environment and Operations,Professional fees,01-Sep-22,5105832264,Lighthouse Security Limited,"6,924.75"
Manchester City Council,Adult Social Care,Rents,01-Sep-22,5105832250,MJ Rental Ltd,"72,234.33"
Manchester City Council,Adult Social Care,Supported Accommodation,01-Sep-22,5105832298,Mosscare Housing Ltd,"3,685.40"
Manchester City Council,Adult Social Care,Bed & Breakfast Acc,01-Sep-22,5105832284,Redacted Personal Information,"36,310.00"
Manchester City Council,Adult Social Care,Bed & Breakfast Acc,01-Sep-22,5105832235,Redacted Personal Information,"3,435.00"
Manchester City Council,Manchester Leisure,Legal Fees,01-Sep-22,1907861377,Redacted Personal Information,"1,300.00"
Manchester City Council,Manchester Leisure,Subsistence and Conference Expenses,01-Sep-22,1907860478,Redacted Personal Information,"1,121.44"
Manchester City Council,Manchester Leisure,Grant and subscriptions awarded,01-Sep-22,5105832245,St John Ambulance Supplies,"6,500.00"
Manchester City Council,Manchester Leisure,Grant and subscriptions awarded,01-Sep-22,5105832246,St John Ambulance Supplies,"2,600.00"
Manchester City Council,Adult Social Care,Grant and subscriptions awarded,01-Sep-22,5105832258,Stepping Stone Projects,"11,000.00"
Manchester City Council,Adult Social Care,Grant and subscriptions awarded,01-Sep-22,5105832260,Stepping Stone Projects,"11,000.00"
Manchester City Council,Adult Social Care,Grant and subscriptions awarded,01-Sep-22,5105832261,Stepping Stone Projects,"11,000.00"
Manchester City Council,Adult Social Care,Grant and subscriptions awarded,01-Sep-22,5105832262,Stepping Stone Projects,"11,000.00"
Manchester City Council,Adult Social Care,External repairs and maintenance for buildings,01-Sep-22,5105832275,T F Jones Property Services Ltd,968.40
Manchester City Council,Adult Social Care,External repairs and maintenance for buildings,01-Sep-22,5105832296,T F Jones Property Services Ltd,593.98
Manchester City Council,Adult Social Care,External repairs and maintenance for buildings,01-Sep-22,5105832292,T F Jones Property Services Ltd,591.80
Manchester City Council,Adult Social Care,External repairs and maintenance for buildings,01-Sep-22,5105832294,T F Jones Property Services Ltd,538.00
Manchester City Council,Adult Social Care,External repairs and maintenance for buildings,01-Sep-22,5105832297,T F Jones Property Services Ltd,518.65
Manchester City Council,Adult Social Care,Water - Metered,01-Sep-22,1907860820,Water Plus Limited,"2,582.11"
Manchester City Council,Manchester Leisure,Water - Metered,01-Sep-22,1907860821,Water Plus Limited,"1,160.11"
Manchester City Council,Regeneration Finance,Water - Unmetered,01-Sep-22,1907860822,Water Plus Limited,620.05
Manchester City Council,Chief Executives,Legal Fees,02-Sep-22,5105832427,11KBW,760.00
Manchester City Council,Chief Executives,Counsel Costs,02-Sep-22,1907857205,18 St John Street Chambers,"1,050.00"
Manchester City Council,Chief Executives,Counsel Costs,02-Sep-22,1907861385,18 St John Street Chambers,750.00
Manchester City Council,Chief Executives,Counsel Costs,02-Sep-22,1907850772,18 St John Street Chambers,650.00
Manchester City Council,Highways Services,Professional fees,02-Sep-22,5105832469,A T G Access Ltd,"-12,045.15"
Manchester City Council,Manchester Leisure,ICT Hardware,02-Sep-22,5105831780,Arena Group Ltd,775.00
Manchester City Council,Manchester Leisure,ICT Hardware,02-Sep-22,5105832352,Arena Group Ltd,771.73
Manchester City Council,Manchester Leisure,ICT Hardware,02-Sep-22,5105832351,Arena Group Ltd,743.43
Manchester City Council,Regeneration Finance,Cleaning Equipment and Materials,02-Sep-22,5105832242,Arrow County Supplies,535.80
Manchester City Council,Chief Executives,Agency staff provision,02-Sep-22,5105832347,Ashberry Recruitment Ltd,"6,724.79"
Manchester City Council,Corporate Services,Surveys Fees other,02-Sep-22,5105832389,Aspect Contracts Ltd,"4,354.00"
Manchester City Council,Adult Social Care,Rents,02-Sep-22,5105832463,B & A Properties,"39,390.00"
Manchester City Council,Childrens & Education Services,Furniture,02-Sep-22,5105832267,Back Care Solutions Ltd,"1,899.00"
Manchester City Council,Childrens & Education Services,Carer Support Payments ,02-Sep-22,5105832394,Care Solutions Recruitment,"18,281.31"
Manchester City Council,Adult Social Care,Grant and subscriptions awarded,02-Sep-22,5105832420,Caritas (St Aidens),"18,674.00"
Manchester City Council,Chief Executives,Counsel Costs,02-Sep-22,1907857203,Central Chambers,"1,000.00"
Manchester City Council,Chief Executives,Counsel Costs,02-Sep-22,1907861387,Central Chambers,700.00
Manchester City Council,Manchester Leisure,Grant and subscriptions awarded,02-Sep-22,5105832451,CHALK,"2,660.00"
Manchester City Council,Regeneration Finance,Grounds Maintenance,02-Sep-22,5105832344,Countrywide Grounds Maintenance Ltd,"1,095.00"
Manchester City Council,Manchester Leisure,Building Materials for direct delivery,02-Sep-22,5105832457,Ebsford Environmental Ltd,907.62
Manchester City Council,Manchester Leisure,Grant and subscriptions awarded,02-Sep-22,5105832460,Friends of Burnage Library Ltd,"2,445.00"
Manchester City Council,Manchester Leisure,Goods purchased for resale in Council outlets,02-Sep-22,5105832453,Hachette UK Distribution,"1,438.80"
Manchester City Council,Chief Executives,Professional Services Provision,02-Sep-22,5105832334,Kings Chambers,"1,500.00"
Manchester City Council,Corporate Services,Fees,02-Sep-22,1907858041,Marston Group Limited,"186,281.15"
Manchester City Council,Corporate Services,Fees,02-Sep-22,1907858041,Marston Group Limited,"-186,281.15"
Manchester City Council,Corporate Services,Agency staff provision,02-Sep-22,5105832438,Michael Page International,"1,120.00"
Manchester City Council,Corporate Services,Agency staff provision,02-Sep-22,5105832439,Michael Page International,"1,120.00"
Manchester City Council,Corporate Services,Agency staff provision,02-Sep-22,5105832425,Michael Page International,"1,015.00"
Manchester City Council,Corporate Services,Agency staff provision,02-Sep-22,5105832426,Michael Page International,"1,015.00"
Manchester City Council,Corporate Services,Agency staff provision,02-Sep-22,5105832436,Michael Page International,"1,015.00"
Manchester City Council,Manchester Leisure,Agency staff provision,02-Sep-22,5105832424,Michael Page International,652.50
Manchester City Council,Chief Executives,Grant and subscriptions awarded,02-Sep-22,5105832353,National Football Museum,"116,666.66"
Manchester City Council,Manchester Leisure,Hire of Equipment,02-Sep-22,5105832410,Niche Event Hire,"3,052.00"
Manchester City Council,Childrens Services,Building Works,02-Sep-22,5105832421,Our Lady's RC High School,"404,834.23"
Manchester City Council,Chief Executives,Works and associated costs for Land and Buildings,02-Sep-22,5105832442,Pierre Angulaire Limited,"19,656.00"
Manchester City Council,Regeneration Finance,Third party payments relating to Voluntary Organisations,02-Sep-22,5105832462,Pure Innovations Ltd,"35,502.00"
Manchester City Council,Chief Executives,Counsel Costs,02-Sep-22,1907860470,Redacted Personal Information,750.00
Manchester City Council,Manchester Leisure,Refuse Collection,02-Sep-22,5105832310,Redgate Holdings Ltd,"4,530.44"
Manchester City Council,Manchester Leisure,Equipment,02-Sep-22,5105832391,Solon Security Ltd,"8,312.00"
Manchester City Council,Highways Services,Vehicle Fuel Costs,02-Sep-22,5105832429,Standard Fuels Oils,"1,120.64"
Manchester City Council,Hospitality + Trading Services,Vehicle Fuel Costs,02-Sep-22,5105832428,Standard Fuels Oils,"-1,120.64"
Manchester City Council,Chief Executives,Printing,02-Sep-22,5105832405,t/a R.C.D.,787.95
Manchester City Council,Adult Social Care,Rents,02-Sep-22,5105832359,T15 Consultancy Ltd,"109,426.47"
Manchester City Council,Highways Services,Building Materials for direct delivery,02-Sep-22,5105832412,TARMAC,"1,662.24"
Manchester City Council,Highways Services,Building Materials for direct delivery,02-Sep-22,5105832408,TARMAC,"1,055.52"
Manchester City Council,Manchester Leisure,Goods purchased for resale in Council outlets,02-Sep-22,5105832452,The School of Life,"1,184.80"
Manchester City Council,Adult Social Care,Rents,02-Sep-22,1907862980,Trading Places,"2,100.00"
Manchester City Council,Regeneration Finance,Training and Development,02-Sep-22,5105832520,Trinity College London,"3,015.00"
Manchester City Council,Regeneration Finance,Training and Development,02-Sep-22,5105832548,Trinity College London,"-3,015.00"
Manchester City Council,Adult Social Care,Training and Development,02-Sep-22,5105832441,University Of Manchester,"1,249.95"
Manchester City Council,Hospitality + Trading Services,Vehicle Costs,02-Sep-22,5105832346,Verizon Connect UK Ltd,"1,497.38"
Manchester City Council,Chief Executives,Professional fees,02-Sep-22,5105832289,Warwickshire County Council,818.49
Manchester City Council,Chief Executives,Professional fees,02-Sep-22,5105832406,Warwickshire County Council,647.47
Manchester City Council,Highways Services,Professional fees,02-Sep-22,5105832313,Waterman Aspen Ltd,"15,808.00"
Manchester City Council,Chief Executives,Professional fees,02-Sep-22,5105832393,Weightmans LLP Solicitors,"6,246.47"
Manchester City Council,Chief Executives,Professional fees,02-Sep-22,5105832365,Weightmans LLP Solicitors,"4,632.50"
Manchester City Council,Chief Executives,Professional fees,02-Sep-22,5105832400,Weightmans LLP Solicitors,"3,591.66"
Manchester City Council,Chief Executives,Professional fees,02-Sep-22,5105832364,Weightmans LLP Solicitors,"3,218.75"
Manchester City Council,Chief Executives,Professional fees,02-Sep-22,5105832375,Weightmans LLP Solicitors,"3,000.00"
Manchester City Council,Chief Executives,Professional fees,02-Sep-22,5105832374,Weightmans LLP Solicitors,"2,934.25"
Manchester City Council,Chief Executives,Professional fees,02-Sep-22,5105832348,Weightmans LLP Solicitors,"2,456.25"
Manchester City Council,Chief Executives,Professional fees,02-Sep-22,5105832368,Weightmans LLP Solicitors,"2,281.25"
Manchester City Council,Chief Executives,Professional fees,02-Sep-22,5105832380,Weightmans LLP Solicitors,"2,268.75"
Manchester City Council,Chief Executives,Professional fees,02-Sep-22,5105832396,Weightmans LLP Solicitors,"2,230.00"
Manchester City Council,Chief Executives,Professional fees,02-Sep-22,5105832388,Weightmans LLP Solicitors,"2,150.00"
Manchester City Council,Chief Executives,Professional fees,02-Sep-22,5105832350,Weightmans LLP Solicitors,"1,983.47"
Manchester City Council,Chief Executives,Professional fees,02-Sep-22,5105832379,Weightmans LLP Solicitors,"1,379.92"
Manchester City Council,Chief Executives,Professional fees,02-Sep-22,5105832402,Weightmans LLP Solicitors,981.25
Manchester City Council,Chief Executives,Professional fees,02-Sep-22,5105832383,Weightmans LLP Solicitors,943.75
Manchester City Council,Environment and Operations,Construction Works,02-Sep-22,5105832327,Wilde Consultants Ltd,"6,712.00"
Manchester City Council,Corporate Services,Professional fees,02-Sep-22,5105832243,WSP UK Limited,"4,728.75"
Manchester City Council,Chief Executives,Counsel Costs,05-Sep-22,1907862890,18 St John Street Chambers,950.00
Manchester City Council,Chief Executives,Counsel Costs,05-Sep-22,1907862892,18 St John Street Chambers,950.00
Manchester City Council,Chief Executives,Counsel Costs,05-Sep-22,1907858690,18 St John Street Chambers,650.00
Manchester City Council,Manchester Leisure,Supporting People Payments,05-Sep-22,5105832497,4CT Limited,"2,000.00"
Manchester City Council,Regeneration Finance,Grounds Maintenance,05-Sep-22,5105832580,Arboricultural Services Treework,"1,200.00"
Manchester City Council,Manchester Leisure,Payments to Sub-Contractors,05-Sep-22,5105832526,Arboricultural Services Treework,"10,860.00"
Manchester City Council,Childrens & Education Services,Supported Accommodation,05-Sep-22,5105832617,Bedspace Resource Ltd,"2,103.57"
Manchester City Council,Chief Executives,Printing,05-Sep-22,5105832476,Browns CTP Ltd,575.00
Manchester City Council,Chief Executives,Printing,05-Sep-22,5105832478,Browns CTP Ltd,533.00
Manchester City Council,Chief Executives,Agency staff provision,05-Sep-22,5105832590,Capita Resourcing Limited,"9,250.00"
Manchester City Council,Chief Executives,Agency staff provision,05-Sep-22,5105832589,Capita Resourcing Limited,"4,625.00"
Manchester City Council,Chief Executives,Counsel Costs,05-Sep-22,1907862866,Central Chambers,"2,750.00"
Manchester City Council,Chief Executives,Counsel Costs,05-Sep-22,1907863001,Central Chambers,"2,000.00"
Manchester City Council,Chief Executives,Counsel Costs,05-Sep-22,1907858685,Central Chambers,"1,250.00"
Manchester City Council,Chief Executives,Counsel Costs,05-Sep-22,1907858686,Central Chambers,"1,000.00"
Manchester City Council,Chief Executives,Counsel Costs,05-Sep-22,1907862893,Central Chambers,"1,000.00"
Manchester City Council,Chief Executives,Counsel Costs,05-Sep-22,1907858692,Central Chambers,700.00
Manchester City Council,Chief Executives,Counsel Costs,05-Sep-22,1907858691,Central Chambers,500.00
Manchester City Council,Chief Executives,Counsel Costs,05-Sep-22,1907858699,Central Chambers,500.00
Manchester City Council,Chief Executives,Counsel Costs,05-Sep-22,1907858701,Central Chambers,500.00
Manchester City Council,Chief Executives,Counsel Costs,05-Sep-22,1907862871,Central Chambers,500.00
Manchester City Council,Chief Executives,Legal Fees,05-Sep-22,1907862990,COBDEN HOUSE CHAMBERS,"1,500.00"
Manchester City Council,Manchester Leisure,Legal Fees,05-Sep-22,1907858681,COSGROVE COSTINGS LIMITED,520.00
Manchester City Council,Adult Social Care,Supporting People Payments,05-Sep-22,5105832569,Creative Support Ltd,"142,763.24"
Manchester City Council,Adult Social Care,Supporting People Payments,05-Sep-22,5105832570,Creative Support Ltd,"142,763.24"
Manchester City Council,Adult Social Care,Supporting People Payments,05-Sep-22,5105832581,Creative Support Ltd,"32,860.14"
Manchester City Council,Chief Executives,Counsel Costs,05-Sep-22,1907862994,DEANS COURT CHAMBERS,"1,250.00"
Manchester City Council,Highways Services,Legal Fees,05-Sep-22,1907862974,Department For Work & Pensions,"2,746.00"
Manchester City Council,Highways Services,Legal Fees,05-Sep-22,1907862854,Department For Work & Pensions,744.00
Manchester City Council,Manchester Leisure,I T Provision,05-Sep-22,5105832545,Eldercare (UK) Ltd,"1,365.63"
Manchester City Council,Manchester Leisure,I T Provision,05-Sep-22,5105832541,Eldercare (UK) Ltd,"1,203.65"
Manchester City Council,Manchester Leisure,Responsive Repairs Work,05-Sep-22,5105832511,EQUANS Regeneration Limited,"824,690.79"
Manchester City Council,Manchester Leisure,Responsive Repairs Work,05-Sep-22,5105832513,EQUANS Regeneration Limited,"700,268.52"
Manchester City Council,Manchester Leisure,Responsive Repairs Work,05-Sep-22,5105832512,EQUANS Regeneration Limited,"415,525.52"
Manchester City Council,Manchester Leisure,Responsive Repairs Work,05-Sep-22,5105832515,EQUANS Regeneration Limited,"-1,253.43"
Manchester City Council,Manchester Leisure,Responsive Repairs Work,05-Sep-22,5105832514,EQUANS Regeneration Limited,"-155,069.45"
Manchester City Council,Childrens & Education Services,Payments for services,05-Sep-22,5105832616,Fairfield Care Ltd,"2,225.10"
Manchester City Council,Childrens & Education Services,Payments for services,05-Sep-22,5105832622,Fairfield Care Ltd,"2,084.92"
Manchester City Council,Childrens & Education Services,Payments for services,05-Sep-22,5105832621,Fairfield Care Ltd,"1,679.60"
Manchester City Council,Childrens & Education Services,Payments for services,05-Sep-22,5105832615,Fairfield Care Ltd,"1,085.40"
Manchester City Council,Chief Executives,Agency staff provision,05-Sep-22,5105832586,G2V Recruitment Grp t/a Vivid Resou,"11,746.80"
Manchester City Council,Manchester Leisure,Professional fees,05-Sep-22,5105832574,Go Bounce Play,545.00
Manchester City Council,Manchester Leisure,Professional fees,05-Sep-22,5105832577,Go Bounce Play,545.00
Manchester City Council,Adult Social Care,Rents,05-Sep-22,5105832601,Houses4Homes 4U Ltd,"5,139.73"
Manchester City Council,Highways Services,Purchase of stores for re-distribution,05-Sep-22,5105832521,Instarmac Group Ltd,"3,427.20"
Manchester City Council,Childrens & Education Services,Payments for services,05-Sep-22,5105832550,Irwell Valley Housing Association,"5,314.86"
Manchester City Council,Housing Revenue Account,Professional fees,05-Sep-22,5105832492,Jacobs UK Ltd,"4,250.00"
Manchester City Council,Housing Revenue Account,Professional fees,05-Sep-22,5105832492,Jacobs UK Ltd,750.00
Manchester City Council,Adult Social Care,Third party payments relating to Voluntary Organisations,05-Sep-22,5105832556,Manchester Womens Aid,"-41,589.75"
Manchester City Council,Manchester Leisure,Legal Fees,05-Sep-22,1907863558,NEW LAW SOLICITORS,"6,652.00"
Manchester City Council,Highways Services,Payments to Sub-Contractors,05-Sep-22,5105832612,Northern Marking Limited,"8,485.39"
Manchester City Council,Highways Services,Payments to Sub-Contractors,05-Sep-22,5105832613,Northern Marking Limited,"3,400.00"
Manchester City Council,Regeneration Finance,Professional fees,05-Sep-22,5105832524,OTB Engineering Limited,"15,000.00"
Manchester City Council,Manchester Leisure,Legal Fees,05-Sep-22,1907863054,Peasegoods,"1,300.00"
Manchester City Council,Manchester Leisure,ICT Sup & Maintnance,05-Sep-22,5105832568,Prodo Social Software Limited,"7,715.00"
Manchester City Council,Manchester Leisure,ICT Sup & Maintnance,05-Sep-22,5105832567,Prodo Social Software Limited,"-7,715.00"
Manchester City Council,Housing Revenue Account,Council Dwelling Adaptations,05-Sep-22,5105832519,Pts Plumbing Trade Supplies,"5,774.74"
Manchester City Council,Housing Revenue Account,Council Dwelling Adaptations,05-Sep-22,5105832517,Pts Plumbing Trade Supplies,"1,292.49"
Manchester City Council,Housing Revenue Account,Council Dwelling Adaptations,05-Sep-22,5105832324,Pts Plumbing Trade Supplies,"1,227.86"
Manchester City Council,Housing Revenue Account,Council Dwelling Adaptations,05-Sep-22,5105832516,Pts Plumbing Trade Supplies,576.07
Manchester City Council,Adult Social Care,Rents,05-Sep-22,1907863559,QAZI MEHMOOD,"1,750.00"
Manchester City Council,Chief Executives,Counsel Costs,05-Sep-22,1907862992,Redacted Personal Information,700.00
Manchester City Council,Chief Executives,Counsel Costs,05-Sep-22,1907858147,Redacted Personal Information,875.00
Manchester City Council,Childrens & Education Services,Foster Payments,05-Sep-22,1907863560,Redacted Personal Information,"4,026.00"
Manchester City Council,Chief Executives,Payments to Sub-Contractors,05-Sep-22,5105832618,Redacted Personal Information,"1,524.12"
Manchester City Council,Chief Executives,Payments to Sub-Contractors,05-Sep-22,5105832591,Redacted Personal Information,665.00
Manchester City Council,Chief Executives,Payments to Sub-Contractors,05-Sep-22,5105832592,Redacted Personal Information,642.60
Manchester City Council,Childrens & Education Services,Transport Coach Hire,05-Sep-22,5105832506,Redacted Personal Information,-597.32
Manchester City Council,Childrens & Education Services,Transport Coach Hire,05-Sep-22,5105832507,Redacted Personal Information,-597.32
Manchester City Council,Childrens & Education Services,Payments for services,05-Sep-22,5105832595,Reed Employment Plc,"11,451.33"
Manchester City Council,Regeneration Finance,Expenditure re Internal Trading Ordered Externally,05-Sep-22,1907860476,Remanc Limited,611.00
Manchester City Council,Childrens & Education Services,Third party payments relating to Voluntary Organisations,05-Sep-22,5105832582,Remedi,"7,500.00"
Manchester City Council,Highways Services,Payments to Sub-Contractors,05-Sep-22,5105832430,Rosgal Ltd,"-3,912.50"
Manchester City Council,Corporate Services,Professional fees,05-Sep-22,5105832355,Sir Frederick Snow & Partners Ltd,"2,206.00"
Manchester City Council,Corporate Services,Professional fees,05-Sep-22,5105832354,Sir Frederick Snow & Partners Ltd,750.00
Manchester City Council,Chief Executives,Legal Fees,05-Sep-22,1907858680,SK Consultations Ltd,"1,137.50"
Manchester City Council,Manchester Leisure,Payments to Sub-Contractors,05-Sep-22,5105832522,Synectics Security Limited,"2,857.91"
Manchester City Council,Manchester Leisure,Payments to Sub-Contractors,05-Sep-22,5105832523,Synectics Security Limited,"2,552.02"
Manchester City Council,Adult Social Care,External repairs and maintenance for buildings,05-Sep-22,5105832491,T F Jones Property Services Ltd,557.61
Manchester City Council,Childrens & Education Services,Third party payments relating to Voluntary Organisations,05-Sep-22,5105832530,Talbot House Support Centre,"7,500.00"
Manchester City Council,Regeneration Finance,Training and Development,05-Sep-22,5105832547,Trinity College London,640.00
Manchester City Council,Regeneration Finance,Licences Purchase,05-Sep-22,5105832498,Trustmarque Solutions Ltd,"6,987.00"
Manchester City Council,Chief Executives,Works and associated costs for Land and Buildings,05-Sep-22,5105832573,Turner and Townsend Consulting Ltd,"21,580.00"
Manchester City Council,Adult Social Care,Rents,05-Sep-22,1907863561,VLP (NW) LTD,"1,193.35"
Manchester City Council,Manchester Leisure,"Consumable items eg Toilet rolls, soap etc",05-Sep-22,5105832560,Wilkinson Bros,800.00
Manchester City Council,Manchester Leisure,"Consumable items eg Toilet rolls, soap etc",05-Sep-22,5105832566,Wilkinson Bros,670.00
Manchester City Council,Manchester Leisure,"Consumable items eg Toilet rolls, soap etc",05-Sep-22,5105832562,Wilkinson Bros,-800.00
Manchester City Council,Manchester Leisure,Payments to Contractors,05-Sep-22,5105832432,Wythenshawe Forum Trust Ltd,"19,472.00"
Manchester City Council,Childrens & Education Services,Payments for services,05-Sep-22,5105832546,Young Manchester,"49,384.50"
Manchester City Council,Chief Executives,Counsel Costs,06-Sep-22,1907863037,18 St John Street Chambers,"1,310.00"
Manchester City Council,Chief Executives,Counsel Costs,06-Sep-22,1907863552,18 St John Street Chambers,750.00
Manchester City Council,Manchester Leisure,Professional fees,06-Sep-22,5105832774,Aareon UK Ltd,"1,250.00"
Manchester City Council,Chief Executives,Agency staff provision,06-Sep-22,5105832777,Adecco Uk Ltd,"2,000.00"
Manchester City Council,Adult Social Care,Third party payments relating to Voluntary Organisations,06-Sep-22,5105832727,Age Concern Manchester,"1,130.00"
Manchester City Council,Adult Social Care,Equipment,06-Sep-22,5105832837,Aidapt Bathrooms Ltd,"7,060.00"
Manchester City Council,Adult Social Care,Equipment,06-Sep-22,5105832822,Aidapt Bathrooms Ltd,"1,960.00"
Manchester City Council,Adult Social Care,Equipment,06-Sep-22,5105832829,Aidapt Bathrooms Ltd,"1,568.00"
Manchester City Council,Adult Social Care,Equipment,06-Sep-22,5105832827,Aidapt Bathrooms Ltd,"-1,568.00"
Manchester City Council,Chief Executives,Professional fees,06-Sep-22,1907863554,Avr Transcription Ltd,531.01
Manchester City Council,Adult Social Care,Professional fees,06-Sep-22,5105832663,Baltimore Consulting Ltd,"2,112.50"
Manchester City Council,Regeneration Finance,Stationery,06-Sep-22,5105832877,Banner Group Limited,"4,064.00"
Manchester City Council,Manchester Leisure,Special Event,06-Sep-22,5105832619,Beat Bazaar Projects Ltd,"8,000.00"
Manchester City Council,Highways Services,Building Materials for direct delivery,06-Sep-22,5105832923,Benchmark Building Supplies Ltd,"1,217.82"
Manchester City Council,Highways Services,Purchase of stores for re-distribution,06-Sep-22,5105832924,Benchmark Building Supplies Ltd,"1,014.72"
Manchester City Council,Adult Social Care,Catering Provisions,06-Sep-22,1907864354,Brake Bros Foodservice Ltd,719.08
Manchester City Council,Chief Executives,Printing,06-Sep-22,5105832659,Browns CTP Ltd,998.00
Manchester City Council,Chief Executives,Printing,06-Sep-22,5105832603,Browns CTP Ltd,890.00
Manchester City Council,Chief Executives,Printing,06-Sep-22,5105832640,Browns CTP Ltd,836.00
Manchester City Council,Regeneration Finance,Electricity,06-Sep-22,5105832415,Bruntwood (Heron House),"13,324.40"
Manchester City Council,Regeneration Finance,Electricity,06-Sep-22,5105832756,Bruntwood (Heron House),"3,457.44"
Manchester City Council,Regeneration Finance,Electricity,06-Sep-22,5105832758,Bruntwood (Heron House),"2,137.68"
Manchester City Council,Regeneration Finance,Electricity,06-Sep-22,5105832419,Bruntwood (Heron House),"-2,137.68"
Manchester City Council,Regeneration Finance,Electricity,06-Sep-22,5105832417,Bruntwood (Heron House),"-3,457.44"
Manchester City Council,Regeneration Finance,Electricity,06-Sep-22,5105832779,Bruntwood (Heron House),"-13,324.40"
Manchester City Council,Manchester Leisure,Landline Telephone,06-Sep-22,1907863543,BT PLC,"1,769.63"
Manchester City Council,Manchester Leisure,Landline Telephone,06-Sep-22,1907863546,BT PLC,935.06
Manchester City Council,Chief Executives,Agency staff provision,06-Sep-22,5105832652,Capita Resourcing Limited,"9,250.00"
Manchester City Council,Chief Executives,Agency staff provision,06-Sep-22,5105832651,Capita Resourcing Limited,"4,625.00"
Manchester City Council,Chief Executives,Counsel Costs,06-Sep-22,1907863035,Central Chambers,550.00
Manchester City Council,Highways Services,Legal Fees,06-Sep-22,1907863547,Cordell & Co Solicitors,"8,427.64"
Manchester City Council,Manchester Leisure,Building Materials for direct delivery,06-Sep-22,5105832649,Cromwell Polythene Limited,919.80
Manchester City Council,Manchester Leisure,Equipment,06-Sep-22,5105832650,Cromwell Polythene Limited,"13,286.00"
Manchester City Council,Insurance Fund,Bal of Rsk InsPrem,06-Sep-22,1907862997,D&S Facility Management Ltd,"18,212.48"
Manchester City Council,Manchester Leisure,Compensation Payments,06-Sep-22,1907862853,Department For Work & Pensions,744.00
Manchester City Council,Insurance Fund,Insurance,06-Sep-22,1907861380,Department For Work & Pensions,"3,324.00"
Manchester City Council,Insurance Fund,Insurance,06-Sep-22,1907862851,Department For Work & Pensions,969.00
Manchester City Council,Corporate Services,Works and associated costs for Land and Buildings,06-Sep-22,1907864308,DWF LLP,"28,441.50"
Manchester City Council,Corporate Services,Works and associated costs for Land and Buildings,06-Sep-22,1907864306,DWF LLP,"22,983.50"
Manchester City Council,Corporate Services,Works and associated costs for Land and Buildings,06-Sep-22,1907864311,DWF LLP,"5,656.00"
Manchester City Council,Highways Services,Building Materials for direct delivery,06-Sep-22,5105832925,Ecomix Concrete Ltd,500.00
Manchester City Council,Manchester Leisure,Responsive Repairs Work,06-Sep-22,5105832249,EQUANS Regeneration Limited,"51,089.32"
Manchester City Council,Manchester Leisure,Responsive Repairs Work,06-Sep-22,5105832787,EQUANS Regeneration Limited,"19,322.29"
Manchester City Council,Manchester Leisure,Responsive Repairs Work,06-Sep-22,5105832789,EQUANS Regeneration Limited,"4,280.76"
Manchester City Council,Chief Executives,Professional fees,06-Sep-22,1907863044,Expert Psychology Consultancy Ltd,"1,366.60"
Manchester City Council,Chief Executives,Works and associated costs for Land and Buildings,06-Sep-22,5105832805,Gardiner & Theobald LLP,"12,000.00"
Manchester City Council,Manchester Leisure,Professional fees,06-Sep-22,5105832796,Go Bounce Play,545.00
Manchester City Council,Manchester Leisure,Professional fees,06-Sep-22,5105832797,Go Bounce Play,545.00
Manchester City Council,Manchester Leisure,Professional fees,06-Sep-22,5105832798,Go Bounce Play,545.00
Manchester City Council,Hospitality + Trading Services,Hire of Machinery,06-Sep-22,5105832921,H & C Plant Hire Ltd,"2,373.00"
Manchester City Council,Adult Social Care,Bed & Breakfast Acc,06-Sep-22,5105832740,Hala Guest House,"6,725.00"
Manchester City Council,Adult Social Care,Equipment,06-Sep-22,5105832755,Herida Healthcare Plc,"2,019.60"
Manchester City Council,Adult Social Care,Rents,06-Sep-22,5105832785,Housing Social Ltd,"31,708.21"
Manchester City Council,Adult Social Care,Personal needs of client,06-Sep-22,5105832561,James Leckey Design Ltd,"2,756.00"
Manchester City Council,Adult Social Care,Rents,06-Sep-22,5105832804,K L Properties,"12,612.16"
Manchester City Council,Manchester Leisure,Building Materials for direct delivery,06-Sep-22,5105832794,Landscape Supply Company,509.45
Manchester City Council,Adult Social Care,Rents,06-Sep-22,5105832737,M & Q Properties Management Ltd,"6,233.64"
Manchester City Council,Adult Social Care,Rents,06-Sep-22,5105832738,M&D Residential Ltd,"9,718.74"
Manchester City Council,Adult Social Care,Third party payments relating to Voluntary Organisations,06-Sep-22,5105832557,Manchester Womens Aid,"41,590.00"
Manchester City Council,Adult Social Care,Bed & Breakfast Acc,06-Sep-22,5105832736,Medlock House Ltd,"10,535.00"
Manchester City Council,Adult Social Care,Bed & Breakfast Acc,06-Sep-22,5105832783,Medlock House Ltd,"9,457.00"
Manchester City Council,Insurance Fund,Bal of Rsk InsPrem,06-Sep-22,1907862995,Medlock Primary School,"6,223.94"
Manchester City Council,Manchester Leisure,Equipment,06-Sep-22,5105832726,MGB Plastics Limited,"16,200.00"
Manchester City Council,Manchester Leisure,Equipment,06-Sep-22,5105832724,MGB Plastics Limited,"14,400.00"
Manchester City Council,Manchester Leisure,Equipment,06-Sep-22,5105832725,MGB Plastics Limited,"13,500.00"
Manchester City Council,Highways Services,Professional fees,06-Sep-22,5105831778,Pell Frischmann Consultants Ltd,"2,231.25"
Manchester City Council,Highways Services,Professional fees,06-Sep-22,5105832761,Pell Frischmann Consultants Ltd,"-2,231.25"
Manchester City Council,Environment and Operations,"Consumable items eg Toilet rolls, soap etc",06-Sep-22,5105832456,Peter James Packaging Company,648.41
Manchester City Council,Childrens & Education Services,Grant and subscriptions awarded,06-Sep-22,1700138539,Redacted personal information,"-1,200.00"
Manchester City Council,Adult Social Care,Bed & Breakfast Acc,06-Sep-22,5105832669,Redacted Personal Information,"25,220.00"
Manchester City Council,Adult Social Care,Bed & Breakfast Acc,06-Sep-22,5105832784,Redacted Personal Information,"12,124.00"
Manchester City Council,Adult Social Care,Bed & Breakfast Acc,06-Sep-22,5105832802,Redacted Personal Information,"12,010.00"
Manchester City Council,Adult Social Care,Bed & Breakfast Acc,06-Sep-22,5105832739,Redacted Personal Information,"3,650.00"
Manchester City Council,Adult Social Care,Bed & Breakfast Acc,06-Sep-22,5105832733,Redacted Personal Information,"3,375.00"
Manchester City Council,Adult Social Care,Bed & Breakfast Acc,06-Sep-22,5105832801,Redacted Personal Information,"3,175.00"
Manchester City Council,Highways Services,Building Materials for direct delivery,06-Sep-22,5105832807,Rosgal Ltd,"1,500.00"
Manchester City Council,Highways Services,Building Materials for direct delivery,06-Sep-22,5105832808,Rosgal Ltd,"1,500.00"
Manchester City Council,Highways Services,Building Materials for direct delivery,06-Sep-22,5105832833,Rosgal Ltd,"1,500.00"
Manchester City Council,Highways Services,Building Materials for direct delivery,06-Sep-22,5105832836,Rosgal Ltd,"1,500.00"
Manchester City Council,Highways Services,Building Materials for direct delivery,06-Sep-22,5105832838,Rosgal Ltd,"1,500.00"
Manchester City Council,Highways Services,Building Materials for direct delivery,06-Sep-22,5105832840,Rosgal Ltd,"1,500.00"
Manchester City Council,Highways Services,Building Materials for direct delivery,06-Sep-22,5105832843,Rosgal Ltd,"1,500.00"
Manchester City Council,Highways Services,Building Materials for direct delivery,06-Sep-22,5105832844,Rosgal Ltd,"1,500.00"
Manchester City Council,Highways Services,Building Materials for direct delivery,06-Sep-22,5105832845,Rosgal Ltd,"1,500.00"
Manchester City Council,Highways Services,Payments to Sub-Contractors,06-Sep-22,5105832820,Rosgal Ltd,"7,800.00"
Manchester City Council,Highways Services,Payments to Sub-Contractors,06-Sep-22,5105832824,Rosgal Ltd,"7,800.00"
Manchester City Council,Highways Services,Payments to Sub-Contractors,06-Sep-22,5105832817,Rosgal Ltd,"3,900.00"
Manchester City Council,Highways Services,Payments to Sub-Contractors,06-Sep-22,5105832818,Rosgal Ltd,"3,900.00"
Manchester City Council,Highways Services,Payments to Sub-Contractors,06-Sep-22,5105832816,Rosgal Ltd,"3,120.00"
Manchester City Council,Adult Social Care,Grant and subscriptions awarded,06-Sep-22,5105832641,Saheli,"10,000.00"
Manchester City Council,Regeneration Finance,Rents,06-Sep-22,1907862849,Savills Commercial Ltd,"106,310.25"
Manchester City Council,Regeneration Finance,Rents,06-Sep-22,1907862850,Savills Commercial Ltd,"1,364.94"
Manchester City Council,Manchester Leisure,Equipment,06-Sep-22,5105832795,Signs 2 School,"1,445.00"
Manchester City Council,Hospitality + Trading Services,Vehicle Fuel Costs,06-Sep-22,5105832458,Standard Fuels Oils,"21,032.83"
Manchester City Council,Manchester Leisure,Vehicle contract hire and leases,06-Sep-22,5105832927,T.H. Horn Ltd,625.00
Manchester City Council,Manchester Leisure,Payments to Sub-Contractors,06-Sep-22,5105832662,The Arboricultural Association,"1,240.00"
Manchester City Council,Adult Social Care,Third party payments relating to Voluntary Organisations,06-Sep-22,5105832825,The Children'S Society Services Ltd,"19,166.66"
Manchester City Council,Adult Social Care,Third party payments relating to Voluntary Organisations,06-Sep-22,5105832826,The Children'S Society Services Ltd,"19,166.66"
Manchester City Council,Adult Social Care,Third party payments relating to Voluntary Organisations,06-Sep-22,5105832828,The Children'S Society Services Ltd,"19,166.66"
Manchester City Council,Adult Social Care,Third party payments relating to Voluntary Organisations,06-Sep-22,5105832832,The Children'S Society Services Ltd,"19,166.66"
Manchester City Council,Adult Social Care,Third party payments relating to Voluntary Organisations,06-Sep-22,5105832835,The Children'S Society Services Ltd,"19,166.66"
Manchester City Council,Adult Social Care,Professional fees,06-Sep-22,5105832664,The Depaul Trust,"100,000.00"
Manchester City Council,Chief Executives,Data Links,06-Sep-22,5105832842,The Loop t/a Gamma Telecom Ltd,"2,833.34"
Manchester City Council,Chief Executives,Data Links,06-Sep-22,5105832841,The Loop t/a Gamma Telecom Ltd,"-2,857.34"
Manchester City Council,Chief Executives,Vehicle Plant Furniture and Equipment,06-Sep-22,5105832632,The Networking People (TNP) Ltd,"3,160.93"
Manchester City Council,Hospitality + Trading Services,Vehicle Costs,06-Sep-22,5105832660,Verizon Connect UK Ltd,"1,398.60"
Manchester City Council,Chief Executives,Agency staff provision,07-Sep-22,5105833011,Adecco Uk Ltd,"1,200.00"
Manchester City Council,Regeneration Finance,Cleaning Equipment and Materials,07-Sep-22,5105832376,Arrow County Supplies,"1,768.62"
Manchester City Council,Adult Social Care,Professional fees,07-Sep-22,5105832963,Baltimore Consulting Ltd,"2,112.50"
Manchester City Council,Childrens & Education Services,Professional fees,07-Sep-22,5105832959,Bennett Workplace Solutions Ltd,921.00
Manchester City Council,Manchester Leisure,Professional fees,07-Sep-22,1907871642,Broadway Leisure Centre (BCDG),"46,298.12"
Manchester City Council,Regeneration Finance,General Office expenses,07-Sep-22,5105832780,Bruntwood (Heron House),"13,324.40"
Manchester City Council,Regeneration Finance,General Office expenses,07-Sep-22,5105832760,Bruntwood (Heron House),"-2,137.68"
Manchester City Council,Regeneration Finance,General Office expenses,07-Sep-22,5105832757,Bruntwood (Heron House),"-3,457.44"
Manchester City Council,Chief Executives,Works and associated costs for Land and Buildings,07-Sep-22,5105832868,Building Design Partnership Limited,"1,316.67"
Manchester City Council,Manchester Leisure,Goods purchased for resale in Council outlets,07-Sep-22,5105832871,Canns Down Press Ltd,902.88
Manchester City Council,Corporate Services,I T Provision,07-Sep-22,5105832593,Capita Business Services Ltd,"4,750.00"
Manchester City Council,Chief Executives,Counsel Costs,07-Sep-22,1907863555,Central Chambers,600.00
Manchester City Council,Regeneration Finance,Grant and subscriptions awarded,07-Sep-22,1907864310,Charter Street Mission,"30,280.74"
Manchester City Council,Adult Social Care,Cleaning Equipment and Materials,07-Sep-22,5105832914,Concept Care,"1,025.00"
Manchester City Council,Childrens & Education Services,Contract Cleaning External,07-Sep-22,1907863553,CPD Property Services,875.00
Manchester City Council,Manchester Leisure,Environmental Services,07-Sep-22,5105832499,CPD Property Services,875.00
Manchester City Council,Manchester Leisure,External repairs and maintenance for buildings,07-Sep-22,5105832849,CPD Property Services,595.00
Manchester City Council,Hospitality + Trading Services,Vehicle Hire Costs,07-Sep-22,5105832950,Dawsongroup Sweepers,"2,720.82"
Manchester City Council,Corporate Services,Works and associated costs for Land and Buildings,07-Sep-22,5105833003,Faithful & Gould Ltd,"37,000.00"
Manchester City Council,Housing General Fund,Works and associated costs for Land and Buildings,07-Sep-22,5105832467,Faithful & Gould Ltd,"34,344.82"
Manchester City Council,Corporate Services,Works and associated costs for Land and Buildings,07-Sep-22,5105833002,Faithful & Gould Ltd,"1,034.52"
Manchester City Council,Hospitality + Trading Services,Hire of Machinery,07-Sep-22,5105832967,Fast Hire UK,"8,130.55"
Manchester City Council,Hospitality + Trading Services,Hire of Machinery,07-Sep-22,5105832922,H & C Plant Hire Ltd,"8,130.55"
Manchester City Council,Hospitality + Trading Services,Hire of Machinery,07-Sep-22,5105832900,H & C Plant Hire Ltd,"-2,373.00"
Manchester City Council,Hospitality + Trading Services,Hire of Machinery,07-Sep-22,5105832966,H & C Plant Hire Ltd,"-8,130.55"
Manchester City Council,Environment and Operations,Construction Works,07-Sep-22,5105833021,J.Hopkins (Contractors) Ltd.,"42,674.09"
Manchester City Council,Environment and Operations,Construction Works,07-Sep-22,5105833010,J.Hopkins (Contractors) Ltd.,"18,350.00"
Manchester City Council,Environment and Operations,Construction Works,07-Sep-22,5105833023,J.Hopkins (Contractors) Ltd.,"12,479.60"
Manchester City Council,Environment and Operations,Construction Works,07-Sep-22,5105833009,J.Hopkins (Contractors) Ltd.,"1,501.80"
Manchester City Council,Manchester Leisure,Goods purchased for resale in Council outlets,07-Sep-22,5105832953,John Wiley & Sons Ltd,"1,157.99"
Manchester City Council,Manchester Leisure,Goods purchased for resale in Council outlets,07-Sep-22,5105832940,Katch Skinner,760.00
Manchester City Council,Manchester Leisure,Goods purchased for resale in Council outlets,07-Sep-22,5105832928,Lagom Design Limited,"1,337.40"
Manchester City Council,Childrens & Education Services,Signers/Interpreters,07-Sep-22,5105832907,Language Line Ltd,"4,316.80"
Manchester City Council,Childrens & Education Services,Signers/Interpreters,07-Sep-22,5105832910,Language Line Ltd,"2,786.40"
Manchester City Council,Manchester Leisure,Professional fees,07-Sep-22,5105832909,Lightmedia Displays Ltd,"5,520.00"
Manchester City Council,Corporate Services,Professional fees,07-Sep-22,5105832732,Lucion Environmental Ltd,675.86
Manchester City Council,Manchester Leisure,Library Materials Acquisition,07-Sep-22,1907866636,Martin-Lavell Limited,"1,114.55"
Manchester City Council,Corporate Services,Works and associated costs for Land and Buildings,07-Sep-22,5105832976,Ove Arup & Partners Ltd,"5,780.00"
Manchester City Council,Chief Executives,Agency staff provision,07-Sep-22,5105832905,Pertemps Professional Recruitment L,"32,640.99"
Manchester City Council,Manchester Leisure,Library Materials Acquisition,07-Sep-22,1907866750,Peters Bookselling Services,995.94
Manchester City Council,Corporate Services,Professional fees,07-Sep-22,5105832996,Pick Everard,"7,517.70"
Manchester City Council,Corporate Services,Professional fees,07-Sep-22,5105832576,Pick Everard,"5,364.00"
Manchester City Council,Corporate Services,Professional fees,07-Sep-22,5105832995,Pick Everard,"3,905.50"
Manchester City Council,Chief Executives,Postage,07-Sep-22,5105832990,Pitney Bowes - PrePay,"3,008.65"
Manchester City Council,Manchester Leisure,External repairs and maintenance for buildings,07-Sep-22,5105832852,Pro-Kill Environmental Services,"2,460.00"
Manchester City Council,Highways Services,Payments to Sub-Contractors,07-Sep-22,5105832775,Proteus Equipment Ltd,771.87
Manchester City Council,Regeneration Finance,Travel,07-Sep-22,5105832986,Purcell Architecture Limited,"1,273.73"
Manchester City Council,Corporate Services,Works and associated costs for Land and Buildings,07-Sep-22,5105832986,Purcell Architecture Limited,"65,000.00"
Manchester City Council,Corporate Services,Works and associated costs for Land and Buildings,07-Sep-22,5105832984,Purcell Architecture Limited,"1,767.00"
Manchester City Council,Corporate Services,Works and associated costs for Land and Buildings,07-Sep-22,5105832973,Ramboll UK Limited,"2,972.00"
Manchester City Council,Corporate Services,Works and associated costs for Land and Buildings,07-Sep-22,5105832982,Ramboll UK Limited,"2,000.00"
Manchester City Council,Corporate Services,Works and associated costs for Land and Buildings,07-Sep-22,5105832983,Ramboll UK Limited,"2,000.00"
Manchester City Council,Manchester Leisure,Professional fees,07-Sep-22,1907865836,Redacted Personal Information,"1,600.00"
Manchester City Council,Corporate Services,Postage,07-Sep-22,5105833012,Royal Mail Group Plc,"11,243.36"
Manchester City Council,Corporate Services,Postage,07-Sep-22,5105833017,Royal Mail Group Plc,"9,460.16"
Manchester City Council,Corporate Services,Works and associated costs for Land and Buildings,07-Sep-22,5105832470,Seddon Construction Ltd,"1,820.84"
Manchester City Council,Regeneration Finance,Third party payments relating to Voluntary Organisations,07-Sep-22,5105832958,Sonder Radio Ltd,"2,392.00"
Manchester City Council,Manchester Leisure,Grant and subscriptions awarded,07-Sep-22,5105832981,St Willibrord's RC Primary School,"2,000.00"
Manchester City Council,Housing General Fund,Works and associated costs for Land and Buildings,07-Sep-22,1907858708,The Guinness Partnership Limited,540.00
Manchester City Council,Corporate Services,Works and associated costs for Land and Buildings,07-Sep-22,5105832799,Turner & Townsend Project,"14,620.00"
Manchester City Council,Chief Executives,Works and associated costs for Land and Buildings,07-Sep-22,5105832916,Turner & Townsend Project,"10,830.00"
Manchester City Council,Manchester Leisure,Training and Development,08-Sep-22,5105833079,1Message,600.00
Manchester City Council,Regeneration Finance,Professional fees,08-Sep-22,5105833101,Alan Franklin Builders Limited,984.65
Manchester City Council,Regeneration Finance,Professional fees,08-Sep-22,5105833094,Alan Franklin Builders Limited,918.90
Manchester City Council,Regeneration Finance,Cleaning Equipment and Materials,08-Sep-22,5105832917,Arrow County Supplies,997.00
Manchester City Council,Chief Executives,Agency staff provision,08-Sep-22,5105833136,Ashberry Recruitment Ltd,"3,771.25"
Manchester City Council,Adult Social Care,Furniture,08-Sep-22,5105832525,Back Care Solutions Ltd,"1,087.90"
Manchester City Council,Manchester Leisure,Payments to Sub-Contractors,08-Sep-22,5105833051,Barcham Trees Plc,"5,000.00"
Manchester City Council,Manchester Leisure,Grant and subscriptions awarded,08-Sep-22,5105833085,Bee Sanctuary Movement,908.00
Manchester City Council,Childrens & Education Services,Agency staff provision,08-Sep-22,5105833025,Bennett Workplace Solutions Ltd,"1,672.95"
Manchester City Council,Adult Social Care,Furniture,08-Sep-22,5105833027,Bennett Workplace Solutions Ltd,936.00
Manchester City Council,Chief Executives,Works and associated costs for Land and Buildings,08-Sep-22,5105832247,Building Design Partnership Limited,"77,719.52"
Manchester City Council,Chief Executives,Works and associated costs for Land and Buildings,08-Sep-22,5105833121,Building Design Partnership Limited,"-77,719.52"
Manchester City Council,Chief Executives,Works and associated costs for Land and Buildings,08-Sep-22,5105833042,Charcoalblue LLP,"10,500.00"
Manchester City Council,Chief Executives,Advertising,08-Sep-22,5105833131,Cilip,655.00
Manchester City Council,Adult Social Care,Third party payments relating to Voluntary Organisations,08-Sep-22,5105832855,Citizens Advice Manchester,"80,000.00"
Manchester City Council,Manchester Leisure,Goods purchased for resale in Council outlets,08-Sep-22,1907865852,Clare Buchanan Textiles,660.00
Manchester City Council,Manchester Leisure,Equipment,08-Sep-22,5105833148,Commercial Choice,980.00
Manchester City Council,Chief Executives,Professional Services Provision,08-Sep-22,5105833029,Cornerstone Barristers,800.00
Manchester City Council,Childrens & Education Services,Grounds Maintenance,08-Sep-22,5105833110,Countrywide Grounds Maintenance Ltd,"1,095.00"
Manchester City Council,Chief Executives,Counsel Costs,08-Sep-22,1907871615,DEANS COURT CHAMBERS,"3,010.00"
Manchester City Council,Highways Services,Legal Fees,08-Sep-22,1907865853,Department For Work & Pensions,"2,739.00"
Manchester City Council,Childrens & Education Services,Legal Fees,08-Sep-22,1907865849,Department For Work & Pensions,688.00
Manchester City Council,Corporate Services,Legal Fees,08-Sep-22,1907871628,Driscoll Kingston & Co Limited � Cl,"11,300.00"
Manchester City Council,Corporate Services,Legal Fees,08-Sep-22,1907871620,Driscoll Kingston & Co Ltd � Client,"12,000.00"
Manchester City Council,Manchester Leisure,Goods purchased for resale in Council outlets,08-Sep-22,1907865847,DUNCAN J C STUDIO Ltd,715.00
Manchester City Council,Childrens & Education Services,Payments for services,08-Sep-22,5105833075,EKC Group,"2,701.61"
Manchester City Council,Childrens & Education Services,Subsistence and Conference Expenses,08-Sep-22,5105833038,Fabulous Fan Fayre Limited,"4,808.50"
Manchester City Council,Chief Executives,Works and associated costs for Land and Buildings,08-Sep-22,5105833097,Faithful & Gould Ltd,"12,090.00"
Manchester City Council,Childrens & Education Services,Professional fees,08-Sep-22,5105833066,Hachette UK Distribution,"26,434.79"
Manchester City Council,Highways Services,Electricity,08-Sep-22,1907872515,Haven Power Ltd,"192,223.65"
Manchester City Council,Highways Services,Electricity,08-Sep-22,1907872514,Haven Power Ltd,"7,013.45"
Manchester City Council,Housing Revenue Account,Electricity,08-Sep-22,1907872511,Haven Power Ltd,"4,864.18"
Manchester City Council,Manchester Leisure,Electricity,08-Sep-22,1907872510,Haven Power Ltd,"3,940.64"
Manchester City Council,Adult Social Care,Rents,08-Sep-22,5105832357,Housing Social Ltd,"32,517.89"
Manchester City Council,Chief Executives,Vehicle Plant Furniture and Equipment,08-Sep-22,5105832288,Insight Direct (Uk) Ltd,"28,049.50"
Manchester City Council,Chief Executives,Vehicle Plant Furniture and Equipment,08-Sep-22,5105833149,Insight Direct (Uk) Ltd,"25,078.00"
Manchester City Council,Chief Executives,Vehicle Plant Furniture and Equipment,08-Sep-22,5105833149,Insight Direct (Uk) Ltd,"2,971.50"
Manchester City Council,Chief Executives,Vehicle Plant Furniture and Equipment,08-Sep-22,5105833145,Insight Direct (Uk) Ltd,"-28,049.50"
Manchester City Council,Chief Executives,Agency staff provision,08-Sep-22,5105833120,Isherwood Legal Limited,"1,180.00"
Manchester City Council,Environment and Operations,Construction Works,08-Sep-22,5105833024,J.Hopkins (Contractors) Ltd.,"55,999.20"
Manchester City Council,Environment and Operations,Construction Works,08-Sep-22,5105833026,J.Hopkins (Contractors) Ltd.,"6,123.79"
Manchester City Council,Regeneration Finance,Legal Fees,08-Sep-22,5105832360,Jacobs UK Ltd,"44,000.00"
Manchester City Council,Manchester Leisure,ClothsUniformLaundry,08-Sep-22,5105833177,JLA Total Care Ltd,"4,014.85"
Manchester City Council,Manchester Leisure,ClothsUniformLaundry,08-Sep-22,5105833175,JLA Total Care Ltd,"2,753.74"
Manchester City Council,Manchester Leisure,ClothsUniformLaundry,08-Sep-22,5105833178,JLA Total Care Ltd,"2,526.41"
Manchester City Council,Childrens & Education Services,Payments for services,08-Sep-22,5105833074,Keys PCE Limited,"8,775.98"
Manchester City Council,Manchester Leisure,Grant and subscriptions awarded,08-Sep-22,5105833116,Levenshulme Inspire Foundation,"1,300.00"
Manchester City Council,Childrens & Education Services,Professional fees,08-Sep-22,5105833071,Lincolnshire County Council,596.51
Manchester City Council,Childrens & Education Services,Gas,08-Sep-22,5105832853,Manchester School Services Limited,"81,813.37"
Manchester City Council,Childrens & Education Services,Private Finance and Public Private partnership initiatives,08-Sep-22,5105832854,Manchester School Services Limited,"426,185.25"
Manchester City Council,Childrens & Education Services,Payments for services,08-Sep-22,5105833166,National Offender Mgt Services,"23,870.00"
Manchester City Council,Childrens & Education Services,Payments for services,08-Sep-22,5105833164,National Offender Mgt Services,"9,517.00"
Manchester City Council,Childrens & Education Services,Payments for services,08-Sep-22,5105833170,National Offender Mgt Services,"9,517.00"
Manchester City Council,Childrens & Education Services,Payments for services,08-Sep-22,5105833174,National Offender Mgt Services,"9,517.00"
Manchester City Council,Childrens & Education Services,Payments for services,08-Sep-22,5105833180,National Offender Mgt Services,"8,470.00"
Manchester City Council,Childrens & Education Services,Payments for services,08-Sep-22,5105833179,National Offender Mgt Services,"7,368.00"
Manchester City Council,Childrens & Education Services,Payments for services,08-Sep-22,5105833169,National Offender Mgt Services,"7,330.00"
Manchester City Council,Childrens & Education Services,Payments for services,08-Sep-22,5105833171,National Offender Mgt Services,"2,310.00"
Manchester City Council,Childrens & Education Services,Payments for services,08-Sep-22,5105833172,National Offender Mgt Services,"1,535.00"
Manchester City Council,Manchester Leisure,Payments to Sub-Contractors,08-Sep-22,5105833153,Osborne Richardson,"1,100.00"
Manchester City Council,Manchester Leisure,Payments to Sub-Contractors,08-Sep-22,5105833152,Osborne Richardson,998.00
Manchester City Council,Chief Executives,I T Provision,08-Sep-22,5105833093,Oxford Computer Consultants,"10,000.00"
Manchester City Council,Adult Social Care,Personal needs of client,08-Sep-22,5105833176,Prism Medical UK Carefree Division,559.68
Manchester City Council,Regeneration Finance,External repairs and maintenance for buildings,08-Sep-22,1907863584,Redacted Personal Information,"6,010.00"
Manchester City Council,Adult Social Care,Bed & Breakfast Acc,08-Sep-22,5105833043,Redacted Personal Information,"12,166.00"
Manchester City Council,Housing Revenue Account,Council Dwelling Adaptations,08-Sep-22,5105833095,Rexel UK Ltd,"8,179.93"
Manchester City Council,Housing Revenue Account,Council Dwelling Adaptations,08-Sep-22,5105833086,Rexel UK Ltd,"4,197.91"
Manchester City Council,Chief Executives,Postage,08-Sep-22,5105832239,Royal Mail Group Plc,507.84
Manchester City Council,Regeneration Finance,Licences Purchase,08-Sep-22,5105832637,Rushton Electronic Solutions Ltd,"11,596.67"
Manchester City Council,Corporate Services,Legal Fees,08-Sep-22,1907871623,Satchell Moran Solicitors,"1,010.00"
Manchester City Council,Corporate Services,Legal Fees,08-Sep-22,1907865981,Satchell Moran Solicitors,875.00
Manchester City Council,Childrens & Education Services,Electricity,08-Sep-22,1907872422,Scottish & Southern Energy Plc,"10,911.07"
Manchester City Council,Childrens & Education Services,Electricity,08-Sep-22,1907872421,Scottish & Southern Energy Plc,"10,529.73"
Manchester City Council,Hospitality + Trading Services,Electricity,08-Sep-22,1907872371,Scottish & Southern Energy Plc,"8,112.70"
Manchester City Council,Hospitality + Trading Services,Electricity,08-Sep-22,1907872372,Scottish & Southern Energy Plc,"8,112.70"
Manchester City Council,Manchester Leisure,Electricity,08-Sep-22,1907872331,Scottish & Southern Energy Plc,"5,300.23"
Manchester City Council,Hospitality + Trading Services,Electricity,08-Sep-22,1907872319,Scottish & Southern Energy Plc,"4,373.64"
Manchester City Council,Regeneration Finance,Electricity,08-Sep-22,1907872445,Scottish & Southern Energy Plc,"3,892.64"
Manchester City Council,Regeneration Finance,Electricity,08-Sep-22,1907872482,Scottish & Southern Energy Plc,"3,728.14"
Manchester City Council,Manchester Leisure,Electricity,08-Sep-22,1907872406,Scottish & Southern Energy Plc,"3,296.66"
Manchester City Council,Hospitality + Trading Services,Electricity,08-Sep-22,1907872321,Scottish & Southern Energy Plc,"3,270.73"
Manchester City Council,Regeneration Finance,Electricity,08-Sep-22,1907872461,Scottish & Southern Energy Plc,"2,882.12"
Manchester City Council,Regeneration Finance,Electricity,08-Sep-22,1907872481,Scottish & Southern Energy Plc,"2,595.77"
Manchester City Council,Hospitality + Trading Services,Electricity,08-Sep-22,1907872320,Scottish & Southern Energy Plc,"2,476.43"
Manchester City Council,Manchester Leisure,Electricity,08-Sep-22,1907872351,Scottish & Southern Energy Plc,"2,104.90"
Manchester City Council,Regeneration Finance,Electricity,08-Sep-22,1907872358,Scottish & Southern Energy Plc,"1,852.42"
Manchester City Council,Regeneration Finance,Electricity,08-Sep-22,1907872390,Scottish & Southern Energy Plc,"1,724.96"
Manchester City Council,Hospitality + Trading Services,Electricity,08-Sep-22,1907872318,Scottish & Southern Energy Plc,"1,608.43"
Manchester City Council,Regeneration Finance,Electricity,08-Sep-22,1907872419,Scottish & Southern Energy Plc,"1,566.58"
Manchester City Council,Manchester Leisure,Electricity,08-Sep-22,1907872455,Scottish & Southern Energy Plc,"1,553.79"
Manchester City Council,Regeneration Finance,Electricity,08-Sep-22,1907872504,Scottish & Southern Energy Plc,"1,519.91"
Manchester City Council,Regeneration Finance,Electricity,08-Sep-22,1907872400,Scottish & Southern Energy Plc,"1,502.79"
Manchester City Council,Manchester Leisure,Electricity,08-Sep-22,1907872324,Scottish & Southern Energy Plc,"1,441.59"
Manchester City Council,Regeneration Finance,Electricity,08-Sep-22,1907872335,Scottish & Southern Energy Plc,"1,420.04"
Manchester City Council,Manchester Leisure,Electricity,08-Sep-22,1907872308,Scottish & Southern Energy Plc,"1,405.69"
Manchester City Council,Manchester Leisure,Electricity,08-Sep-22,1907872458,Scottish & Southern Energy Plc,"1,336.82"
Manchester City Council,Manchester Leisure,Electricity,08-Sep-22,1907872332,Scottish & Southern Energy Plc,"1,287.78"
Manchester City Council,Manchester Leisure,Electricity,08-Sep-22,1907872370,Scottish & Southern Energy Plc,"1,217.15"
Manchester City Council,Adult Social Care,Electricity,08-Sep-22,1907872437,Scottish & Southern Energy Plc,"1,198.48"
Manchester City Council,Manchester Leisure,Electricity,08-Sep-22,1907872378,Scottish & Southern Energy Plc,"1,181.41"
Manchester City Council,Highways Services,Electricity,08-Sep-22,1907872471,Scottish & Southern Energy Plc,"1,161.93"
Manchester City Council,Regeneration Finance,Electricity,08-Sep-22,1907872424,Scottish & Southern Energy Plc,"1,156.30"
Manchester City Council,Adult Social Care,Electricity,08-Sep-22,1907872374,Scottish & Southern Energy Plc,"1,122.46"
Manchester City Council,Adult Social Care,Electricity,08-Sep-22,1907872373,Scottish & Southern Energy Plc,"1,119.19"
Manchester City Council,Manchester Leisure,Electricity,08-Sep-22,1907872462,Scottish & Southern Energy Plc,"1,069.09"
Manchester City Council,Regeneration Finance,Electricity,08-Sep-22,1907872438,Scottish & Southern Energy Plc,"1,051.58"
Manchester City Council,Manchester Leisure,Electricity,08-Sep-22,1907872456,Scottish & Southern Energy Plc,"1,041.39"
Manchester City Council,Regeneration Finance,Electricity,08-Sep-22,1907872506,Scottish & Southern Energy Plc,"1,023.95"
Manchester City Council,Manchester Leisure,Electricity,08-Sep-22,1907872307,Scottish & Southern Energy Plc,972.18
Manchester City Council,Regeneration Finance,Electricity,08-Sep-22,1907872435,Scottish & Southern Energy Plc,968.55
Manchester City Council,Regeneration Finance,Electricity,08-Sep-22,1907872429,Scottish & Southern Energy Plc,929.05
Manchester City Council,Regeneration Finance,Electricity,08-Sep-22,1907872367,Scottish & Southern Energy Plc,896.48
Manchester City Council,Manchester Leisure,Electricity,08-Sep-22,1907872377,Scottish & Southern Energy Plc,893.89
Manchester City Council,Regeneration Finance,Electricity,08-Sep-22,1907872499,Scottish & Southern Energy Plc,873.50
Manchester City Council,Regeneration Finance,Electricity,08-Sep-22,1907872343,Scottish & Southern Energy Plc,862.65
Manchester City Council,Adult Social Care,Electricity,08-Sep-22,1907872297,Scottish & Southern Energy Plc,856.36
Manchester City Council,Corporate Services,Electricity,08-Sep-22,1907872302,Scottish & Southern Energy Plc,849.72
Manchester City Council,Regeneration Finance,Electricity,08-Sep-22,1907872446,Scottish & Southern Energy Plc,846.46
Manchester City Council,Regeneration Finance,Electricity,08-Sep-22,1907872383,Scottish & Southern Energy Plc,805.57
Manchester City Council,Manchester Leisure,Electricity,08-Sep-22,1907872376,Scottish & Southern Energy Plc,786.98
Manchester City Council,Manchester Leisure,Electricity,08-Sep-22,1907872310,Scottish & Southern Energy Plc,767.75
Manchester City Council,Manchester Leisure,Electricity,08-Sep-22,1907872434,Scottish & Southern Energy Plc,754.76
Manchester City Council,Manchester Leisure,Electricity,08-Sep-22,1907872379,Scottish & Southern Energy Plc,734.31
Manchester City Council,Regeneration Finance,Electricity,08-Sep-22,1907872501,Scottish & Southern Energy Plc,720.39
Manchester City Council,Manchester Leisure,Electricity,08-Sep-22,1907872311,Scottish & Southern Energy Plc,718.42
Manchester City Council,Manchester Leisure,Electricity,08-Sep-22,1907872397,Scottish & Southern Energy Plc,712.96
Manchester City Council,Childrens & Education Services,Electricity,08-Sep-22,1907872457,Scottish & Southern Energy Plc,688.40
Manchester City Council,Manchester Leisure,Electricity,08-Sep-22,1907872415,Scottish & Southern Energy Plc,684.78
Manchester City Council,Manchester Leisure,Electricity,08-Sep-22,1907872427,Scottish & Southern Energy Plc,662.74
Manchester City Council,Adult Social Care,Electricity,08-Sep-22,1907872315,Scottish & Southern Energy Plc,660.72
Manchester City Council,Adult Social Care,Electricity,08-Sep-22,1907872420,Scottish & Southern Energy Plc,641.94
Manchester City Council,Regeneration Finance,Electricity,08-Sep-22,1907872417,Scottish & Southern Energy Plc,622.09
Manchester City Council,Adult Social Care,Electricity,08-Sep-22,1907872300,Scottish & Southern Energy Plc,617.19
Manchester City Council,Manchester Leisure,Electricity,08-Sep-22,1907872494,Scottish & Southern Energy Plc,613.26
Manchester City Council,Highways Services,Electricity,08-Sep-22,1907872470,Scottish & Southern Energy Plc,609.75
Manchester City Council,Regeneration Finance,Electricity,08-Sep-22,1907872480,Scottish & Southern Energy Plc,606.43
Manchester City Council,Hospitality + Trading Services,Electricity,08-Sep-22,1907872342,Scottish & Southern Energy Plc,602.07
Manchester City Council,Regeneration Finance,Electricity,08-Sep-22,1907872385,Scottish & Southern Energy Plc,596.18
Manchester City Council,Childrens & Education Services,Electricity,08-Sep-22,1907872392,Scottish & Southern Energy Plc,595.50
Manchester City Council,Regeneration Finance,Electricity,08-Sep-22,1907872401,Scottish & Southern Energy Plc,593.34
Manchester City Council,Manchester Leisure,Electricity,08-Sep-22,1907872364,Scottish & Southern Energy Plc,588.09
Manchester City Council,Adult Social Care,Electricity,08-Sep-22,1907872303,Scottish & Southern Energy Plc,575.44
Manchester City Council,Adult Social Care,Electricity,08-Sep-22,1907872497,Scottish & Southern Energy Plc,573.96
Manchester City Council,Manchester Leisure,Electricity,08-Sep-22,1907872395,Scottish & Southern Energy Plc,573.35
Manchester City Council,Regeneration Finance,Electricity,08-Sep-22,1907872502,Scottish & Southern Energy Plc,571.12
Manchester City Council,Adult Social Care,Electricity,08-Sep-22,1907872329,Scottish & Southern Energy Plc,553.66
Manchester City Council,Adult Social Care,Electricity,08-Sep-22,1907872325,Scottish & Southern Energy Plc,545.44
Manchester City Council,Childrens & Education Services,Electricity,08-Sep-22,1907872452,Scottish & Southern Energy Plc,526.56
Manchester City Council,Highways Services,Electricity,08-Sep-22,1907872476,Scottish & Southern Energy Plc,523.81
Manchester City Council,Adult Social Care,Electricity,08-Sep-22,1907872498,Scottish & Southern Energy Plc,515.27
Manchester City Council,Childrens & Education Services,Electricity,08-Sep-22,1907872425,Scottish & Southern Energy Plc,513.05
Manchester City Council,Regeneration Finance,Electricity,08-Sep-22,1907872409,Scottish & Southern Energy Plc,512.28
Manchester City Council,Regeneration Finance,Electricity,08-Sep-22,1907872336,Scottish & Southern Energy Plc,506.39
Manchester City Council,Hospitality + Trading Services,Electricity,08-Sep-22,1700138725,Scottish & Southern Energy Plc,-849.11
Manchester City Council,Childrens & Education Services,Electricity,08-Sep-22,1700138727,Scottish & Southern Energy Plc,"-1,027.91"
Manchester City Council,Hospitality + Trading Services,Electricity,08-Sep-22,1700138726,Scottish & Southern Energy Plc,"-10,805.11"
Manchester City Council,Hospitality + Trading Services,Electricity,08-Sep-22,1700138724,Scottish & Southern Energy Plc,"-10,833.91"
Manchester City Council,Regeneration Finance,External repairs and maintenance for buildings,08-Sep-22,1907863000,Sedgwick International UK,585.00
Manchester City Council,Adult Social Care,Third party payments relating to Voluntary Organisations,08-Sep-22,5105833112,Shared Habitat Limited,"1,685.00"
Manchester City Council,Housing Revenue Account,Council Dwelling Fees,08-Sep-22,5105833064,Shield Environmental Services,795.00
Manchester City Council,Hospitality + Trading Services,Refuse Collection,08-Sep-22,5105832870,Siemens Financial Services Ltd,"1,093.97"
Manchester City Council,Manchester Leisure,Goods purchased for resale in Council outlets,08-Sep-22,5105833114,Stuart Gardiner Design Ltd,527.50
Manchester City Council,Chief Executives,Telecoms Maintenance,08-Sep-22,5105833063,T.I.S. Limited,539.00
Manchester City Council,Chief Executives,Data Links,08-Sep-22,5105833037,The Networking People (TNP) Ltd,"1,896.36"
Manchester City Council,Chief Executives,Vehicle Plant Furniture and Equipment,08-Sep-22,5105832980,The Networking People (TNP) Ltd,"7,578.57"
Manchester City Council,Chief Executives,Vehicle Plant Furniture and Equipment,08-Sep-22,5105833034,The Networking People (TNP) Ltd,"2,705.00"
Manchester City Council,Childrens & Education Services,Electricity,08-Sep-22,1907872516,Total Gas & Power,700.07
Manchester City Council,Highways Services,Building Materials for direct delivery,08-Sep-22,5105833099,Viewprint,560.00
Manchester City Council,Adult Social Care,Water - Unmetered,08-Sep-22,1907872517,Water Plus Limited,718.30
Manchester City Council,Manchester Leisure,Grant and subscriptions awarded,08-Sep-22,5105833118,Withington Village Regen,"5,000.00"
Manchester City Council,Chief Executives,Counsel Costs,09-Sep-22,1907872846,18 St John Street Chambers,650.00
Manchester City Council,Adult Social Care,Rents,09-Sep-22,5105832286,Accommodation Links Ltd,"91,705.14"
Manchester City Council,Corporate Services,Training and Development,09-Sep-22,1907873188,ACT NOW TRAINING LIMIT,"1,290.00"
Manchester City Council,Corporate Services,Training and Development,09-Sep-22,1907873202,ACT NOW TRAINING LIMIT,"1,290.00"
Manchester City Council,Highways Services,Private Finance and Public Private partnership initiatives,09-Sep-22,5105833102,Amey Highways Lighting (Manchester),"797,464.79"
Manchester City Council,Chief Executives,Grant and subscriptions awarded,09-Sep-22,1907873023,ASANA.COM,"5,694.00"
Manchester City Council,Childrens & Education Services,Professional fees,09-Sep-22,5105833201,Barnardo Services Ltd (Essex),"10,878.00"
Manchester City Council,Childrens & Education Services,Professional fees,09-Sep-22,5105833202,Barnardo Services Ltd (Essex),"10,878.00"
Manchester City Council,Childrens & Education Services,Payments for services,09-Sep-22,5105833069,Belmont School Ltd,"12,889.35"
Manchester City Council,Manchester Leisure,Contract Cleaning External,09-Sep-22,5105832450,Biffa Municipal Limited,"-20,726.33"
Manchester City Council,Manchester Leisure,Reuse credits,09-Sep-22,5105832939,Biffa Municipal Limited,"15,500.01"
Manchester City Council,Manchester Leisure,Payments to Contractors,09-Sep-22,5105832934,Biffa Municipal Limited,"138,174.67"
Manchester City Council,Manchester Leisure,Refuse Collection,09-Sep-22,5105832930,Biffa Municipal Limited,"1,110,323.54"
Manchester City Council,Hospitality + Trading Services,Refuse Collection,09-Sep-22,5105832935,Biffa Municipal Limited,"113,036.99"
Manchester City Council,Manchester Leisure,Refuse Collection,09-Sep-22,5105832933,Biffa Municipal Limited,"87,994.52"
Manchester City Council,Manchester Leisure,Refuse Collection,09-Sep-22,5105832932,Biffa Municipal Limited,"87,139.44"
Manchester City Council,Manchester Leisure,Refuse Collection,09-Sep-22,5105832936,Biffa Municipal Limited,"81,666.60"
Manchester City Council,Manchester Leisure,Refuse Collection,09-Sep-22,5105832938,Biffa Municipal Limited,"65,008.47"
Manchester City Council,Chief Executives,Works and associated costs for Land and Buildings,09-Sep-22,5105833122,Building Design Partnership Limited,"77,719.52"
Manchester City Council,Chief Executives,Counsel Costs,09-Sep-22,1907872857,Central Chambers,"1,000.00"
Manchester City Council,Chief Executives,Counsel Costs,09-Sep-22,1907871898,Central Chambers,550.00
Manchester City Council,Chief Executives,Counsel Costs,09-Sep-22,1907871920,Central Chambers,550.00
Manchester City Council,Chief Executives,Counsel Costs,09-Sep-22,1907871919,Central Chambers,500.00
Manchester City Council,Manchester Leisure,Grant and subscriptions awarded,09-Sep-22,5105833181,Chorlton on Medlock Allotment Soc,"5,000.00"
Manchester City Council,Chief Executives,Publications,09-Sep-22,1907872959,CLOUD JWX92Q,643.83
Manchester City Council,Manchester Leisure,Professional fees,09-Sep-22,5105833240,Creative Tourist Limited,"1,660.00"
Manchester City Council,Manchester Leisure,Equipment,09-Sep-22,1907873067,CSM - ECOM,"5,992.80"
Manchester City Council,Childrens & Education Services,"Consumable items eg Toilet rolls, soap etc",09-Sep-22,1907873006,CURRYS ONLINE,504.00
Manchester City Council,Manchester Leisure,"Consumable items eg Toilet rolls, soap etc",09-Sep-22,1907873001,CUT MY PLASTIC,"1,001.70"
Manchester City Council,Manchester Leisure,Responsive Repairs Work,09-Sep-22,5105832790,EQUANS Regeneration Limited,"4,409.23"
Manchester City Council,Chief Executives,Advertising,09-Sep-22,1907872951,Facebook (CARD ONLY),655.62
Manchester City Council,Childrens & Education Services,Contract Cleaning External,09-Sep-22,5105833239,Family Action,"-1,650.84"
Manchester City Council,Manchester Leisure,Works and associated costs for Land and Buildings,09-Sep-22,5105833156,Flowprotect Ltd,"16,995.00"
Manchester City Council,Manchester Leisure,Works and associated costs for Land and Buildings,09-Sep-22,5105833154,Flowprotect Ltd,"1,595.00"
Manchester City Council,Adult Social Care,"Consumable items eg Toilet rolls, soap etc",09-Sep-22,1907872973,GBUK HEALTHCARE,"5,466.51"
Manchester City Council,Adult Social Care,Third party payments relating to Voluntary Organisations,09-Sep-22,5105833182,Great Places Housing Association,"120,581.88"
Manchester City Council,Childrens & Education Services,"Consumable items eg Toilet rolls, soap etc",09-Sep-22,1907873186,HMCTS BOLTON082W,500.00
Manchester City Council,Chief Executives,Vehicle Plant Furniture and Equipment,09-Sep-22,5105833147,Insight Direct (Uk) Ltd,"25,078.00"
Manchester City Council,Housing Revenue Account,Council Dwelling Adaptations,09-Sep-22,5105833186,"Jackson, Jackson & Sons Ltd","288,913.98"
Manchester City Council,Housing Revenue Account,Council Dwelling Adaptations,09-Sep-22,5105833210,"Jackson, Jackson & Sons Ltd","42,451.00"
Manchester City Council,Manchester Leisure,"Consumable items eg Toilet rolls, soap etc",09-Sep-22,1907873075,JESSOPSMOTO,"1,181.49"
Manchester City Council,Manchester Leisure,Signers/Interpreters,09-Sep-22,1907873247,LINK UP MITAKA LTD,569.23
Manchester City Council,Corporate Services,Professional fees,09-Sep-22,5105832997,Lucion Environmental Ltd,"1,325.34"
Manchester City Council,Manchester Leisure,"Consumable items eg Toilet rolls, soap etc",09-Sep-22,1907873221,LYONS PRESENTATION,768.00
Manchester City Council,Childrens & Education Services,"Consumable items eg Toilet rolls, soap etc",09-Sep-22,1907873282,MANOMANO,505.19
Manchester City Council,Manchester Leisure,Rents,09-Sep-22,1907871903,Mason Owen Property,"8,250.00"
Manchester City Council,Chief Executives,Professional fees,09-Sep-22,1907872866,Medico-Legal North West,540.00
Manchester City Council,Chief Executives,Counsel Costs,09-Sep-22,1907872135,Navpreeth Kaur Gihair,"2,816.67"
Manchester City Council,Childrens & Education Services,Training and Development,09-Sep-22,5105833187,One Education Ltd,"99,000.00"
Manchester City Council,Highways Services,Professional fees,09-Sep-22,5105831779,Pell Frischmann Consultants Ltd,"4,823.75"
Manchester City Council,Highways Services,Professional fees,09-Sep-22,5105832762,Pell Frischmann Consultants Ltd,"2,199.98"
Manchester City Council,Corporate Services,Works and associated costs for Land and Buildings,09-Sep-22,5105833081,Pell Frischmann Consultants Ltd,"20,000.00"
Manchester City Council,Adult Social Care,Payments for services,09-Sep-22,5105833082,Potensial Ltd (T/A Potens),"54,491.92"
Manchester City Council,Adult Social Care,Personal needs of client,09-Sep-22,5105833173,Prism Medical UK Carefree Division,-559.68
Manchester City Council,Chief Executives,Counsel Costs,09-Sep-22,1907872140,Redacted Personal Information,750.00
Manchester City Council,Chief Executives,Counsel Costs,09-Sep-22,1907872850,Redacted Personal Information,"1,208.33"
Manchester City Council,Chief Executives,Counsel Costs,09-Sep-22,1907872139,Redacted Personal Information,550.00
Manchester City Council,Chief Executives,Counsel Costs,09-Sep-22,1907871912,Redacted Personal Information,650.00
Manchester City Council,Chief Executives,Counsel Costs,09-Sep-22,1907872865,Redacted Personal Information,650.00
Manchester City Council,Chief Executives,Payments to Sub-Contractors,09-Sep-22,5105833200,Redacted Personal Information,594.05
Manchester City Council,Chief Executives,Payments to Sub-Contractors,09-Sep-22,5105833241,Redacted Personal Information,665.00
Manchester City Council,Manchester Leisure,Professional fees,09-Sep-22,1907871896,Redacted personal information,500.00
Manchester City Council,Regeneration Finance,Refuse Collection,09-Sep-22,5105833185,Restore Datashred Limited,550.37
Manchester City Council,Regeneration Finance,Refuse Collection,09-Sep-22,5105833209,Restore Datashred Limited,524.16
Manchester City Council,Highways Services,Payments to Sub-Contractors,09-Sep-22,5105833198,Rhodes and Sons Construction Ltd,773.84
Manchester City Council,Highways Services,Building Materials for direct delivery,09-Sep-22,5105833013,Rosgal Ltd,"1,500.00"
Manchester City Council,Highways Services,Building Materials for direct delivery,09-Sep-22,5105833016,Rosgal Ltd,"1,500.00"
Manchester City Council,Highways Services,Building Materials for direct delivery,09-Sep-22,5105833018,Rosgal Ltd,"1,500.00"
Manchester City Council,Highways Services,Building Materials for direct delivery,09-Sep-22,5105833019,Rosgal Ltd,"1,500.00"
Manchester City Council,Highways Services,Building Materials for direct delivery,09-Sep-22,5105833020,Rosgal Ltd,"1,500.00"
Manchester City Council,Highways Services,Payments to Sub-Contractors,09-Sep-22,5105833184,Rosgal Ltd,"-5,709.43"
Manchester City Council,Insurance Fund,Insurance,09-Sep-22,1907873458,Scott Rees & Co,"1,128.48"
Manchester City Council,Highways Services,Legal Fees,09-Sep-22,1907873458,Scott Rees & Co,"9,350.25"
Manchester City Council,Manchester Leisure,"Consumable items eg Toilet rolls, soap etc",09-Sep-22,1907873194,SHOPIFY* 149462711,796.33
Manchester City Council,Hospitality + Trading Services,Equipment,09-Sep-22,1907872932,Stapletons Tyre Services,"5,410.14"
Manchester City Council,Hospitality + Trading Services,Equipment,09-Sep-22,1907872945,Stapletons Tyre Services,"3,390.27"
Manchester City Council,Chief Executives,Subsistence and Conference Expenses,09-Sep-22,1907873274,STAYCITY CORN EXCHANGE,543.51
Manchester City Council,Childrens & Education Services,Foster Payments,09-Sep-22,1907873453,Stephanie Jozefczyk,"6,139.43"
Manchester City Council,Manchester Leisure,Special Event,09-Sep-22,5105833262,Street Style Surgery,"1,055.00"
Manchester City Council,Regeneration Finance,Rents,09-Sep-22,1907863575,The Arch Company Properties Ltd,"10,909.50"
Manchester City Council,Manchester Leisure,Equipment,09-Sep-22,1907873065,THE MIDLAND FRONT DESK,"1,157.10"
Manchester City Council,Manchester Leisure,"Consumable items eg Toilet rolls, soap etc",09-Sep-22,1907873005,THE TINY BOX COMPANY LIMI,706.32
Manchester City Council,Adult Social Care,"Consumable items eg Toilet rolls, soap etc",09-Sep-22,1907873041,TRAFFORD PARK DAIRY,"1,084.66"
Manchester City Council,Chief Executives,Agency staff provision,09-Sep-22,5105833090,Triad Resourcing,"5,040.00"
Manchester City Council,Adult Social Care,Personal needs of client,09-Sep-22,5105832455,Tunstall Healthcare (UK) Ltd,"10,228.57"
Manchester City Council,Adult Social Care,Personal needs of client,09-Sep-22,5105832454,Tunstall Healthcare (UK) Ltd,"6,823.50"
Manchester City Council,Manchester Leisure,Environmental Services,09-Sep-22,1907873236,VALUE PRODUCTS LTD,702.25
Manchester City Council,Manchester Leisure,Environmental Services,09-Sep-22,1907873122,VALUE PRODUCTS LTD,561.88
Manchester City Council,Corporate Services,Legal Fees,09-Sep-22,1907873361,VERITAS SOLICITORS,"1,500.00"
Manchester City Council,Childrens & Education Services,Personal needs of client,09-Sep-22,1907872965,VICTORIA PARK  RE,"1,050.00"
Manchester City Council,Childrens & Education Services,Personal needs of client,09-Sep-22,1907873090,VICTORIA PARK  RE,"1,050.00"
Manchester City Council,Childrens & Education Services,Personal needs of client,09-Sep-22,1907873185,VICTORIA PARK  RE,"1,050.00"
Manchester City Council,Regeneration Finance,Taxi Vehicle Materia,09-Sep-22,5105832494,VIP-System Ltd,"2,520.75"
Manchester City Council,Chief Executives,General Office expenses,09-Sep-22,1907872928,VMO,840.00
Manchester City Council,Chief Executives,Printing,09-Sep-22,5105832987,Wallace Printers Ltd,"1,388.00"
Manchester City Council,Corporate Services,Legal Fees,09-Sep-22,1907873363,WEIGHTMANS SOLICITORS,"1,500.00"
Manchester City Council,Childrens & Education Services,"Consumable items eg Toilet rolls, soap etc",09-Sep-22,1907873009,WILDE APARTHOTELS BY STAY,"1,332.25"
Manchester City Council,Environment and Operations,Construction Works,09-Sep-22,5105832769,Wilde Consultants Ltd,"6,234.37"
Manchester City Council,Environment and Operations,Construction Works,09-Sep-22,5105832766,Wilde Consultants Ltd,"1,293.14"
Manchester City Council,Environment and Operations,Construction Works,09-Sep-22,5105832768,Wilde Consultants Ltd,"-2,649.00"
Manchester City Council,Environment and Operations,Construction Works,09-Sep-22,5105832764,Wilde Consultants Ltd,"-5,353.36"
Manchester City Council,Manchester Leisure,"Consumable items eg Toilet rolls, soap etc",09-Sep-22,5105832563,Wilkinson Bros,800.00
Manchester City Council,Manchester Leisure,Hire of Equipment,09-Sep-22,5105833192,William G.Search Ltd,"8,230.00"
Manchester City Council,Hospitality + Trading Services,Vehicle Hire Costs,09-Sep-22,5105833199,Winners Contract Hire Ltd,"69,856.90"
Manchester City Council,Childrens & Education Services,"Consumable items eg Toilet rolls, soap etc",09-Sep-22,1907872946,WWW.LUXINN.CO.UK,"1,160.00"
Manchester City Council,Childrens & Education Services,"Consumable items eg Toilet rolls, soap etc",09-Sep-22,1907873022,WWW.LUXINN.CO.UK,"1,160.00"
Manchester City Council,Childrens & Education Services,"Consumable items eg Toilet rolls, soap etc",09-Sep-22,1907873149,WWW.LUXINN.CO.UK,"1,160.00"
Manchester City Council,Childrens & Education Services,"Consumable items eg Toilet rolls, soap etc",09-Sep-22,1907873269,WWW.LUXINN.CO.UK,"1,160.00"
Manchester City Council,Childrens & Education Services,Professional fees,12-Sep-22,5105833312,AECOM Limited,"7,706.00"
Manchester City Council,Childrens & Education Services,Professional fees,12-Sep-22,5105833313,AECOM Limited,"5,001.00"
Manchester City Council,Adult Social Care,Rents,12-Sep-22,5105833287,Amco Management,"32,966.29"
Manchester City Council,Manchester Leisure,Building Materials for direct delivery,12-Sep-22,5105833508,Arco Group Ltd,710.90
Manchester City Council,Adult Social Care,Equipment,12-Sep-22,5105833489,Arco Group Ltd,"1,081.98"
Manchester City Council,Hospitality + Trading Services,ClothsUniformLaundry,12-Sep-22,5105833503,Arco Group Ltd,742.55
Manchester City Council,Highways Services,Purchase of stores for re-distribution,12-Sep-22,5105833479,Benchmark Building Supplies Ltd,"3,852.00"
Manchester City Council,Highways Services,Purchase of stores for re-distribution,12-Sep-22,5105833478,Benchmark Building Supplies Ltd,503.59
Manchester City Council,Environment and Operations,Construction Works,12-Sep-22,5105833143,Bethell Construction Ltd,"119,277.73"
Manchester City Council,Environment and Operations,Construction Works,12-Sep-22,5105833144,Bethell Construction Ltd,"116,655.10"
Manchester City Council,Environment and Operations,Construction Works,12-Sep-22,5105833142,Bethell Construction Ltd,"112,756.36"
Manchester City Council,Environment and Operations,Construction Works,12-Sep-22,5105833141,Bethell Construction Ltd,"35,259.20"
Manchester City Council,Manchester Leisure,Refuse Collection,12-Sep-22,5105832955,Biffa Municipal Limited,"87,157.42"
Manchester City Council,Adult Social Care,Payments for services,12-Sep-22,5105832302,Brook,"42,891.49"
Manchester City Council,Chief Executives,Agency staff provision,12-Sep-22,5105832539,Capita Resourcing Limited,"3,237.50"
Manchester City Council,Chief Executives,Counsel Costs,12-Sep-22,1907872895,Central Chambers,650.00
Manchester City Council,Chief Executives,Counsel Costs,12-Sep-22,1907873109,Central Chambers,500.00
Manchester City Council,Chief Executives,Expenditure re Internal Trading Ordered Externally,12-Sep-22,5105833107,Civica Election Services,"6,234.89"
Manchester City Council,Adult Social Care,Legal Fees,12-Sep-22,1907863008,Clearwater Solicitors Ltd,"10,000.00"
Manchester City Council,Manchester Leisure,Payments to Sub-Contractors,12-Sep-22,5105833482,Community Security (North West),"3,532.40"
Manchester City Council,Manchester Leisure,Payments to Sub-Contractors,12-Sep-22,5105833483,Community Security (North West),"3,364.90"
Manchester City Council,Manchester Leisure,Security,12-Sep-22,5105833399,Community Security (North West),"4,044.71"
Manchester City Council,Manchester Leisure,Security,12-Sep-22,5105833406,Community Security (North West),"4,044.71"
Manchester City Council,Manchester Leisure,Security,12-Sep-22,5105833395,Community Security (North West),"1,886.40"
Manchester City Council,Chief Executives,CRB Fees,12-Sep-22,5105833308,Complete Background Screening Ltd,714.00
Manchester City Council,Chief Executives,CRB Fees,12-Sep-22,5105833309,Complete Background Screening Ltd,696.00
Manchester City Council,Chief Executives,Licences Purchase,12-Sep-22,5105833307,Complete Background Screening Ltd,"1,800.00"
Manchester City Council,Childrens & Education Services,Agency staff provision,12-Sep-22,5105833285,Coram Children's Legal Centre,647.75
Manchester City Council,Regeneration Finance,I T Provision,12-Sep-22,5105833275,Cornerstone Design and Marketing,"9,385.91"
Manchester City Council,Adult Social Care,Legal Fees,12-Sep-22,1907863005,Cosgrove Costing Ltd,624.00
Manchester City Council,Adult Social Care,Rents,12-Sep-22,5105833223,Cromwood Ltd,"108,048.20"
Manchester City Council,Corporate Services,Vehicle Costs,12-Sep-22,1907874165,Cyclescheme Ltd,"7,679.57"
Manchester City Council,Corporate Services,Vehicle Costs,12-Sep-22,1907874136,Cyclescheme Ltd,"4,453.33"
Manchester City Council,Corporate Services,Vehicle Costs,12-Sep-22,1700138739,Cyclescheme Ltd,-833.33
Manchester City Council,Adult Social Care,Extra Care Sheltd HP,12-Sep-22,5105833296,DH Homecare Ltd (Direct Health),"39,159.31"
Manchester City Council,Adult Social Care,Extra Care Sheltd HP,12-Sep-22,5105833298,DH Homecare Ltd (Direct Health),"39,159.31"
Manchester City Council,Adult Social Care,Extra Care Sheltd HP,12-Sep-22,5105833292,DH Homecare Ltd (Direct Health),"23,799.74"
Manchester City Council,Adult Social Care,Extra Care Sheltd HP,12-Sep-22,5105833293,DH Homecare Ltd (Direct Health),"23,799.74"
Manchester City Council,Chief Executives,CRB Fees,12-Sep-22,5105833310,Disclosure & Barring Service,"16,328.00"
Manchester City Council,Adult Social Care,Legal Fees,12-Sep-22,1907864299,Dr R O�Donavan Medicolegal Ltd,"1,307.00"
Manchester City Council,Adult Social Care,Rents,12-Sep-22,5105833295,Eeven Homes Ltd.,"13,363.22"
Manchester City Council,Manchester Leisure,Works and associated costs for Land and Buildings,12-Sep-22,5105832468,EQUANS Regeneration Limited,"260,139.40"
Manchester City Council,Regeneration Finance,Internal Repairs and Maintenance for buildings,12-Sep-22,5105832465,EQUANS Services Limited,"121,407.02"
Manchester City Council,Regeneration Finance,Internal Repairs and Maintenance for buildings,12-Sep-22,5105832464,EQUANS Services Limited,"65,369.87"
Manchester City Council,Chief Executives,Grant Payments,12-Sep-22,1907873426,Essential Communications & Media,"2,900.00"
Manchester City Council,Highways Services,Payments to Sub-Contractors,12-Sep-22,5105833089,Fairway Landscapes Ltd,"17,431.00"
Manchester City Council,Housing General Fund,Works and associated costs for Land and Buildings,12-Sep-22,5105833260,Furniture Resource Centre Ltd,"1,382.96"
Manchester City Council,Manchester Leisure,Professional fees,12-Sep-22,5105833311,Go Bounce Play,545.00
Manchester City Council,Manchester Leisure,Professional fees,12-Sep-22,5105833316,Go Bounce Play,544.00
Manchester City Council,Adult Social Care,Supporting People Payments,12-Sep-22,5105833365,Great Places Housing Association,"5,000.00"
Manchester City Council,Adult Social Care,Supporting People Payments,12-Sep-22,5105833366,Great Places Housing Association,"5,000.00"
Manchester City Council,Adult Social Care,Supporting People Payments,12-Sep-22,5105833361,Great Places Housing Association,"1,843.00"
Manchester City Council,Adult Social Care,Supporting People Payments,12-Sep-22,5105833362,Great Places Housing Association,"1,843.00"
Manchester City Council,Adult Social Care,Supporting People Payments,12-Sep-22,5105833363,Great Places Housing Association,"1,843.00"
Manchester City Council,Adult Social Care,Supporting People Payments,12-Sep-22,5105833364,Great Places Housing Association,"1,843.00"
Manchester City Council,Adult Social Care,Funeral and coroner related services,12-Sep-22,5105833356,Greater Manchester Funeral Service,"2,767.00"
Manchester City Council,Adult Social Care,Funeral and coroner related services,12-Sep-22,5105833327,Greater Manchester Funeral Service,"2,693.00"
Manchester City Council,Manchester Leisure,Payments to Sub-Contractors,12-Sep-22,5105833468,Greenfingers Landscape Ltd,"10,750.47"
Manchester City Council,Manchester Leisure,Payments to Sub-Contractors,12-Sep-22,5105833493,Greenfingers Landscape Ltd,"10,750.47"
Manchester City Council,Manchester Leisure,Payments to Sub-Contractors,12-Sep-22,5105833466,Greenfingers Landscape Ltd,"-10,750.47"
Manchester City Council,Manchester Leisure,Payments to Sub-Contractors,12-Sep-22,5105833492,Greenfingers Landscape Ltd,"-10,750.47"
Manchester City Council,Manchester Leisure,Equipment,12-Sep-22,5105832858,Groundwork & Leisure Services Ltd,"3,040.00"
Manchester City Council,Manchester Leisure,Equipment,12-Sep-22,5105832536,Groundwork Landscapes Ltd,"1,650.00"
Manchester City Council,Manchester Leisure,Equipment,12-Sep-22,5105832422,Groundwork Landscapes Ltd,"1,150.00"
Manchester City Council,Manchester Leisure,Equipment,12-Sep-22,5105832537,Groundwork Landscapes Ltd,670.00
Manchester City Council,Hospitality + Trading Services,Hire of Machinery,12-Sep-22,5105833484,H & C Plant Hire Ltd,"3,024.00"
Manchester City Council,Chief Executives,Third party payments relating to Voluntary Organisations,12-Sep-22,5105832466,HOME,"105,699.50"
Manchester City Council,Chief Executives,Professional fees,12-Sep-22,1907873414,Inari Services Ltd,"1,271.60"
Manchester City Council,Chief Executives,Vehicle Plant Furniture and Equipment,12-Sep-22,5105833146,Insight Direct (Uk) Ltd,"25,078.00"
Manchester City Council,Chief Executives,Agency staff provision,12-Sep-22,5105833305,Isherwood Legal Limited,"1,000.00"
Manchester City Council,Environment and Operations,Construction Works,12-Sep-22,5105832867,J.Hopkins (Contractors) Ltd.,603.40
Manchester City Council,Chief Executives,Works and associated costs for Land and Buildings,12-Sep-22,5105833207,Kpmg Llp,"16,000.00"
Manchester City Council,Regeneration Finance,External repairs and maintenance for buildings,12-Sep-22,5105833160,M & M Cleaning Services Ltd,"1,127.00"
Manchester City Council,Highways Services,Professional fees,12-Sep-22,5105832666,Mace Cost Consultancy Ltd,"11,333.32"
Manchester City Council,Corporate Services,Works and associated costs for Land and Buildings,12-Sep-22,5105832988,Mace Ltd,"32,698.00"
Manchester City Council,Corporate Services,Works and associated costs for Land and Buildings,12-Sep-22,5105832988,Mace Ltd,"9,000.00"
Manchester City Council,Corporate Services,Works and associated costs for Land and Buildings,12-Sep-22,5105832988,Mace Ltd,"2,398.50"
Manchester City Council,Corporate Services,Works and associated costs for Land and Buildings,12-Sep-22,5105832988,Mace Ltd,"1,034.50"
Manchester City Council,Corporate Services,Works and associated costs for Land and Buildings,12-Sep-22,5105832988,Mace Ltd,680.00
Manchester City Council,Adult Social Care,Third party payments relating to Voluntary Organisations,12-Sep-22,5105833376,Manchester Carers Centre,"29,167.00"
Manchester City Council,Childrens & Education Services,Professional fees,12-Sep-22,5105833359,Manchester Uni NHS FT Charity,"5,000.00"
Manchester City Council,Housing Revenue Account,Council Dwelling Adaptations,12-Sep-22,5105832985,Master Moves Ltd,"1,556.90"
Manchester City Council,Childrens & Education Services,Professional fees,12-Sep-22,5105833059,MIC Media Ltd,"1,641.00"
Manchester City Council,Childrens & Education Services,Professional fees,12-Sep-22,5105833353,MIC Media Ltd,547.00
Manchester City Council,Childrens & Education Services,Professional fees,12-Sep-22,5105833367,Museum of Science & Industry,"4,524.25"
Manchester City Council,Corporate Services,Payments to Contractors,12-Sep-22,5105833084,NSL Ltd,"302,147.93"
Manchester City Council,Corporate Services,Payments to Contractors,12-Sep-22,5105833083,NSL Ltd,"69,949.18"
Manchester City Council,Manchester Leisure,Payments to Sub-Contractors,12-Sep-22,5105833323,NSL Ltd,"56,321.98"
Manchester City Council,Manchester Leisure,Payments to Sub-Contractors,12-Sep-22,5105833322,NSL Ltd,"3,863.33"
Manchester City Council,Manchester Leisure,Payments to Sub-Contractors,12-Sep-22,5105833214,NSL Ltd,"-3,771.46"
Manchester City Council,Manchester Leisure,Grant and subscriptions awarded,12-Sep-22,1907862993,Nurturing Foundations,750.00
Manchester City Council,Regeneration Finance,General Office expenses,12-Sep-22,5105832978,Ove Arup & Partners Ltd,"1,176.47"
Manchester City Council,Corporate Services,Works and associated costs for Land and Buildings,12-Sep-22,5105832240,Ove Arup & Partners Ltd,"51,017.41"
Manchester City Council,Corporate Services,Works and associated costs for Land and Buildings,12-Sep-22,5105832975,Ove Arup & Partners Ltd,"15,129.60"
Manchester City Council,Corporate Services,Works and associated costs for Land and Buildings,12-Sep-22,5105832977,Ove Arup & Partners Ltd,"4,300.00"
Manchester City Council,Corporate Services,Works and associated costs for Land and Buildings,12-Sep-22,5105832991,Ove Arup & Partners Ltd,"1,712.88"
Manchester City Council,Corporate Services,Works and associated costs for Land and Buildings,12-Sep-22,5105832974,Ove Arup & Partners Ltd,"1,123.88"
Manchester City Council,Manchester Leisure,Payments to Sub-Contractors,12-Sep-22,5105833270,Parking Matters Ltd,"16,883.73"
Manchester City Council,Manchester Leisure,Professional fees,12-Sep-22,5105833281,Parking Matters Ltd,"6,275.00"
Manchester City Council,Corporate Services,Works and associated costs for Land and Buildings,12-Sep-22,5105832989,Planit,"3,360.00"
Manchester City Council,Corporate Services,Professional fees,12-Sep-22,5105833289,Post Office Ltd,"47,949.30"
Manchester City Council,Regeneration Finance,Third party payments relating to Voluntary Organisations,12-Sep-22,5105833304,Pure Innovations Ltd,"41,808.00"
Manchester City Council,Regeneration Finance,Training and Development,12-Sep-22,5105833377,QA Ltd,"1,500.00"
Manchester City Council,Regeneration Finance,Equipment,12-Sep-22,5105831777,Redacted Personal Information,"2,350.00"
Manchester City Council,Chief Executives,Counsel Costs,12-Sep-22,1907872893,Redacted Personal Information,875.00
Manchester City Council,Adult Social Care,Rents,12-Sep-22,1907874222,Redacted personal information,500.00
Manchester City Council,Chief Executives,Payments to Sub-Contractors,12-Sep-22,5105833243,Redacted Personal Information,677.00
Manchester City Council,Regeneration Finance,Removal and Storage of Furniture,12-Sep-22,5105833007,Restore PLC,576.61
Manchester City Council,Housing Revenue Account,Council Dwelling Adaptations,12-Sep-22,5105833098,Rexel UK Ltd,"20,443.34"
Manchester City Council,Highways Services,Payments to Sub-Contractors,12-Sep-22,5105833277,Rosgal Ltd,"7,800.00"
Manchester City Council,Highways Services,Payments to Sub-Contractors,12-Sep-22,5105833280,Rosgal Ltd,"7,800.00"
Manchester City Council,Highways Services,Payments to Sub-Contractors,12-Sep-22,5105833278,Rosgal Ltd,"1,147.50"
Manchester City Council,Highways Services,Payments to Sub-Contractors,12-Sep-22,5105833279,Rosgal Ltd,500.00
Manchester City Council,Chief Executives,Postage,12-Sep-22,5105832971,Royal Mail Group Plc,"23,081.52"
Manchester City Council,Highways Services,Compensation Payments,12-Sep-22,1907874218,Slater Heelis Collier Littler Solic,"12,901.88"
Manchester City Council,Highways Services,Legal Fees,12-Sep-22,1907874218,Slater Heelis Collier Littler Solic,"2,370.22"
Manchester City Council,Adult Social Care,Building Works,12-Sep-22,5105833325,Stepping Stone Projects,"43,228.00"
Manchester City Council,Adult Social Care,Third party payments relating to Voluntary Organisations,12-Sep-22,5105833324,Stepping Stone Projects,"51,875.00"
Manchester City Council,Childrens & Education Services,Third party payments to other Local Authorities,12-Sep-22,5105833317,Stretford Grammar School,"3,256.00"
Manchester City Council,Adult Social Care,Third party payments relating to Voluntary Organisations,12-Sep-22,5105833123,Supporting People In Need,"22,000.00"
Manchester City Council,Manchester Leisure,Grant and subscriptions awarded,12-Sep-22,5105833259,The Common Sense Network,"5,000.00"
Manchester City Council,Adult Social Care,Supporting People Payments,12-Sep-22,5105833284,The Guinness Partnership Ltd,"6,595.00"
Manchester City Council,Highways Services,Compensation Payments,12-Sep-22,1907874220,TPF LAW,"5,000.00"
Manchester City Council,Highways Services,Legal Fees,12-Sep-22,1907874220,TPF LAW,"2,718.00"
Manchester City Council,Environment and Operations,Construction Works,12-Sep-22,5105833318,Transport for Greater Manchester,"2,430.00"
Manchester City Council,Manchester Leisure,Other Allowances,12-Sep-22,1907864357,Tusker Direct,"7,495.07"
Manchester City Council,Adult Social Care,Rents,12-Sep-22,5105832285,United Property Management Ltd,"24,177.26"
Manchester City Council,Highways Services,Legal Fees,13-Sep-22,1907874221,Accountant General of the Senior,"7,910.72"
Manchester City Council,Hospitality + Trading Services,ClothsUniformLaundry,13-Sep-22,5105833501,Arco Group Ltd,742.55
Manchester City Council,Hospitality + Trading Services,ClothsUniformLaundry,13-Sep-22,5105833502,Arco Group Ltd,-742.55
Manchester City Council,Chief Executives,Agency staff provision,13-Sep-22,5105833435,Ashberry Recruitment Ltd,"7,278.18"
Manchester City Council,Childrens & Education Services,Rates,13-Sep-22,5105833472,Brighter Beginnings (Newton Heath),"2,014.96"
Manchester City Council,Childrens & Education Services,Rates,13-Sep-22,5105833471,Brighter Beginnings Day Nursery,677.83
Manchester City Council,Chief Executives,Works and associated costs for Land and Buildings,13-Sep-22,5105833494,Browne Jacobson,"1,671.00"
Manchester City Council,Adult Social Care,"Consumable items eg Toilet rolls, soap etc",13-Sep-22,5105833290,Camilla Carpets Ltd,920.00
Manchester City Council,Corporate Services,Bank Charges,13-Sep-22,1907874568,Capita Business Services Ltd,"10,675.98"
Manchester City Council,Manchester Leisure,Works and associated costs for Land and Buildings,13-Sep-22,5105833230,City Build Manchester Ltd,"20,350.11"
Manchester City Council,Regeneration Finance,Professional fees,13-Sep-22,5105833533,Cityco,"40,000.00"
Manchester City Council,Chief Executives,Landline Telephone,13-Sep-22,1907874226,Daisy Corporate Services Trading,900.60
Manchester City Council,Chief Executives,Agency staff provision,13-Sep-22,5105833433,Deekay Technical Recruitment Ltd,"20,734.99"
Manchester City Council,Hospitality + Trading Services,Refuse Collection,13-Sep-22,5105833459,Equilibrium Finance Limited,"2,944.80"
Manchester City Council,Highways Services,Payments to Sub-Contractors,13-Sep-22,5105833536,Fairway Landscapes Ltd,965.00
Manchester City Council,Childrens & Education Services,Third party payments relating to Voluntary Organisations,13-Sep-22,5105833475,Family Action,"13,075.00"
Manchester City Council,Manchester Leisure,Professional fees,13-Sep-22,1907872891,Fraser George and Associates,"1,400.00"
Manchester City Council,Adult Social Care,Legal Fees,13-Sep-22,5105833454,Gray's Inn Square Chambers Ltd,"2,500.00"
Manchester City Council,Highways Services,Professional fees,13-Sep-22,1907872863,Ground Solve Ltd,"1,540.00"
Manchester City Council,Corporate Services,Works and associated costs for Land and Buildings,13-Sep-22,5105833288,GVA Grimley Ltd,"16,501.74"
Manchester City Council,Adult Social Care,Personal needs of client,13-Sep-22,5105832555,Jenx Ltd,"3,315.00"
Manchester City Council,Chief Executives,Rents,13-Sep-22,5105833711,Manchester Central,-730.92
Manchester City Council,Corporate Services,Works and associated costs for Land and Buildings,13-Sep-22,5105833718,Manchester Central,"3,200.00"
Manchester City Council,Adult Social Care,Grant and subscriptions awarded,13-Sep-22,5105833520,Manchester People First,"36,939.93"
Manchester City Council,Adult Social Care,Grant and subscriptions awarded,13-Sep-22,5105833519,Manchester People First,"20,529.67"
Manchester City Council,Adult Social Care,Grant and subscriptions awarded,13-Sep-22,5105833521,Manchester People First,"6,783.39"
Manchester City Council,Corporate Services,Agency staff provision,13-Sep-22,5105833380,Michael Page International,"1,120.00"
Manchester City Council,Manchester Leisure,Agency staff provision,13-Sep-22,5105833379,Michael Page International,"1,073.00"
Manchester City Council,Childrens & Education Services,Grant Payments,13-Sep-22,1907874567,Paypoint,"10,304.80"
Manchester City Council,Corporate Services,Legal Fees,13-Sep-22,1907874208,Peasegoods,"18,000.00"
Manchester City Council,Corporate Services,Legal Fees,13-Sep-22,1907874561,Peasegoods,"7,600.00"
Manchester City Council,Corporate Services,Professional fees,13-Sep-22,5105833360,Pick Everard,"3,263.04"
Manchester City Council,Adult Social Care,Personal needs of client,13-Sep-22,5105833426,Prism Medical UK Carefree Division,665.00
Manchester City Council,Corporate Services,Works and associated costs for Land and Buildings,13-Sep-22,5105833514,Ramboll UK Limited,"2,972.00"
Manchester City Council,Corporate Services,Works and associated costs for Land and Buildings,13-Sep-22,5105833516,Ramboll UK Limited,"2,000.00"
Manchester City Council,Corporate Services,Works and associated costs for Land and Buildings,13-Sep-22,5105833518,Ramboll UK Limited,"2,000.00"
Manchester City Council,Corporate Services,Works and associated costs for Land and Buildings,13-Sep-22,5105833515,Ramboll UK Limited,"-2,000.00"
Manchester City Council,Corporate Services,Works and associated costs for Land and Buildings,13-Sep-22,5105833517,Ramboll UK Limited,"-2,000.00"
Manchester City Council,Corporate Services,Works and associated costs for Land and Buildings,13-Sep-22,5105833513,Ramboll UK Limited,"-2,972.00"
Manchester City Council,Manchester Leisure,Grant and subscriptions awarded,13-Sep-22,5105833537,Read Easy Wythenshawe,"1,200.00"
Manchester City Council,Housing Revenue Account,Council Dwelling Fees,13-Sep-22,5105833375,Red Co-operative Ltd,"-1,912.50"
Manchester City Council,Housing General Fund,Building Works,13-Sep-22,1907872894,Redacted Personal Information,"1,963.32"
Manchester City Council,Highways Services,Compensation Payments,13-Sep-22,1907873452,Redacted Personal Information,"1,465.00"
Manchester City Council,Adult Social Care,Bed & Breakfast Acc,13-Sep-22,5105833457,Redacted Personal Information,"25,660.00"
Manchester City Council,Hospitality + Trading Services,Legal Fees,13-Sep-22,5105833491,Redacted Personal Information,625.00
Manchester City Council,Hospitality + Trading Services,Advertising,13-Sep-22,1907873440,Redacted Personal Information,"1,600.00"
Manchester City Council,Adult Social Care,Housing Rents Debit,13-Sep-22,1907873424,Redacted Personal Information,961.93
Manchester City Council,Chief Executives,Counsel Costs,13-Sep-22,1907873448,Redacted Personal Information,887.50
Manchester City Council,Chief Executives,Professional fees,13-Sep-22,1907873454,Redacted personal information,550.00
Manchester City Council,Adult Social Care,Training and Development,13-Sep-22,5105833462,Redacted Personal Information,600.00
Manchester City Council,Chief Executives,Postage,13-Sep-22,5105833496,Royal Mail Direct,"2,065.00"
Manchester City Council,Corporate Services,Postage,13-Sep-22,5105833499,Royal Mail Group Plc,"9,086.87"
Manchester City Council,Corporate Services,Postage,13-Sep-22,5105833498,Royal Mail Group Plc,"1,278.87"
Manchester City Council,Manchester Leisure,Security,13-Sep-22,5105833500,Showsec International Ltd,"-1,783.08"
Manchester City Council,Chief Executives,General Office expenses,13-Sep-22,5105833456,Speed Couriers (Northern) Ltd,910.56
Manchester City Council,Corporate Services,Travel Season TLS,13-Sep-22,5105833431,Stagecoach Manchester,600.00
Manchester City Council,Corporate Services,Travel Season TLS,13-Sep-22,5105833432,Stagecoach Manchester,600.00
Manchester City Council,Corporate Services,Travel Season TLS,13-Sep-22,5105833434,Stagecoach Manchester,600.00
Manchester City Council,Corporate Services,Transport Taxis,13-Sep-22,1907874590,Street Cars,"7,195.90"
Manchester City Council,Childrens & Education Services,Professional fees,13-Sep-22,5105833529,The Depaul Trust,"31,824.00"
Manchester City Council,Housing General Fund,Works and associated costs for Land and Buildings,13-Sep-22,1907874596,The Guinness Partnership Ltd,540.00
Manchester City Council,Housing General Fund,Works and associated costs for Land and Buildings,13-Sep-22,1700138742,The Guinness Partnership Ltd,-540.00
Manchester City Council,Chief Executives,Grant and subscriptions awarded,13-Sep-22,5105833452,The Law Society,747.00
Manchester City Council,Adult Social Care,Professional fees,13-Sep-22,5105833197,UNIQUE SPECIALIST SERVICES,"1,377.00"
Manchester City Council,Adult Social Care,Professional fees,13-Sep-22,5105833301,UNIQUE SPECIALIST SERVICES,"1,377.00"
Manchester City Council,Manchester Leisure,Professional fees,13-Sep-22,5105833469,Wythenshawe Forum Trust Ltd,"68,675.00"
Manchester City Council,Chief Executives,I T Provision,13-Sep-22,5105833422,Zipporah Ltd,"2,050.00"
Manchester City Council,Childrens & Education Services,Payments for services,14-Sep-22,5105833664,4CT Limited,"21,925.66"
Manchester City Council,Childrens & Education Services,Payments for services,14-Sep-22,5105833630,A S K Healthcare Ltd,800.00
Manchester City Council,Highways Services,Professional fees,14-Sep-22,5105833619,A T G Access Ltd,"12,045.15"
Manchester City Council,Chief Executives,Agency staff provision,14-Sep-22,5105833874,Access Computer Consulting plc,"10,112.40"
Manchester City Council,Childrens & Education Services,Carer Support Payments ,14-Sep-22,5105833832,Advanced Child Care Assessments,604.50
Manchester City Council,Housing Revenue Account,Council Dwelling Fees,14-Sep-22,5105833610,AECOM Limited,"2,040.00"
Manchester City Council,Childrens & Education Services,Professional fees,14-Sep-22,5105833634,AECOM Limited,"6,079.00"
Manchester City Council,Adult Social Care,Third party payments relating to Voluntary Organisations,14-Sep-22,5105833655,Albert Kennedy Trust,758.33
Manchester City Council,Manchester Leisure,Library Materials Acquisition,14-Sep-22,1907876620,Askews and Holts,741.37
Manchester City Council,Manchester Leisure,Library Materials Acquisition,14-Sep-22,1907876615,Askews and Holts,665.61
Manchester City Council,Manchester Leisure,Library Materials Acquisition,14-Sep-22,1907876631,Askews and Holts,609.91
Manchester City Council,Childrens & Education Services,Furniture,14-Sep-22,5105833789,Back Care Solutions Ltd,734.32
Manchester City Council,Regeneration Finance,Removal and Storage of Furniture,14-Sep-22,5105833648,BCL,"1,380.00"
Manchester City Council,Corporate Services,Works and associated costs for Land and Buildings,14-Sep-22,5105833644,BCL,"2,400.00"
Manchester City Council,Manchester Leisure,Hire of Machinery,14-Sep-22,5105833802,Bradshaw Lawnmover Engineers,"2,436.67"
Manchester City Council,Manchester Leisure,Water - Unmetered,14-Sep-22,1907874134,Business Stream,"1,812.58"
Manchester City Council,Manchester Leisure,Water - Unmetered,14-Sep-22,1907874135,Business Stream,"1,329.82"
Manchester City Council,Corporate Services,I T Provision,14-Sep-22,5105833300,Capita Business Services Ltd,"3,900.00"
Manchester City Council,Adult Social Care,Third party payments to Health Authority,14-Sep-22,5105833549,Central Mcr Uni Hospital t/a,"6,117.54"
Manchester City Council,Adult Social Care,Third party payments to Health Authority,14-Sep-22,5105832860,Central Mcr Uni Hospital t/a,"-6,117.54"
Manchester City Council,Highways Services,Building Materials for direct delivery,14-Sep-22,5105832744,Compass Minerals UK Ltd,"13,369.89"
Manchester City Council,Highways Services,Building Materials for direct delivery,14-Sep-22,5105833580,Compass Minerals UK Ltd,"9,650.37"
Manchester City Council,Highways Services,Building Materials for direct delivery,14-Sep-22,5105832317,Compass Minerals UK Ltd,"8,614.68"
Manchester City Council,Highways Services,Building Materials for direct delivery,14-Sep-22,5105833654,Compass Minerals UK Ltd,"8,521.39"
Manchester City Council,Highways Services,Building Materials for direct delivery,14-Sep-22,5105833061,Compass Minerals UK Ltd,"7,249.87"
Manchester City Council,Highways Services,Building Materials for direct delivery,14-Sep-22,5105833283,Compass Minerals UK Ltd,"7,243.84"
Manchester City Council,Highways Services,Building Materials for direct delivery,14-Sep-22,5105832325,Compass Minerals UK Ltd,"6,089.79"
Manchester City Council,Highways Services,Building Materials for direct delivery,14-Sep-22,5105833575,Compass Minerals UK Ltd,"3,635.73"
Manchester City Council,Highways Services,Legal Fees,14-Sep-22,1907874563,Cordell & Co Solicitors,"3,189.31"
Manchester City Council,Childrens & Education Services,Third party payments to other Local Authorities,14-Sep-22,5105833582,Delamere School,"6,619.10"
Manchester City Council,Adult Social Care,Rents,14-Sep-22,5105833821,District Homes Cic,"62,268.80"
Manchester City Council,Adult Social Care,Equipment,14-Sep-22,5105833807,Drive Devilbiss Healthcare Ltd,516.50
Manchester City Council,Manchester Leisure,Professional fees,14-Sep-22,5105833808,Effusion LLP,"1,356.48"
Manchester City Council,Environment and Operations,Construction Works,14-Sep-22,5105833721,Eric Wright Civil Engineering Limit,"5,826.83"
Manchester City Council,Environment and Operations,Construction Works,14-Sep-22,5105833751,Eric Wright Civil Engineering Limit,"5,826.83"
Manchester City Council,Environment and Operations,Construction Works,14-Sep-22,5105833752,Eric Wright Civil Engineering Limit,"-5,826.83"
Manchester City Council,Hospitality + Trading Services,Hire of Machinery,14-Sep-22,5105833729,F.R.Sharrock Ltd,"29,624.00"
Manchester City Council,Hospitality + Trading Services,Vehicle Hire Costs,14-Sep-22,5105833728,F.R.Sharrock Ltd,"2,444.90"
Manchester City Council,Manchester Leisure,Grant and subscriptions awarded,14-Sep-22,5105833730,Friends of Burnage Library Ltd,520.00
Manchester City Council,Corporate Services,WPS Awards,14-Sep-22,5105833690,Furniture Resource Centre Ltd,720.05
Manchester City Council,Corporate Services,WPS Awards,14-Sep-22,5105833743,Furniture Resource Centre Ltd,635.73
Manchester City Council,Hospitality + Trading Services,Vehicle Hire Costs,14-Sep-22,5105833727,Gibsons Garden Machinery Limited,"19,400.40"
Manchester City Council,Hospitality + Trading Services,Machinery and equipment repairs,14-Sep-22,5105833833,Gibsons Garden Machinery Limited,"1,114.18"
Manchester City Council,Adult Social Care,Third party payments relating to Voluntary Organisations,14-Sep-22,5105833657,Great Places Housing Association,"2,290.00"
Manchester City Council,Adult Social Care,Third party payments relating to Voluntary Organisations,14-Sep-22,5105833680,Greater Manchester Immigration Aid,"8,158.00"
Manchester City Council,Regeneration Finance,Storage Costs,14-Sep-22,5105833768,H.M. Land Registry,"2,333.00"
Manchester City Council,Adult Social Care,Bed & Breakfast Acc,14-Sep-22,5105833829,Hala Guest House,"8,735.00"
Manchester City Council,Corporate Services,Subsistence and Conference Expenses,14-Sep-22,5105833217,I.R.R.V. Services Ltd,585.00
Manchester City Council,Environment and Operations,Construction Works,14-Sep-22,5105833765,J.Hopkins (Contractors) Ltd.,"19,825.44"
Manchester City Council,Environment and Operations,Construction Works,14-Sep-22,5105833766,J.Hopkins (Contractors) Ltd.,"15,082.16"
Manchester City Council,Highways Services,Tipping - Tonnage,14-Sep-22,5105833837,J.Hopkins (Contractors) Ltd.,533.68
Manchester City Council,Regeneration Finance,Professional fees,14-Sep-22,5105833605,Jacobs UK Ltd,636.00
Manchester City Council,Adult Social Care,Rents,14-Sep-22,5105833621,K L Properties,"12,612.16"
Manchester City Council,Chief Executives,Funeral and coroner related services,14-Sep-22,5105833851,Kane Funeral Services,"7,260.00"
Manchester City Council,Corporate Services,Professional fees,14-Sep-22,5105833652,Keelagher Okey Associates Ltd t/a,"2,181.25"
Manchester City Council,Hospitality + Trading Services,Rodent &Pest Control,14-Sep-22,5105833781,Killgerm Chemicals Ltd,596.00
Manchester City Council,Childrens & Education Services,Signers/Interpreters,14-Sep-22,5105833836,Language Line Ltd,"4,930.40"
Manchester City Council,Housing Revenue Account,Council Dwelling Fees,14-Sep-22,5105833840,Life Environmental Services,"5,987.00"
Manchester City Council,Chief Executives,Advertising,14-Sep-22,5105833709,MA Education Limited,"5,190.00"
Manchester City Council,Chief Executives,Advertising,14-Sep-22,5105833705,MA Education Limited,"1,431.00"
Manchester City Council,Chief Executives,Advertising,14-Sep-22,5105833707,MA Education Limited,"1,431.00"
Manchester City Council,Corporate Services,Printing,14-Sep-22,5105833611,Mail Solutions,"2,544.00"
Manchester City Council,Chief Executives,Printing,14-Sep-22,5105833622,Mail Solutions,"1,705.00"
Manchester City Council,Chief Executives,Printing,14-Sep-22,5105833600,Mail Solutions,"1,696.00"
Manchester City Council,Manchester Leisure,Grant and subscriptions awarded,14-Sep-22,5105833815,Manchester Youth Zone,"30,364.00"
Manchester City Council,Manchester Leisure,Grant and subscriptions awarded,14-Sep-22,5105833815,Manchester Youth Zone,"15,896.00"
Manchester City Council,Manchester Leisure,Grant and subscriptions awarded,14-Sep-22,5105833814,Manchester Youth Zone,"15,780.00"
Manchester City Council,Adult Social Care,Equipment,14-Sep-22,5105833216,Medela UK Ltd,"7,818.00"
Manchester City Council,Adult Social Care,Rents,14-Sep-22,5105833761,Mosscare Housing Ltd,"1,737.84"
Manchester City Council,Adult Social Care,Supported Accommodation,14-Sep-22,5105833764,Mosscare Housing Ltd,"19,773.72"
Manchester City Council,Adult Social Care,Supported Accommodation,14-Sep-22,5105833762,Mosscare Housing Ltd,"3,685.40"
Manchester City Council,Adult Social Care,Supported Accommodation,14-Sep-22,5105833763,Mosscare Housing Ltd,"3,685.40"
Manchester City Council,Childrens & Education Services,Supported Accommodation,14-Sep-22,5105833791,Mosscare St Vincent's Housing,"1,058.90"
Manchester City Council,Childrens & Education Services,Supported Accommodation,14-Sep-22,5105833779,Mosscare St Vincent's Housing,828.28
Manchester City Council,Childrens & Education Services,Supported Accommodation,14-Sep-22,5105833780,Mosscare St Vincent's Housing,635.34
Manchester City Council,Adult Social Care,Training and Development,14-Sep-22,5105833663,North West Fire Training Ltd,640.00
Manchester City Council,Childrens & Education Services,Professional fees,14-Sep-22,5105833666,One Education Ltd,"3,230.00"
Manchester City Council,Corporate Services,Training and Development,14-Sep-22,1907860472,Oxford Professional Education,875.00
Manchester City Council,Childrens & Education Services,Professional fees,14-Sep-22,5105833667,Paramount Care Solutions Limited,"2,400.00"
Manchester City Council,Childrens & Education Services,Professional fees,14-Sep-22,5105833668,Paramount Care Solutions Limited,"2,400.00"
Manchester City Council,Childrens & Education Services,Professional fees,14-Sep-22,5105833706,Paramount Care Solutions Limited,"2,400.00"
Manchester City Council,Childrens & Education Services,Professional fees,14-Sep-22,5105833830,Paramount Care Solutions Limited,"2,400.00"
Manchester City Council,Childrens & Education Services,Professional fees,14-Sep-22,5105833793,Paramount Care Solutions Limited,"1,785.00"
Manchester City Council,Childrens & Education Services,Professional fees,14-Sep-22,5105833704,Paramount Care Solutions Limited,"1,043.44"
Manchester City Council,Adult Social Care,Bed & Breakfast Acc,14-Sep-22,5105833822,Parkview Residence,"44,660.00"
Manchester City Council,Regeneration Finance,Planning Application Fees,14-Sep-22,1907873362,PortalPlanQuest Ltd,"8,778.00"
Manchester City Council,Childrens & Education Services,Professional fees,14-Sep-22,5105833683,Prospero Teaching,500.00
Manchester City Council,Childrens & Education Services,Professional fees,14-Sep-22,5105833687,Prospero Teaching,500.00
Manchester City Council,Childrens & Education Services,Professional fees,14-Sep-22,5105833726,Prospero Teaching,500.00
Manchester City Council,Chief Executives,Postage,14-Sep-22,5105833598,Quadient Ltd (Credifon),"5,264.49"
Manchester City Council,Hospitality + Trading Services,Hire of Machinery,14-Sep-22,5105833723,R & M Developments Ltd,606.67
Manchester City Council,Adult Social Care,Hire of Premises,14-Sep-22,5105833235,Radisson Edwardian Manchester Hotel,"19,000.00"
Manchester City Council,Adult Social Care,Hire of Premises,14-Sep-22,5105833757,Radisson Edwardian Manchester Hotel,"-19,000.00"
Manchester City Council,Housing Revenue Account,Council Dwelling Fees,14-Sep-22,1907874167,Red Co-operative Ltd,"1,912.50"
Manchester City Council,Housing Revenue Account,Council Dwelling Fees,14-Sep-22,5105833662,Red Co-operative Ltd,"1,912.50"
Manchester City Council,Housing General Fund,Building Works,14-Sep-22,1907872896,Redacted Personal Information,"22,160.00"
Manchester City Council,Highways Services,Legal Fees,14-Sep-22,5105833677,Redacted Personal Information,500.00
Manchester City Council,Adult Social Care,Bed & Breakfast Acc,14-Sep-22,5105833627,Redacted Personal Information,"35,730.00"
Manchester City Council,Adult Social Care,Bed & Breakfast Acc,14-Sep-22,5105833800,Redacted Personal Information,"12,545.00"
Manchester City Council,Adult Social Care,Bed & Breakfast Acc,14-Sep-22,5105833796,Redacted Personal Information,"3,870.00"
Manchester City Council,Manchester Leisure,Special Event,14-Sep-22,5105833661,Redacted personal information,"3,150.00"
Manchester City Council,Adult Social Care,Basic Pay,14-Sep-22,1907864293,Redacted Personal Information,750.00
Manchester City Council,Adult Social Care,Basic Pay,14-Sep-22,1907864300,Redacted Personal Information,675.00
Manchester City Council,Adult Social Care,Basic Pay,14-Sep-22,1907864301,Redacted personal information,600.00
Manchester City Council,Adult Social Care,Professional fees,14-Sep-22,1907858704,Redacted Personal Information,"1,800.00"
Manchester City Council,Manchester Leisure,Building Materials for direct delivery,14-Sep-22,5105833784,Rigby Taylor Ltd,580.00
Manchester City Council,Highways Services,Building Materials for direct delivery,14-Sep-22,5105833818,Rosgal Ltd,"1,500.00"
Manchester City Council,Highways Services,Building Materials for direct delivery,14-Sep-22,5105833820,Rosgal Ltd,"1,500.00"
Manchester City Council,Highways Services,Building Materials for direct delivery,14-Sep-22,5105833845,Rosgal Ltd,"1,500.00"
Manchester City Council,Adult Social Care,Training and Development,14-Sep-22,1907864303,SafeLives,"2,400.00"
Manchester City Council,Adult Social Care,Training and Development,14-Sep-22,1907864304,SafeLives,"2,400.00"
Manchester City Council,Adult Social Care,Training and Development,14-Sep-22,1907864307,SafeLives,"2,400.00"
Manchester City Council,Adult Social Care,Training and Development,14-Sep-22,1907864305,SafeLives,795.00
Manchester City Council,Childrens & Education Services,Payments for services,14-Sep-22,5105833625,Seashell trust,"1,736.64"
Manchester City Council,Manchester Leisure,Security,14-Sep-22,5105833531,Showsec International Ltd,"1,783.08"
Manchester City Council,Hospitality + Trading Services,Refuse Collection,14-Sep-22,5105833612,Siemens Financial Services Ltd,"1,067.95"
Manchester City Council,Chief Executives,I T Provision,14-Sep-22,5105833773,Specops Software Ltd,"15,724.10"
Manchester City Council,Chief Executives,Courier Costs,14-Sep-22,5105833623,Speed Couriers (Northern) Ltd,676.92
Manchester City Council,Manchester Leisure,Grant and subscriptions awarded,14-Sep-22,5105833819,St Luke's Church,"1,600.00"
Manchester City Council,Childrens & Education Services,Third party payments to other Local Authorities,14-Sep-22,5105833577,St Thomas C of E Primary School,"5,861.00"
Manchester City Council,Childrens & Education Services,Third party payments to other Local Authorities,14-Sep-22,5105833576,St Thomas C of E Primary School,"1,684.00"
Manchester City Council,Corporate Services,Travel Season TLS,14-Sep-22,5105833436,Stagecoach Manchester,600.00
Manchester City Council,Corporate Services,Travel Season TLS,14-Sep-22,5105833437,Stagecoach Manchester,600.00
Manchester City Council,Adult Social Care,Grant and subscriptions awarded,14-Sep-22,5105833675,Stepping Stone Projects,"11,000.00"
Manchester City Council,Manchester Leisure,Special Event,14-Sep-22,5105833620,Street Style Surgery,"5,915.00"
Manchester City Council,Childrens & Education Services,Third party payments to other Local Authorities,14-Sep-22,5105833606,Stretford High School,"5,361.00"
Manchester City Council,Regeneration Finance,Rents,14-Sep-22,5105833801,The East Manchester Academy,"20,394.94"
Manchester City Council,Childrens & Education Services,Payments for services,14-Sep-22,5105833574,The Together Trust,"9,630.15"
Manchester City Council,Adult Social Care,Subsistence and Conference Expenses,14-Sep-22,5105833872,Thrive Manachester,"6,250.00"
Manchester City Council,Childrens & Education Services,Contract Cleaning External,14-Sep-22,5105833581,Tiddlywinks Day Nursery Ltd,"4,257.00"
Manchester City Council,Manchester Leisure,Grant and subscriptions awarded,14-Sep-22,5105833823,Together One CIC,"1,000.00"
Manchester City Council,Chief Executives,Professional fees,14-Sep-22,5105833826,TPXimpact Limited,"49,973.00"
Manchester City Council,Environment and Operations,Construction Works,14-Sep-22,5105833355,Transport for Greater Manchester,"2,400.00"
Manchester City Council,Regeneration Finance,Training and Development,14-Sep-22,5105833769,Trinity College London,856.80
Manchester City Council,Regeneration Finance,Training and Development,14-Sep-22,5105833756,Trinity College London,734.40
Manchester City Council,Regeneration Finance,Training and Development,14-Sep-22,5105833753,Trinity College London,693.60
Manchester City Council,Regeneration Finance,Training and Development,14-Sep-22,5105833782,Trinity College London,672.00
Manchester City Council,Manchester Leisure,Building Materials for direct delivery,14-Sep-22,5105833642,W.H. Morris & Co,"3,660.21"
Manchester City Council,Manchester Leisure,Building Materials for direct delivery,14-Sep-22,5105833638,W.H. Morris & Co,"3,381.05"
Manchester City Council,Manchester Leisure,Building Materials for direct delivery,14-Sep-22,5105833640,W.H. Morris & Co,"3,009.78"
Manchester City Council,Manchester Leisure,Building Materials for direct delivery,14-Sep-22,5105833639,W.H. Morris & Co,"2,763.94"
Manchester City Council,Manchester Leisure,Building Materials for direct delivery,14-Sep-22,5105833643,W.H. Morris & Co,"2,739.66"
Manchester City Council,Manchester Leisure,Building Materials for direct delivery,14-Sep-22,5105833641,W.H. Morris & Co,"2,489.37"
Manchester City Council,Housing Revenue Account,Council Dwelling Fees,14-Sep-22,5105833812,Wardell Armstrong LLP,"1,543.63"
Manchester City Council,Highways Services,Professional fees,14-Sep-22,5105833617,Waterman Aspen Ltd,"8,800.00"
Manchester City Council,Highways Services,Professional fees,14-Sep-22,5105833593,Waterman Aspen Ltd,"7,629.00"
Manchester City Council,Highways Services,Professional fees,14-Sep-22,5105833563,Waterman Aspen Ltd,"7,575.25"
Manchester City Council,Highways Services,Professional fees,14-Sep-22,5105833614,Waterman Aspen Ltd,"7,440.00"
Manchester City Council,Highways Services,Professional fees,14-Sep-22,5105833568,Waterman Aspen Ltd,"7,128.50"
Manchester City Council,Highways Services,Professional fees,14-Sep-22,5105833615,Waterman Aspen Ltd,"6,160.00"
Manchester City Council,Highways Services,Professional fees,14-Sep-22,5105833592,Waterman Aspen Ltd,"6,094.50"
Manchester City Council,Highways Services,Professional fees,14-Sep-22,5105833569,Waterman Aspen Ltd,"5,404.30"
Manchester City Council,Highways Services,Professional fees,14-Sep-22,5105833567,Waterman Aspen Ltd,"4,864.00"
Manchester City Council,Highways Services,Professional fees,14-Sep-22,5105833591,Waterman Aspen Ltd,"4,218.00"
Manchester City Council,Highways Services,Professional fees,14-Sep-22,5105833616,Waterman Aspen Ltd,"3,493.75"
Manchester City Council,Highways Services,Professional fees,14-Sep-22,5105833613,Waterman Aspen Ltd,"3,068.00"
Manchester City Council,Regeneration Finance,Contract Cleaning External,14-Sep-22,5105833672,Westgrove Support Services Ltd,"8,324.77"
Manchester City Council,Chief Executives,Postage,14-Sep-22,5105833597,Whistl North Ltd,"4,749.26"
Manchester City Council,Chief Executives,Postage,14-Sep-22,5105833578,Whistl North Ltd,"1,521.15"
Manchester City Council,Childrens & Education Services,Third party payments to other Local Authorities,14-Sep-22,5105833633,Whitegate End,"3,256.00"
Manchester City Council,Manchester Leisure,Legal Fees,15-Sep-22,1907876674,18 St John Street Chambers,"1,500.00"
Manchester City Council,Adult Social Care,Rents,15-Sep-22,5105833036,Accommodation Links Ltd,"69,178.86"
Manchester City Council,Childrens & Education Services,I T Provision,15-Sep-22,5105833951,Allied Publicity Services (M\cr) Lt,"2,093.13"
Manchester City Council,Adult Social Care,Payments for services,15-Sep-22,5105833979,Big Life Centres,"1,830.00"
Manchester City Council,Adult Social Care,Third party payments relating to Voluntary Organisations,15-Sep-22,5105833897,Breakthrough Uk Ltd,"14,485.42"
Manchester City Council,Adult Social Care,Third party payments relating to Voluntary Organisations,15-Sep-22,5105833897,Breakthrough Uk Ltd,"3,888.94"
Manchester City Council,Adult Social Care,Payments for services,15-Sep-22,5105833626,Brook,"11,417.20"
Manchester City Council,Environment and Operations,Construction Works,15-Sep-22,5105833813,Bt Repayments And Claims Group,"4,613.25"
Manchester City Council,Corporate Services,Transport Taxis,15-Sep-22,1907877572,City Car Club Ltd,"1,351.29"
Manchester City Council,Corporate Services,Transport Taxis,15-Sep-22,1907877574,City Car Club Ltd,550.81
Manchester City Council,Manchester Leisure,Equipment,15-Sep-22,5105833405,Clean-Up UK Limited,600.00
Manchester City Council,Manchester Leisure,Payments to Sub-Contractors,15-Sep-22,5105834107,Clean-Up UK Limited,720.00
Manchester City Council,Manchester Leisure,Payments to Sub-Contractors,15-Sep-22,5105834109,Clean-Up UK Limited,720.00
Manchester City Council,Highways Services,Payments to Sub-Contractors,15-Sep-22,5105834121,Clearway Drainage Systems Ltd,"12,190.00"
Manchester City Council,Highways Services,Payments to Sub-Contractors,15-Sep-22,5105834110,Clearway Drainage Systems Ltd,"6,590.00"
Manchester City Council,Manchester Leisure,I T Provision,15-Sep-22,5105833868,Cobweb Information Ltd,"22,015.00"
Manchester City Council,Regeneration Finance,CRB Fees,15-Sep-22,5105833855,Complete Background Screening Ltd,966.00
Manchester City Council,Corporate Services,Works and associated costs for Land and Buildings,15-Sep-22,5105832810,Conlon Construction Ltd,"234,799.66"
Manchester City Council,Regeneration Finance,Professional fees,15-Sep-22,5105833867,Creative Concern Ltd,-836.00
Manchester City Council,Chief Executives,Landline Telephone,15-Sep-22,1907874562,Daisy Corporate Services Trading,902.07
Manchester City Council,Manchester Leisure,Hire of Equipment,15-Sep-22,5105833929,Eagle Plant,661.00
Manchester City Council,Adult Social Care,Rents,15-Sep-22,5105834011,Eeven Homes Ltd.,"13,605.77"
Manchester City Council,Housing Revenue Account,Council Dwelling Adaptations,15-Sep-22,5105833917,Emanuel Whittaker Ltd,"30,731.72"
Manchester City Council,Highways Services,Purchase of stores for re-distribution,15-Sep-22,5105833894,Fabrikat (Nottingham) Limited,"5,334.00"
Manchester City Council,Highways Services,Compensation Payments,15-Sep-22,1907877583,FARLEY DWEK SOLICITORS,"6,000.00"
Manchester City Council,Highways Services,Legal Fees,15-Sep-22,1907877583,FARLEY DWEK SOLICITORS,"5,161.20"
Manchester City Council,Adult Social Care,Training and Development,15-Sep-22,1907862991,Foundations,"1,920.00"
Manchester City Council,Adult Social Care,Furniture,15-Sep-22,5105833876,Furniture Resource Centre Ltd,782.56
Manchester City Council,Housing General Fund,Works and associated costs for Land and Buildings,15-Sep-22,5105833873,Furniture Resource Centre Ltd,"1,080.63"
Manchester City Council,Chief Executives,Agency staff provision,15-Sep-22,5105833916,Gatenby Sanderson,"17,936.00"
Manchester City Council,Manchester Leisure,Equipment,15-Sep-22,5105833883,Groundwork Landscapes Ltd,950.00
Manchester City Council,Manchester Leisure,Equipment,15-Sep-22,5105833884,Groundwork Landscapes Ltd,950.00
Manchester City Council,Manchester Leisure,Equipment,15-Sep-22,5105833885,Groundwork Landscapes Ltd,950.00
Manchester City Council,Manchester Leisure,Equipment,15-Sep-22,5105833887,Groundwork Landscapes Ltd,950.00
Manchester City Council,Libraries and Theatres,Vehicle Plant Furniture and Equipment,15-Sep-22,5105834091,H Jenkinson & Co Ltd.,715.00
Manchester City Council,Libraries and Theatres,Vehicle Plant Furniture and Equipment,15-Sep-22,5105834092,H Jenkinson & Co Ltd.,715.00
Manchester City Council,Libraries and Theatres,Vehicle Plant Furniture and Equipment,15-Sep-22,5105834093,H Jenkinson & Co Ltd.,715.00
Manchester City Council,Libraries and Theatres,Vehicle Plant Furniture and Equipment,15-Sep-22,5105834094,H Jenkinson & Co Ltd.,715.00
Manchester City Council,Adult Social Care,Works and associated costs for Land and Buildings,15-Sep-22,5105834095,H Jenkinson & Co Ltd.,"3,520.00"
Manchester City Council,Chief Executives,Agency staff provision,15-Sep-22,5105834129,Hays Personnel,"15,905.20"
Manchester City Council,Housing General Fund,Building Works,15-Sep-22,1907877525,Hoist & Shower Chair Company,"5,351.00"
Manchester City Council,Housing General Fund,Building Works,15-Sep-22,1907877531,Hoist & Shower Chair Company,"2,990.50"
Manchester City Council,Manchester Leisure,Professional fees,15-Sep-22,5105833966,Interference Art,"1,260.00"
Manchester City Council,Environment and Operations,Construction Works,15-Sep-22,5105833914,J.Hopkins (Contractors) Ltd.,"36,280.41"
Manchester City Council,Environment and Operations,Construction Works,15-Sep-22,5105833912,J.Hopkins (Contractors) Ltd.,"20,990.45"
Manchester City Council,Highways Services,Tipping - Tonnage,15-Sep-22,5105833901,J.Hopkins (Contractors) Ltd.,737.50
Manchester City Council,Adult Social Care,Rents,15-Sep-22,1907877590,Lancashire Properties (NW) Ltd,"1,900.00"
Manchester City Council,Hospitality + Trading Services,Compensation Payments,15-Sep-22,1907877591,LEIGH DAY SOLICITORS,"48,672.93"
Manchester City Council,Hospitality + Trading Services,Legal Fees,15-Sep-22,1907877591,LEIGH DAY SOLICITORS,"10,930.00"
Manchester City Council,Environment and Operations,Vehicle Plant Furniture and Equipment,15-Sep-22,5105833938,M247 UK Ltd,"5,000.00"
Manchester City Council,Adult Social Care,Third party payments relating to Voluntary Organisations,15-Sep-22,5105833962,Manchester Action On Street Health,"16,520.83"
Manchester City Council,Manchester Leisure,Catering,15-Sep-22,5105834097,Manchester Central,567.00
Manchester City Council,Adult Social Care,Professional fees,15-Sep-22,5105833674,Manchester People First,900.00
Manchester City Council,Housing Revenue Account,Council Dwelling Adaptations,15-Sep-22,5105833960,Moores Furniture Group Limited,"5,572.83"
Manchester City Council,Housing Revenue Account,Council Dwelling Adaptations,15-Sep-22,5105833978,Moores Furniture Group Limited,"4,632.50"
Manchester City Council,Housing Revenue Account,Council Dwelling Adaptations,15-Sep-22,5105833977,Moores Furniture Group Limited,"2,087.73"
Manchester City Council,Childrens & Education Services,Carer Support Payments ,15-Sep-22,5105833963,Mosscare Housing Ltd,"70,152.00"
Manchester City Council,Manchester Leisure,Professional fees,15-Sep-22,1907873432,NewSpace Media Ltd,580.00
Manchester City Council,Corporate Services,Cash Collection,15-Sep-22,5105833915,NSL Ltd,"5,649.29"
Manchester City Council,Childrens & Education Services,Private Finance and Public Private partnership initiatives,15-Sep-22,5105832461,NU3PS,"84,160.50"
Manchester City Council,Housing General Fund,Building Works,15-Sep-22,1907877529,Pollock Lifts Ltd,"13,041.00"
Manchester City Council,Adult Social Care,Bed & Breakfast Acc,15-Sep-22,5105833909,Redacted Personal Information,"1,070.24"
Manchester City Council,Adult Social Care,Training and Development,15-Sep-22,1907865842,Redacted Personal Information,"2,400.00"
Manchester City Council,Adult Social Care,Professional fees,15-Sep-22,5105832803,Revolving Doors Housing Trust,"49,824.77"
Manchester City Council,Chief Executives,Agency staff provision,15-Sep-22,5105834125,Ricoh UK Ltd.,"4,750.00"
Manchester City Council,Chief Executives,Agency staff provision,15-Sep-22,5105834124,Ricoh UK Ltd.,"2,750.00"
Manchester City Council,Adult Social Care,Supported Accommodation,15-Sep-22,5105833911,Riverside ECHG,"5,299.50"
Manchester City Council,Chief Executives,Examination Fees,15-Sep-22,5105833853,ROAR Forensics Ltd,"1,249.25"
Manchester City Council,Highways Services,Payments to Sub-Contractors,15-Sep-22,5105832667,Rosgal Ltd,"70,901.78"
Manchester City Council,Childrens Services,Building Works,15-Sep-22,1907877588,SES BUSINESS WATER,"14,454.18"
Manchester City Council,Manchester Leisure,Security,15-Sep-22,5105833864,Showsec International Ltd,"1,584.96"
Manchester City Council,Manchester Leisure,Security,15-Sep-22,5105833866,Showsec International Ltd,990.60
Manchester City Council,Childrens & Education Services,Third party payments to other Local Authorities,15-Sep-22,5105833935,St Thomas of Canterbury,"14,707.33"
Manchester City Council,Childrens & Education Services,Third party payments to other Local Authorities,15-Sep-22,5105833583,St. Anne's CE Primary School,"2,605.00"
Manchester City Council,Hospitality + Trading Services,Vehicle Fuel Costs,15-Sep-22,5105833891,Standard Fuels Oils,"27,041.82"
Manchester City Council,Housing General Fund,Building Works,15-Sep-22,1907877527,Stannah Lift Services Ltd,"6,929.00"
Manchester City Council,Housing General Fund,Building Works,15-Sep-22,1907877524,Stannah Lift Services Ltd,"6,905.70"
Manchester City Council,Housing General Fund,Building Works,15-Sep-22,1907877523,Stannah Lift Services Ltd,"5,802.00"
Manchester City Council,Housing General Fund,Building Works,15-Sep-22,1907877528,Stannah Lift Services Ltd,"2,972.00"
Manchester City Council,Housing General Fund,Building Works,15-Sep-22,1907877530,Stannah Lift Services Ltd,"2,077.00"
Manchester City Council,Adult Social Care,I T Provision,15-Sep-22,5105833767,T.I.S. Limited,"1,040.00"
Manchester City Council,Adult Social Care,Rents,15-Sep-22,5105833595,T15 Consultancy Ltd,"4,500.00"
Manchester City Council,Childrens & Education Services,Payments for services,15-Sep-22,5105833943,The Greens ENS,"9,308.55"
Manchester City Council,Childrens & Education Services,Payments for services,15-Sep-22,5105833941,The Greens ENS,"8,403.83"
Manchester City Council,Childrens & Education Services,Rates,15-Sep-22,5105833954,Tiddlywinks Day Nursery Ltd,887.12
Manchester City Council,Hospitality + Trading Services,Goods purchased for resale in Council outlets,15-Sep-22,5105833947,Treasured Memories Ltd,709.30
Manchester City Council,Manchester Leisure,Legal Fees,15-Sep-22,1907877360,Trinity Chambers,"1,250.00"
Manchester City Council,Manchester Leisure,Licences Purchase,15-Sep-22,5105833758,Trustmarque Solutions Ltd,"-16,212.00"
Manchester City Council,Adult Social Care,Rents,15-Sep-22,5105833980,Ukrainian Cultural Centre,"1,325.00"
Manchester City Council,Housing General Fund,Building Works,15-Sep-22,1907877526,UPS Building & Maintenance Ltd,"6,592.03"
Manchester City Council,Manchester Leisure,Rents,15-Sep-22,1907872134,Vanguard Holdings Ltd,"30,696.00"
Manchester City Council,Manchester Leisure,I T Provision,15-Sep-22,5105833959,Viewpoint Feedback Ltd,750.00
Manchester City Council,Manchester Leisure,Building Materials for direct delivery,15-Sep-22,5105833645,W.H. Morris & Co,"6,745.79"
Manchester City Council,Corporate Services,Works and associated costs for Land and Buildings,15-Sep-22,5105833918,Waterman Infrastructure and,"2,110.00"
Manchester City Council,Chief Executives,Professional fees,15-Sep-22,5105833946,Weightmans LLP Solicitors,"1,187.50"
Manchester City Council,Chief Executives,Postage,15-Sep-22,5105833930,Whistl North Ltd,"3,571.92"
Manchester City Council,Environment and Operations,Construction Works,15-Sep-22,5105833983,Wilde Consultants Ltd,"20,362.65"
Manchester City Council,Environment and Operations,Construction Works,15-Sep-22,5105833881,Wilde Consultants Ltd,"2,070.00"
Manchester City Council,Environment and Operations,Construction Works,15-Sep-22,5105833882,Wilde Consultants Ltd,"1,624.50"
Manchester City Council,Environment and Operations,Construction Works,15-Sep-22,5105833982,Wilde Consultants Ltd,"-4,253.19"
Manchester City Council,Regeneration Finance,Furniture,15-Sep-22,5105833987,XXXData Space Ltd (use 30021328),"1,366.93"
Manchester City Council,Regeneration Finance,Storage Costs,15-Sep-22,5105833903,XXXData Space Ltd (use 30021328),519.91
Manchester City Council,Manchester Leisure,Grant and subscriptions awarded,15-Sep-22,5105833015,YHA England and Wales,"1,623.00"
Manchester City Council,Regeneration Finance,Professional fees,16-Sep-22,5105834181,AA Projects Ltd,592.73
Manchester City Council,Manchester Leisure,Contract Cleaning External,16-Sep-22,5105834066,aAFD Services Ltd,"4,672.98"
Manchester City Council,Manchester Leisure,Contract Cleaning External,16-Sep-22,5105833665,aAFD Services Ltd,"2,703.69"
Manchester City Council,Adult Social Care,"Consumable items eg Toilet rolls, soap etc",16-Sep-22,1907877911,ADEXA.CO.UK,"1,320.00"
Manchester City Council,Adult Social Care,Payments for services,16-Sep-22,5105834017,ADFERIAD RECOVERY,"9,112.50"
Manchester City Council,Adult Social Care,Payments for services,16-Sep-22,5105834016,ADFERIAD RECOVERY,"4,050.00"
Manchester City Council,Adult Social Care,Payments for services,16-Sep-22,5105834015,ADFERIAD RECOVERY,"3,375.00"
Manchester City Council,Adult Social Care,Payments for services,16-Sep-22,5105834014,ADFERIAD RECOVERY,"2,362.50"
Manchester City Council,Adult Social Care,Payments for services,16-Sep-22,5105834135,Age Concern Manchester,"10,000.00"
Manchester City Council,Manchester Leisure,Grant and subscriptions awarded,16-Sep-22,5105834002,Alexandra Park Writers,"1,250.00"
Manchester City Council,Adult Social Care,"Consumable items eg Toilet rolls, soap etc",16-Sep-22,1907878167,ALLPAY *SALIX HOMES LTD,648.22
Manchester City Council,Adult Social Care,Rents,16-Sep-22,5105834025,Amco Management,"32,966.29"
Manchester City Council,Childrens & Education Services,"Consumable items eg Toilet rolls, soap etc",16-Sep-22,1907878218,APPNTECH OUTLET,500.00
Manchester City Council,Adult Social Care,"Consumable items eg Toilet rolls, soap etc",16-Sep-22,1907878809,Argos Business Solutions,"2,972.95"
Manchester City Council,Adult Social Care,"Consumable items eg Toilet rolls, soap etc",16-Sep-22,1907878203,Argos Business Solutions,"1,672.95"
Manchester City Council,Adult Social Care,"Consumable items eg Toilet rolls, soap etc",16-Sep-22,1907878838,Argos Business Solutions,"1,426.00"
Manchester City Council,Adult Social Care,"Consumable items eg Toilet rolls, soap etc",16-Sep-22,1907878801,Argos Business Solutions,836.95
Manchester City Council,Adult Social Care,"Consumable items eg Toilet rolls, soap etc",16-Sep-22,1907878780,Argos Business Solutions,706.00
Manchester City Council,Adult Social Care,"Consumable items eg Toilet rolls, soap etc",16-Sep-22,1907878681,Argos Business Solutions,651.20
Manchester City Council,Adult Social Care,"Consumable items eg Toilet rolls, soap etc",16-Sep-22,1907878627,Argos Business Solutions,648.95
Manchester City Council,Childrens & Education Services,"Consumable items eg Toilet rolls, soap etc",16-Sep-22,1907877980,Argos Business Solutions,539.00
Manchester City Council,Adult Social Care,"Consumable items eg Toilet rolls, soap etc",16-Sep-22,1907878547,Argos Business Solutions,531.61
Manchester City Council,Childrens & Education Services,General Office expenses,16-Sep-22,1907878464,Argos Business Solutions,-560.00
Manchester City Council,Corporate Services,Works and associated costs for Land and Buildings,16-Sep-22,5105833831,Bam Nuttall Ltd,"450,816.12"
Manchester City Council,Adult Social Care,"Consumable items eg Toilet rolls, soap etc",16-Sep-22,1907878938,Britannia Hotels PCARD ONLY,"2,830.00"
Manchester City Council,Adult Social Care,"Consumable items eg Toilet rolls, soap etc",16-Sep-22,1907878966,Britannia Hotels PCARD ONLY,"1,010.00"
Manchester City Council,Chief Executives,Agency staff provision,16-Sep-22,5105833321,Cadence Resourcing Ltd,"68,025.00"
Manchester City Council,Adult Social Care,Payments for services,16-Sep-22,5105834115,Care Concepts Ltd,"8,239.68"
Manchester City Council,Adult Social Care,Payments for services,16-Sep-22,5105834116,Care Concepts Ltd,"8,239.43"
Manchester City Council,Adult Social Care,Payments for services,16-Sep-22,5105834115,Care Concepts Ltd,655.05
Manchester City Council,Adult Social Care,Payments for services,16-Sep-22,5105834116,Care Concepts Ltd,655.05
Manchester City Council,Adult Social Care,Payments for services,16-Sep-22,5105834113,Care Concepts Ltd,"-8,894.73"
Manchester City Council,Adult Social Care,Payments for services,16-Sep-22,5105834114,Care Concepts Ltd,"-8,894.73"
Manchester City Council,Manchester Leisure,"Consumable items eg Toilet rolls, soap etc",16-Sep-22,1907877699,COBWEB SOLUTIONS LIMIT,"2,704.45"
Manchester City Council,Highways Services,Building Materials for direct delivery,16-Sep-22,5105834193,Compass Minerals UK Ltd,"6,114.85"
Manchester City Council,Adult Social Care,"Consumable items eg Toilet rolls, soap etc",16-Sep-22,1907878546,COSTCO WHOLESALE #112,647.96
Manchester City Council,Adult Social Care,"Consumable items eg Toilet rolls, soap etc",16-Sep-22,1907878141,CROWN HOMES,"4,292.06"
Manchester City Council,Adult Social Care,"Consumable items eg Toilet rolls, soap etc",16-Sep-22,1907878245,CROWN HOMES,"3,838.29"
Manchester City Council,Manchester Leisure,Grant and subscriptions awarded,16-Sep-22,5105834045,DeHavilland Information Services,"6,896.00"
Manchester City Council,Childrens & Education Services,General Office expenses,16-Sep-22,1907877746,EE / Orange,584.27
Manchester City Council,Chief Executives,Examination Fees,16-Sep-22,5105833852,Eurofins Forensic Services,612.40
Manchester City Council,Adult Social Care,"Consumable items eg Toilet rolls, soap etc",16-Sep-22,1907878055,EXP BY HOLIDAY INN MEN,"2,319.00"
Manchester City Council,Childrens & Education Services,"Consumable items eg Toilet rolls, soap etc",16-Sep-22,1907878875,FLOOR EXPRESS,938.70
Manchester City Council,Childrens & Education Services,"Consumable items eg Toilet rolls, soap etc",16-Sep-22,1907878492,FLOOR EXPRESS,573.31
Manchester City Council,Chief Executives,Professional fees,16-Sep-22,5105833910,Foreign and Commonwealth Office,"6,284.21"
Manchester City Council,Chief Executives,Professional fees,16-Sep-22,1907869817,Forensic Testing Service Ltd,676.42
Manchester City Council,Corporate Services,WPS Awards,16-Sep-22,5105833774,Furniture Resource Centre Ltd,868.09
Manchester City Council,Corporate Services,WPS Awards,16-Sep-22,5105833720,Furniture Resource Centre Ltd,720.05
Manchester City Council,Corporate Services,WPS Awards,16-Sep-22,5105833775,Furniture Resource Centre Ltd,720.05
Manchester City Council,Chief Executives,Printing,16-Sep-22,5105834009,Geiger Limited,540.00
Manchester City Council,Manchester Leisure,Grant and subscriptions awarded,16-Sep-22,5105834207,Greater Manchester Bengali,500.00
Manchester City Council,Adult Social Care,Funeral and coroner related services,16-Sep-22,5105833328,Greater Manchester Funeral Service,"2,857.00"
Manchester City Council,Adult Social Care,Funeral and coroner related services,16-Sep-22,5105833358,Greater Manchester Funeral Service,834.00
Manchester City Council,Adult Social Care,"Consumable items eg Toilet rolls, soap etc",16-Sep-22,1907877806,HIE MANCHESTER EAST,"1,858.79"
Manchester City Council,Housing Revenue Account,Works and associated costs for Land and Buildings,16-Sep-22,1907879082,Hill Dickinson LLP,"3,053.50"
Manchester City Council,Adult Social Care,"Consumable items eg Toilet rolls, soap etc",16-Sep-22,1907878586,HOTEL AT BOOKING.COM,"3,408.07"
Manchester City Council,Adult Social Care,"Consumable items eg Toilet rolls, soap etc",16-Sep-22,1907877780,HOTEL AT BOOKING.COM,"2,200.00"
Manchester City Council,Adult Social Care,"Consumable items eg Toilet rolls, soap etc",16-Sep-22,1907878760,HOTEL AT BOOKING.COM,"1,980.00"
Manchester City Council,Adult Social Care,"Consumable items eg Toilet rolls, soap etc",16-Sep-22,1907877871,HOTEL AT BOOKING.COM,"1,774.48"
Manchester City Council,Adult Social Care,"Consumable items eg Toilet rolls, soap etc",16-Sep-22,1907878639,HOTEL AT BOOKING.COM,"1,648.00"
Manchester City Council,Adult Social Care,"Consumable items eg Toilet rolls, soap etc",16-Sep-22,1907877904,HOTEL AT BOOKING.COM,"1,570.67"
Manchester City Council,Adult Social Care,"Consumable items eg Toilet rolls, soap etc",16-Sep-22,1907878033,HOTEL AT BOOKING.COM,"1,428.00"
Manchester City Council,Adult Social Care,"Consumable items eg Toilet rolls, soap etc",16-Sep-22,1907878667,HOTEL AT BOOKING.COM,"1,310.00"
Manchester City Council,Adult Social Care,"Consumable items eg Toilet rolls, soap etc",16-Sep-22,1907878353,HOTEL AT BOOKING.COM,"1,235.00"
Manchester City Council,Adult Social Care,"Consumable items eg Toilet rolls, soap etc",16-Sep-22,1907878833,HOTEL AT BOOKING.COM,"1,190.00"
Manchester City Council,Adult Social Care,"Consumable items eg Toilet rolls, soap etc",16-Sep-22,1907878945,HOTEL AT BOOKING.COM,915.00
Manchester City Council,Adult Social Care,"Consumable items eg Toilet rolls, soap etc",16-Sep-22,1907877704,HOTEL AT BOOKING.COM,896.40
Manchester City Council,Adult Social Care,"Consumable items eg Toilet rolls, soap etc",16-Sep-22,1907878470,HOTEL AT BOOKING.COM,765.00
Manchester City Council,Adult Social Care,"Consumable items eg Toilet rolls, soap etc",16-Sep-22,1907878820,HOTEL AT BOOKING.COM,765.00
Manchester City Council,Adult Social Care,"Consumable items eg Toilet rolls, soap etc",16-Sep-22,1907878839,HOTEL AT BOOKING.COM,765.00
Manchester City Council,Adult Social Care,"Consumable items eg Toilet rolls, soap etc",16-Sep-22,1907878864,HOTEL AT BOOKING.COM,765.00
Manchester City Council,Adult Social Care,"Consumable items eg Toilet rolls, soap etc",16-Sep-22,1907878985,HOTEL AT BOOKING.COM,765.00
Manchester City Council,Adult Social Care,"Consumable items eg Toilet rolls, soap etc",16-Sep-22,1907878993,HOTEL AT BOOKING.COM,765.00
Manchester City Council,Adult Social Care,"Consumable items eg Toilet rolls, soap etc",16-Sep-22,1907878935,HOTEL AT BOOKING.COM,763.00
Manchester City Council,Adult Social Care,"Consumable items eg Toilet rolls, soap etc",16-Sep-22,1907878964,HOTEL AT BOOKING.COM,693.00
Manchester City Council,Adult Social Care,"Consumable items eg Toilet rolls, soap etc",16-Sep-22,1907878852,HOTEL AT BOOKING.COM,674.00
Manchester City Council,Adult Social Care,"Consumable items eg Toilet rolls, soap etc",16-Sep-22,1907878773,HOTEL AT BOOKING.COM,672.00
Manchester City Council,Adult Social Care,"Consumable items eg Toilet rolls, soap etc",16-Sep-22,1907878816,HOTEL AT BOOKING.COM,579.00
Manchester City Council,Adult Social Care,"Consumable items eg Toilet rolls, soap etc",16-Sep-22,1907878837,HOTEL AT BOOKING.COM,579.00
Manchester City Council,Adult Social Care,"Consumable items eg Toilet rolls, soap etc",16-Sep-22,1907878036,HOTEL AT BOOKING.COM,533.00
Manchester City Council,Adult Social Care,"Consumable items eg Toilet rolls, soap etc",16-Sep-22,1907878783,HOTEL IBIS,850.00
Manchester City Council,Adult Social Care,"Consumable items eg Toilet rolls, soap etc",16-Sep-22,1907878853,HOTEL IBIS,830.00
Manchester City Council,Adult Social Care,"Consumable items eg Toilet rolls, soap etc",16-Sep-22,1907878867,HOTEL IBIS,595.00
Manchester City Council,Adult Social Care,"Consumable items eg Toilet rolls, soap etc",16-Sep-22,1907877894,HOTEL IBIS,514.00
Manchester City Council,Adult Social Care,Rents,16-Sep-22,5105834212,Houses4Homes 4U Ltd,"10,339.68"
Manchester City Council,Manchester Leisure,Professional fees,16-Sep-22,5105833772,Inforhousing,"6,050.00"
Manchester City Council,Adult Social Care,"Consumable items eg Toilet rolls, soap etc",16-Sep-22,1907878755,IZ *DJ SUITES THE,"1,540.00"
Manchester City Council,Adult Social Care,"Consumable items eg Toilet rolls, soap etc",16-Sep-22,1907878758,IZ *DJ SUITES THE,"1,540.00"
Manchester City Council,Adult Social Care,"Consumable items eg Toilet rolls, soap etc",16-Sep-22,1907878767,IZ *DJ SUITES THE,"1,540.00"
Manchester City Council,Adult Social Care,"Consumable items eg Toilet rolls, soap etc",16-Sep-22,1907878799,IZ *DJ SUITES THE,"1,540.00"
Manchester City Council,Manchester Leisure,Goods purchased for resale in Council outlets,16-Sep-22,5105834166,John Wiley & Sons Ltd,"2,750.00"
Manchester City Council,Adult Social Care,"Consumable items eg Toilet rolls, soap etc",16-Sep-22,1907878759,KENNEDY WRIGHT ASSETS LTD,"1,540.00"
Manchester City Council,Adult Social Care,"Consumable items eg Toilet rolls, soap etc",16-Sep-22,1907878769,KENNEDY WRIGHT ASSETS LTD,"1,540.00"
Manchester City Council,Adult Social Care,"Consumable items eg Toilet rolls, soap etc",16-Sep-22,1907878775,KENNEDY WRIGHT ASSETS LTD,"1,540.00"
Manchester City Council,Adult Social Care,"Consumable items eg Toilet rolls, soap etc",16-Sep-22,1907878776,KENNEDY WRIGHT ASSETS LTD,"1,540.00"
Manchester City Council,Adult Social Care,"Consumable items eg Toilet rolls, soap etc",16-Sep-22,1907878781,KENNEDY WRIGHT ASSETS LTD,"1,540.00"
Manchester City Council,Adult Social Care,"Consumable items eg Toilet rolls, soap etc",16-Sep-22,1907878790,KENNEDY WRIGHT ASSETS LTD,"1,540.00"
Manchester City Council,Adult Social Care,"Consumable items eg Toilet rolls, soap etc",16-Sep-22,1907878792,KENNEDY WRIGHT ASSETS LTD,"1,540.00"
Manchester City Council,Adult Social Care,"Consumable items eg Toilet rolls, soap etc",16-Sep-22,1907878794,KENNEDY WRIGHT ASSETS LTD,"1,540.00"
Manchester City Council,Adult Social Care,"Consumable items eg Toilet rolls, soap etc",16-Sep-22,1907878800,KENNEDY WRIGHT ASSETS LTD,"1,540.00"
Manchester City Council,Adult Social Care,"Consumable items eg Toilet rolls, soap etc",16-Sep-22,1907878804,KENNEDY WRIGHT ASSETS LTD,"1,540.00"
Manchester City Council,Adult Social Care,"Consumable items eg Toilet rolls, soap etc",16-Sep-22,1907878805,KENNEDY WRIGHT ASSETS LTD,"1,540.00"
Manchester City Council,Adult Social Care,"Consumable items eg Toilet rolls, soap etc",16-Sep-22,1907878807,KENNEDY WRIGHT ASSETS LTD,"1,540.00"
Manchester City Council,Manchester Leisure,Works and associated costs for Land and Buildings,16-Sep-22,5105832892,Kier Construction North and,"2,202,177.56"
Manchester City Council,Childrens & Education Services,Signers/Interpreters,16-Sep-22,5105833961,Language Line Ltd,518.40
Manchester City Council,Corporate Services,Works and associated costs for Land and Buildings,16-Sep-22,5105834151,LendLease Construction(EUROPE) Ltd,"2,780,297.14"
Manchester City Council,Corporate Services,Works and associated costs for Land and Buildings,16-Sep-22,5105834173,LendLease Construction(EUROPE) Ltd,"1,129,328.34"
Manchester City Council,Corporate Services,Works and associated costs for Land and Buildings,16-Sep-22,5105834151,LendLease Construction(EUROPE) Ltd,"537,799.20"
Manchester City Council,Corporate Services,Works and associated costs for Land and Buildings,16-Sep-22,5105834173,LendLease Construction(EUROPE) Ltd,"48,461.73"
Manchester City Council,Corporate Services,Surveys Fees other,16-Sep-22,5105834191,Life Environmental Services,"1,625.00"
Manchester City Council,Childrens & Education Services,"Consumable items eg Toilet rolls, soap etc",16-Sep-22,1907877739,Lockhart Catering Equipment Ltd,"1,146.95"
Manchester City Council,Adult Social Care,"Consumable items eg Toilet rolls, soap etc",16-Sep-22,1907877797,Lockhart Catering Equipment Ltd,696.00
Manchester City Council,Adult Social Care,Rents,16-Sep-22,5105834185,M&D Residential Ltd,"6,992.57"
Manchester City Council,Corporate Services,Professional fees,16-Sep-22,5105832668,Mace Cost Consultancy Ltd,"9,246.00"
Manchester City Council,Corporate Services,Professional fees,16-Sep-22,5105834037,Mace Cost Consultancy Ltd,"9,246.00"
Manchester City Council,Corporate Services,Professional fees,16-Sep-22,5105834036,Mace Cost Consultancy Ltd,"-9,246.00"
Manchester City Council,Adult Social Care,"Consumable items eg Toilet rolls, soap etc",16-Sep-22,1907877769,MAIN   MAIN,"1,779.00"
Manchester City Council,Manchester Leisure,Payments for services,16-Sep-22,5105833033,Manchester Active,"150,000.00"
Manchester City Council,Manchester Leisure,Agency staff provision,16-Sep-22,5105834048,Manchester Art Gallery,"5,265.00"
Manchester City Council,Manchester Leisure,Agency staff provision,16-Sep-22,5105834050,Manchester Art Gallery,"1,462.50"
Manchester City Council,Manchester Leisure,Agency staff provision,16-Sep-22,5105834035,Manchester Art Gallery,"1,050.00"
Manchester City Council,Housing Revenue Account,Council Dwelling Adaptations,16-Sep-22,5105834120,Manchester Working Ltd,"265,425.49"
Manchester City Council,Chief Executives,Advertising,16-Sep-22,1907877564,Mascots Incorporated Ltd,"4,495.00"
Manchester City Council,Adult Social Care,Bed & Breakfast Acc,16-Sep-22,5105833579,Medlock House Ltd,"10,633.00"
Manchester City Council,Corporate Services,Agency staff provision,16-Sep-22,5105834054,Michael Page International,"1,058.50"
Manchester City Council,Corporate Services,Agency staff provision,16-Sep-22,5105834059,Michael Page International,"1,036.75"
Manchester City Council,Adult Social Care,"Consumable items eg Toilet rolls, soap etc",16-Sep-22,1907878156,MILTON MANCHESTER HOTE,"5,896.00"
Manchester City Council,Adult Social Care,"Consumable items eg Toilet rolls, soap etc",16-Sep-22,1907878351,MILTON MANCHESTER HOTE,"3,968.00"
Manchester City Council,Adult Social Care,"Consumable items eg Toilet rolls, soap etc",16-Sep-22,1907878982,MILTON MANCHESTER HOTE,"3,892.00"
Manchester City Council,Adult Social Care,"Consumable items eg Toilet rolls, soap etc",16-Sep-22,1907878877,MILTON MANCHESTER HOTE,"3,891.00"
Manchester City Council,Adult Social Care,"Consumable items eg Toilet rolls, soap etc",16-Sep-22,1907878568,MILTON MANCHESTER HOTE,"3,883.00"
Manchester City Council,Adult Social Care,"Consumable items eg Toilet rolls, soap etc",16-Sep-22,1907878871,MILTON MANCHESTER HOTE,"3,464.00"
Manchester City Council,Adult Social Care,"Consumable items eg Toilet rolls, soap etc",16-Sep-22,1907878919,MILTON MANCHESTER HOTE,"3,347.00"
Manchester City Council,Adult Social Care,"Consumable items eg Toilet rolls, soap etc",16-Sep-22,1907878668,MILTON MANCHESTER HOTE,"3,176.00"
Manchester City Council,Adult Social Care,"Consumable items eg Toilet rolls, soap etc",16-Sep-22,1907878370,MILTON MANCHESTER HOTE,"2,829.00"
Manchester City Council,Adult Social Care,"Consumable items eg Toilet rolls, soap etc",16-Sep-22,1907878137,MILTON MANCHESTER HOTE,"2,772.00"
Manchester City Council,Adult Social Care,"Consumable items eg Toilet rolls, soap etc",16-Sep-22,1907878927,MILTON MANCHESTER HOTE,"2,587.00"
Manchester City Council,Adult Social Care,"Consumable items eg Toilet rolls, soap etc",16-Sep-22,1907878933,MILTON MANCHESTER HOTE,"2,587.00"
Manchester City Council,Adult Social Care,"Consumable items eg Toilet rolls, soap etc",16-Sep-22,1907877772,MILTON MANCHESTER HOTE,"2,427.00"
Manchester City Council,Adult Social Care,"Consumable items eg Toilet rolls, soap etc",16-Sep-22,1907878323,MILTON MANCHESTER HOTE,"2,379.00"
Manchester City Council,Adult Social Care,"Consumable items eg Toilet rolls, soap etc",16-Sep-22,1907878439,MILTON MANCHESTER HOTE,"2,347.00"
Manchester City Council,Adult Social Care,"Consumable items eg Toilet rolls, soap etc",16-Sep-22,1907877903,MILTON MANCHESTER HOTE,"2,247.00"
Manchester City Council,Adult Social Care,"Consumable items eg Toilet rolls, soap etc",16-Sep-22,1907878409,MILTON MANCHESTER HOTE,"2,198.00"
Manchester City Council,Adult Social Care,"Consumable items eg Toilet rolls, soap etc",16-Sep-22,1907878883,MILTON MANCHESTER HOTE,"2,096.00"
Manchester City Council,Adult Social Care,"Consumable items eg Toilet rolls, soap etc",16-Sep-22,1907877695,MILTON MANCHESTER HOTE,"2,085.00"
Manchester City Council,Adult Social Care,"Consumable items eg Toilet rolls, soap etc",16-Sep-22,1907878898,MILTON MANCHESTER HOTE,"2,047.00"
Manchester City Council,Adult Social Care,"Consumable items eg Toilet rolls, soap etc",16-Sep-22,1907877673,MILTON MANCHESTER HOTE,"2,025.00"
Manchester City Council,Adult Social Care,"Consumable items eg Toilet rolls, soap etc",16-Sep-22,1907878950,MILTON MANCHESTER HOTE,"1,977.00"
Manchester City Council,Adult Social Care,"Consumable items eg Toilet rolls, soap etc",16-Sep-22,1907878684,MILTON MANCHESTER HOTE,"1,887.00"
Manchester City Council,Adult Social Care,"Consumable items eg Toilet rolls, soap etc",16-Sep-22,1907877694,MILTON MANCHESTER HOTE,"1,747.00"
Manchester City Council,Adult Social Care,"Consumable items eg Toilet rolls, soap etc",16-Sep-22,1907878870,MILTON MANCHESTER HOTE,"1,700.00"
Manchester City Council,Adult Social Care,"Consumable items eg Toilet rolls, soap etc",16-Sep-22,1907878030,MILTON MANCHESTER HOTE,"1,697.00"
Manchester City Council,Adult Social Care,"Consumable items eg Toilet rolls, soap etc",16-Sep-22,1907878032,MILTON MANCHESTER HOTE,"1,697.00"
Manchester City Council,Adult Social Care,"Consumable items eg Toilet rolls, soap etc",16-Sep-22,1907878003,MILTON MANCHESTER HOTE,"1,608.00"
Manchester City Council,Adult Social Care,"Consumable items eg Toilet rolls, soap etc",16-Sep-22,1907877678,MILTON MANCHESTER HOTE,"1,586.00"
Manchester City Council,Adult Social Care,"Consumable items eg Toilet rolls, soap etc",16-Sep-22,1907877760,MILTON MANCHESTER HOTE,"1,402.00"
Manchester City Council,Adult Social Care,"Consumable items eg Toilet rolls, soap etc",16-Sep-22,1907878297,MILTON MANCHESTER HOTE,"1,363.00"
Manchester City Council,Adult Social Care,"Consumable items eg Toilet rolls, soap etc",16-Sep-22,1907878567,MILTON MANCHESTER HOTE,"1,314.00"
Manchester City Council,Adult Social Care,"Consumable items eg Toilet rolls, soap etc",16-Sep-22,1907878881,MILTON MANCHESTER HOTE,"1,081.00"
Manchester City Council,Adult Social Care,"Consumable items eg Toilet rolls, soap etc",16-Sep-22,1907878998,MILTON MANCHESTER HOTE,"1,055.00"
Manchester City Council,Adult Social Care,"Consumable items eg Toilet rolls, soap etc",16-Sep-22,1907877731,MILTON MANCHESTER HOTE,"1,000.00"
Manchester City Council,Adult Social Care,"Consumable items eg Toilet rolls, soap etc",16-Sep-22,1907878569,MILTON MANCHESTER HOTE,951.00
Manchester City Council,Adult Social Care,"Consumable items eg Toilet rolls, soap etc",16-Sep-22,1907878554,MILTON MANCHESTER HOTE,833.00
Manchester City Council,Adult Social Care,"Consumable items eg Toilet rolls, soap etc",16-Sep-22,1907878225,MILTON MANCHESTER HOTE,766.00
Manchester City Council,Adult Social Care,"Consumable items eg Toilet rolls, soap etc",16-Sep-22,1907877786,MILTON MANCHESTER HOTE,662.00
Manchester City Council,Adult Social Care,"Consumable items eg Toilet rolls, soap etc",16-Sep-22,1907878974,MILTON MANCHESTER HOTE,623.00
Manchester City Council,Adult Social Care,Professional fees,16-Sep-22,5105834180,MJJ Social Care Consulting Ltd,"1,180.00"
Manchester City Council,Adult Social Care,Payments for services,16-Sep-22,5105834163,Morelife (UK) Ltd,"28,983.00"
Manchester City Council,Adult Social Care,Payments for services,16-Sep-22,5105834164,Morelife (UK) Ltd,"13,327.00"
Manchester City Council,Corporate Services,Works and associated costs for Land and Buildings,16-Sep-22,5105833022,Morgan Sindall C & I Ltd,"1,276,962.02"
Manchester City Council,Adult Social Care,Works and associated costs for Land and Buildings,16-Sep-22,5105832887,Morgan Sindall C & I Ltd,"778,070.38"
Manchester City Council,Chief Executives,Works and associated costs for Land and Buildings,16-Sep-22,5105833014,Morgan Sindall C & I Ltd,"417,434.68"
Manchester City Council,Chief Executives,Works and associated costs for Land and Buildings,16-Sep-22,5105833014,Morgan Sindall C & I Ltd,"49,201.97"
Manchester City Council,Adult Social Care,Supported Accommodation,16-Sep-22,5105834130,Mosscare St Vincent's Housing,517.36
Manchester City Council,Adult Social Care,Supported Accommodation,16-Sep-22,5105834131,Mosscare St Vincent's Housing,517.36
Manchester City Council,Adult Social Care,Supported Accommodation,16-Sep-22,5105834132,Mosscare St Vincent's Housing,517.36
Manchester City Council,Adult Social Care,Supported Accommodation,16-Sep-22,5105834133,Mosscare St Vincent's Housing,517.36
Manchester City Council,Manchester Leisure,"Consumable items eg Toilet rolls, soap etc",16-Sep-22,1907878040,MSFT * E0400JN66J,786.60
Manchester City Council,Adult Social Care,"Consumable items eg Toilet rolls, soap etc",16-Sep-22,1907878026,MULTI E-COMMERCE,719.97
Manchester City Council,Chief Executives,Agency staff provision,16-Sep-22,5105834165,NES UK Limited,"11,105.80"
Manchester City Council,Adult Social Care,"Consumable items eg Toilet rolls, soap etc",16-Sep-22,1907878671,NOVUM MANAGEMENT GMBH,"2,620.00"
Manchester City Council,Adult Social Care,"Consumable items eg Toilet rolls, soap etc",16-Sep-22,1907878727,NOVUM MANAGEMENT GMBH,"2,620.00"
Manchester City Council,Adult Social Care,"Consumable items eg Toilet rolls, soap etc",16-Sep-22,1907878617,NOVUM MANAGEMENT GMBH,"2,490.00"
Manchester City Council,Adult Social Care,"Consumable items eg Toilet rolls, soap etc",16-Sep-22,1907878124,NOVUM MANAGEMENT GMBH,"2,272.00"
Manchester City Council,Adult Social Care,"Consumable items eg Toilet rolls, soap etc",16-Sep-22,1907878166,NOVUM MANAGEMENT GMBH,"2,230.00"
Manchester City Council,Adult Social Care,"Consumable items eg Toilet rolls, soap etc",16-Sep-22,1907878797,NOVUM MANAGEMENT GMBH,"2,185.00"
Manchester City Council,Adult Social Care,"Consumable items eg Toilet rolls, soap etc",16-Sep-22,1907878261,NOVUM MANAGEMENT GMBH,"2,008.00"
Manchester City Council,Adult Social Care,"Consumable items eg Toilet rolls, soap etc",16-Sep-22,1907878300,NOVUM MANAGEMENT GMBH,"2,008.00"
Manchester City Council,Adult Social Care,"Consumable items eg Toilet rolls, soap etc",16-Sep-22,1907878302,NOVUM MANAGEMENT GMBH,"2,008.00"
Manchester City Council,Adult Social Care,"Consumable items eg Toilet rolls, soap etc",16-Sep-22,1907878960,NOVUM MANAGEMENT GMBH,"1,986.00"
Manchester City Council,Adult Social Care,"Consumable items eg Toilet rolls, soap etc",16-Sep-22,1907878765,NOVUM MANAGEMENT GMBH,"1,866.00"
Manchester City Council,Adult Social Care,"Consumable items eg Toilet rolls, soap etc",16-Sep-22,1907878280,NOVUM MANAGEMENT GMBH,"1,651.00"
Manchester City Council,Adult Social Care,"Consumable items eg Toilet rolls, soap etc",16-Sep-22,1907877829,NOVUM MANAGEMENT GMBH,"1,645.00"
Manchester City Council,Adult Social Care,"Consumable items eg Toilet rolls, soap etc",16-Sep-22,1907878995,NOVUM MANAGEMENT GMBH,"1,603.00"
Manchester City Council,Adult Social Care,"Consumable items eg Toilet rolls, soap etc",16-Sep-22,1907878557,NOVUM MANAGEMENT GMBH,"1,591.00"
Manchester City Council,Adult Social Care,"Consumable items eg Toilet rolls, soap etc",16-Sep-22,1907878915,NOVUM MANAGEMENT GMBH,"1,574.00"
Manchester City Council,Adult Social Care,"Consumable items eg Toilet rolls, soap etc",16-Sep-22,1907878942,NOVUM MANAGEMENT GMBH,"1,550.00"
Manchester City Council,Adult Social Care,"Consumable items eg Toilet rolls, soap etc",16-Sep-22,1907878469,NOVUM MANAGEMENT GMBH,"1,499.00"
Manchester City Council,Adult Social Care,"Consumable items eg Toilet rolls, soap etc",16-Sep-22,1907878282,NOVUM MANAGEMENT GMBH,"1,420.00"
Manchester City Council,Adult Social Care,"Consumable items eg Toilet rolls, soap etc",16-Sep-22,1907878505,NOVUM MANAGEMENT GMBH,"1,252.00"
Manchester City Council,Adult Social Care,"Consumable items eg Toilet rolls, soap etc",16-Sep-22,1907878873,NOVUM MANAGEMENT GMBH,"1,234.00"
Manchester City Council,Adult Social Care,"Consumable items eg Toilet rolls, soap etc",16-Sep-22,1907878512,NOVUM MANAGEMENT GMBH,"1,211.00"
Manchester City Council,Adult Social Care,"Consumable items eg Toilet rolls, soap etc",16-Sep-22,1907877755,NOVUM MANAGEMENT GMBH,901.00
Manchester City Council,Adult Social Care,"Consumable items eg Toilet rolls, soap etc",16-Sep-22,1907878802,NOVUM MANAGEMENT GMBH,870.00
Manchester City Council,Adult Social Care,"Consumable items eg Toilet rolls, soap etc",16-Sep-22,1907877788,NOVUM MANAGEMENT GMBH,786.00
Manchester City Council,Adult Social Care,"Consumable items eg Toilet rolls, soap etc",16-Sep-22,1907877888,NOVUM MANAGEMENT GMBH,739.00
Manchester City Council,Adult Social Care,"Consumable items eg Toilet rolls, soap etc",16-Sep-22,1907878983,NOVUM MANAGEMENT GMBH,713.00
Manchester City Council,Adult Social Care,"Consumable items eg Toilet rolls, soap etc",16-Sep-22,1907878914,NOVUM MANAGEMENT GMBH,707.00
Manchester City Council,Adult Social Care,"Consumable items eg Toilet rolls, soap etc",16-Sep-22,1907877807,NOVUM MANAGEMENT GMBH,705.00
Manchester City Council,Adult Social Care,"Consumable items eg Toilet rolls, soap etc",16-Sep-22,1907878230,NOVUM MANAGEMENT GMBH,670.00
Manchester City Council,Adult Social Care,"Consumable items eg Toilet rolls, soap etc",16-Sep-22,1907877869,NOVUM MANAGEMENT GMBH,547.00
Manchester City Council,Adult Social Care,"Consumable items eg Toilet rolls, soap etc",16-Sep-22,1907878303,NOVUM MANAGEMENT GMBH,539.00
Manchester City Council,Adult Social Care,"Consumable items eg Toilet rolls, soap etc",16-Sep-22,1907878186,NOVUM MANAGEMENT GMBH,531.00
Manchester City Council,Adult Social Care,"Consumable items eg Toilet rolls, soap etc",16-Sep-22,1907878634,NOVUM MANAGEMENT GMBH,522.00
Manchester City Council,Adult Social Care,"Consumable items eg Toilet rolls, soap etc",16-Sep-22,1907877768,NOVUM MANAGEMENT GMBH,505.00
Manchester City Council,Adult Social Care,"Consumable items eg Toilet rolls, soap etc",16-Sep-22,1907877727,PARK CITY SUITES HOTEL,"1,540.00"
Manchester City Council,Adult Social Care,"Consumable items eg Toilet rolls, soap etc",16-Sep-22,1907877753,PARK CITY SUITES HOTEL,"1,540.00"
Manchester City Council,Adult Social Care,"Consumable items eg Toilet rolls, soap etc",16-Sep-22,1907878049,PARK CITY SUITES HOTEL,"1,540.00"
Manchester City Council,Adult Social Care,"Consumable items eg Toilet rolls, soap etc",16-Sep-22,1907878063,PARK CITY SUITES HOTEL,"1,540.00"
Manchester City Council,Adult Social Care,"Consumable items eg Toilet rolls, soap etc",16-Sep-22,1907878079,PARK CITY SUITES HOTEL,"1,540.00"
Manchester City Council,Adult Social Care,"Consumable items eg Toilet rolls, soap etc",16-Sep-22,1907878099,PARK CITY SUITES HOTEL,"1,540.00"
Manchester City Council,Adult Social Care,"Consumable items eg Toilet rolls, soap etc",16-Sep-22,1907878534,PARK CITY SUITES HOTEL,"1,540.00"
Manchester City Council,Adult Social Care,"Consumable items eg Toilet rolls, soap etc",16-Sep-22,1907878537,PARK CITY SUITES HOTEL,"1,540.00"
Manchester City Council,Adult Social Care,"Consumable items eg Toilet rolls, soap etc",16-Sep-22,1907878545,PARK CITY SUITES HOTEL,"1,540.00"
Manchester City Council,Adult Social Care,"Consumable items eg Toilet rolls, soap etc",16-Sep-22,1907878548,PARK CITY SUITES HOTEL,"1,540.00"
Manchester City Council,Adult Social Care,"Consumable items eg Toilet rolls, soap etc",16-Sep-22,1907878762,PARK CITY SUITES HOTEL,"1,540.00"
Manchester City Council,Adult Social Care,"Consumable items eg Toilet rolls, soap etc",16-Sep-22,1907878830,PARK CITY SUITES HOTEL,"1,540.00"
Manchester City Council,Adult Social Care,"Consumable items eg Toilet rolls, soap etc",16-Sep-22,1907878961,PARK CITY SUITES HOTEL,"1,540.00"
Manchester City Council,Adult Social Care,"Consumable items eg Toilet rolls, soap etc",16-Sep-22,1907878962,PARK CITY SUITES HOTEL,"1,540.00"
Manchester City Council,Adult Social Care,"Consumable items eg Toilet rolls, soap etc",16-Sep-22,1907878969,PARK CITY SUITES HOTEL,"1,540.00"
Manchester City Council,Adult Social Care,"Consumable items eg Toilet rolls, soap etc",16-Sep-22,1907878996,PARK CITY SUITES HOTEL,"1,540.00"
Manchester City Council,Adult Social Care,"Consumable items eg Toilet rolls, soap etc",16-Sep-22,1907879000,PARK CITY SUITES HOTEL,"1,540.00"
Manchester City Council,Adult Social Care,"Consumable items eg Toilet rolls, soap etc",16-Sep-22,1907879013,PARK CITY SUITES HOTEL,"1,540.00"
Manchester City Council,Adult Social Care,"Consumable items eg Toilet rolls, soap etc",16-Sep-22,1907878868,PARK VIEW RESIDENCE,"1,540.00"
Manchester City Council,Adult Social Care,"Consumable items eg Toilet rolls, soap etc",16-Sep-22,1907878869,PARK VIEW RESIDENCE,"1,540.00"
Manchester City Council,Adult Social Care,"Consumable items eg Toilet rolls, soap etc",16-Sep-22,1907878913,PARK VIEW RESIDENCE,"1,540.00"
Manchester City Council,Adult Social Care,"Consumable items eg Toilet rolls, soap etc",16-Sep-22,1907878917,PARK VIEW RESIDENCE,"1,540.00"
Manchester City Council,Adult Social Care,"Consumable items eg Toilet rolls, soap etc",16-Sep-22,1907878920,PARK VIEW RESIDENCE,"1,540.00"
Manchester City Council,Adult Social Care,"Consumable items eg Toilet rolls, soap etc",16-Sep-22,1907878923,PARK VIEW RESIDENCE,"1,540.00"
Manchester City Council,Adult Social Care,"Consumable items eg Toilet rolls, soap etc",16-Sep-22,1907878925,PARK VIEW RESIDENCE,"1,540.00"
Manchester City Council,Adult Social Care,"Consumable items eg Toilet rolls, soap etc",16-Sep-22,1907878947,PARK VIEW RESIDENCE,"1,540.00"
Manchester City Council,Adult Social Care,"Consumable items eg Toilet rolls, soap etc",16-Sep-22,1907878951,PARK VIEW RESIDENCE,"1,540.00"
Manchester City Council,Adult Social Care,"Consumable items eg Toilet rolls, soap etc",16-Sep-22,1907878957,PARK VIEW RESIDENCE,"1,540.00"
Manchester City Council,Corporate Services,Professional fees,16-Sep-22,5105834071,Pennine Care NHS Trust,"6,595.00"
Manchester City Council,Childrens & Education Services,Professional fees,16-Sep-22,5105834162,Peopletoo Ltd,"20,515.17"
Manchester City Council,Regeneration Finance,Planning Application Fees,16-Sep-22,1907871621,PortalPlanQuest Ltd,"4,158.00"
Manchester City Council,Adult Social Care,Extra Care Sheltd HP,16-Sep-22,5105834178,Premier Care  Ltd,"47,743.03"
Manchester City Council,Adult Social Care,Extra Care Sheltd HP,16-Sep-22,5105834202,Premier Care  Ltd,"29,047.54"
Manchester City Council,Adult Social Care,Extra Care Sheltd HP,16-Sep-22,5105834176,Premier Care  Ltd,"22,635.45"
Manchester City Council,Adult Social Care,Extra Care Sheltd HP,16-Sep-22,5105834177,Premier Care  Ltd,"21,090.37"
Manchester City Council,Adult Social Care,"Consumable items eg Toilet rolls, soap etc",16-Sep-22,1907877721,Premier Inn P CARD ONLY,"1,143.00"
Manchester City Council,Adult Social Care,"Consumable items eg Toilet rolls, soap etc",16-Sep-22,1907877963,Premier Inn P CARD ONLY,"1,084.00"
Manchester City Council,Adult Social Care,"Consumable items eg Toilet rolls, soap etc",16-Sep-22,1907878102,Premier Inn P CARD ONLY,"1,078.00"
Manchester City Council,Adult Social Care,"Consumable items eg Toilet rolls, soap etc",16-Sep-22,1907878562,Premier Inn P CARD ONLY,"1,022.00"
Manchester City Council,Adult Social Care,"Consumable items eg Toilet rolls, soap etc",16-Sep-22,1907878692,Premier Inn P CARD ONLY,"1,009.00"
Manchester City Council,Adult Social Care,"Consumable items eg Toilet rolls, soap etc",16-Sep-22,1907878027,Premier Inn P CARD ONLY,"1,002.00"
Manchester City Council,Adult Social Care,"Consumable items eg Toilet rolls, soap etc",16-Sep-22,1907878616,Premier Inn P CARD ONLY,974.00
Manchester City Council,Adult Social Care,"Consumable items eg Toilet rolls, soap etc",16-Sep-22,1907878348,Premier Inn P CARD ONLY,962.00
Manchester City Council,Adult Social Care,"Consumable items eg Toilet rolls, soap etc",16-Sep-22,1907878435,Premier Inn P CARD ONLY,954.00
Manchester City Council,Adult Social Care,"Consumable items eg Toilet rolls, soap etc",16-Sep-22,1907878498,Premier Inn P CARD ONLY,950.00
Manchester City Council,Adult Social Care,"Consumable items eg Toilet rolls, soap etc",16-Sep-22,1907877720,Premier Inn P CARD ONLY,940.10
Manchester City Council,Adult Social Care,"Consumable items eg Toilet rolls, soap etc",16-Sep-22,1907878536,Premier Inn P CARD ONLY,939.00
Manchester City Council,Adult Social Care,"Consumable items eg Toilet rolls, soap etc",16-Sep-22,1907878655,Premier Inn P CARD ONLY,935.00
Manchester City Council,Adult Social Care,"Consumable items eg Toilet rolls, soap etc",16-Sep-22,1907878483,Premier Inn P CARD ONLY,923.00
Manchester City Council,Adult Social Care,"Consumable items eg Toilet rolls, soap etc",16-Sep-22,1907878119,Premier Inn P CARD ONLY,885.00
Manchester City Council,Adult Social Care,"Consumable items eg Toilet rolls, soap etc",16-Sep-22,1907877895,Premier Inn P CARD ONLY,884.00
Manchester City Council,Adult Social Care,"Consumable items eg Toilet rolls, soap etc",16-Sep-22,1907878355,Premier Inn P CARD ONLY,860.00
Manchester City Council,Adult Social Care,"Consumable items eg Toilet rolls, soap etc",16-Sep-22,1907877857,Premier Inn P CARD ONLY,822.00
Manchester City Council,Adult Social Care,"Consumable items eg Toilet rolls, soap etc",16-Sep-22,1907878678,Premier Inn P CARD ONLY,818.00
Manchester City Council,Adult Social Care,"Consumable items eg Toilet rolls, soap etc",16-Sep-22,1907878527,Premier Inn P CARD ONLY,815.00
Manchester City Council,Adult Social Care,"Consumable items eg Toilet rolls, soap etc",16-Sep-22,1907877901,Premier Inn P CARD ONLY,796.00
Manchester City Council,Adult Social Care,"Consumable items eg Toilet rolls, soap etc",16-Sep-22,1907877976,Premier Inn P CARD ONLY,738.50
Manchester City Council,Adult Social Care,"Consumable items eg Toilet rolls, soap etc",16-Sep-22,1907878096,Premier Inn P CARD ONLY,696.50
Manchester City Council,Adult Social Care,"Consumable items eg Toilet rolls, soap etc",16-Sep-22,1907877846,Premier Inn P CARD ONLY,686.00
Manchester City Council,Adult Social Care,"Consumable items eg Toilet rolls, soap etc",16-Sep-22,1907877912,Premier Inn P CARD ONLY,686.00
Manchester City Council,Adult Social Care,"Consumable items eg Toilet rolls, soap etc",16-Sep-22,1907878331,Premier Inn P CARD ONLY,684.00
Manchester City Council,Adult Social Care,"Consumable items eg Toilet rolls, soap etc",16-Sep-22,1907878059,Premier Inn P CARD ONLY,682.00
Manchester City Council,Adult Social Care,"Consumable items eg Toilet rolls, soap etc",16-Sep-22,1907877887,Premier Inn P CARD ONLY,681.00
Manchester City Council,Adult Social Care,"Consumable items eg Toilet rolls, soap etc",16-Sep-22,1907878601,Premier Inn P CARD ONLY,663.00
Manchester City Council,Adult Social Care,"Consumable items eg Toilet rolls, soap etc",16-Sep-22,1907878510,Premier Inn P CARD ONLY,635.00
Manchester City Council,Adult Social Care,"Consumable items eg Toilet rolls, soap etc",16-Sep-22,1907878064,Premier Inn P CARD ONLY,612.00
Manchester City Council,Adult Social Care,"Consumable items eg Toilet rolls, soap etc",16-Sep-22,1907878523,Premier Inn P CARD ONLY,609.00
Manchester City Council,Adult Social Care,"Consumable items eg Toilet rolls, soap etc",16-Sep-22,1907878520,Premier Inn P CARD ONLY,605.00
Manchester City Council,Adult Social Care,"Consumable items eg Toilet rolls, soap etc",16-Sep-22,1907878645,Premier Inn P CARD ONLY,604.00
Manchester City Council,Adult Social Care,"Consumable items eg Toilet rolls, soap etc",16-Sep-22,1907878651,Premier Inn P CARD ONLY,604.00
Manchester City Council,Adult Social Care,"Consumable items eg Toilet rolls, soap etc",16-Sep-22,1907878731,Premier Inn P CARD ONLY,604.00
Manchester City Council,Adult Social Care,"Consumable items eg Toilet rolls, soap etc",16-Sep-22,1907877847,Premier Inn P CARD ONLY,597.50
Manchester City Council,Adult Social Care,"Consumable items eg Toilet rolls, soap etc",16-Sep-22,1907878207,Premier Inn P CARD ONLY,594.00
Manchester City Council,Adult Social Care,"Consumable items eg Toilet rolls, soap etc",16-Sep-22,1907878507,Premier Inn P CARD ONLY,593.50
Manchester City Council,Adult Social Care,"Consumable items eg Toilet rolls, soap etc",16-Sep-22,1907877952,Premier Inn P CARD ONLY,593.00
Manchester City Council,Adult Social Care,"Consumable items eg Toilet rolls, soap etc",16-Sep-22,1907877972,Premier Inn P CARD ONLY,593.00
Manchester City Council,Adult Social Care,"Consumable items eg Toilet rolls, soap etc",16-Sep-22,1907878485,Premier Inn P CARD ONLY,586.00
Manchester City Council,Adult Social Care,"Consumable items eg Toilet rolls, soap etc",16-Sep-22,1907878539,Premier Inn P CARD ONLY,584.00
Manchester City Council,Adult Social Care,"Consumable items eg Toilet rolls, soap etc",16-Sep-22,1907877792,Premier Inn P CARD ONLY,577.00
Manchester City Council,Adult Social Care,"Consumable items eg Toilet rolls, soap etc",16-Sep-22,1907878069,Premier Inn P CARD ONLY,576.30
Manchester City Council,Adult Social Care,"Consumable items eg Toilet rolls, soap etc",16-Sep-22,1907878347,Premier Inn P CARD ONLY,574.50
Manchester City Council,Adult Social Care,"Consumable items eg Toilet rolls, soap etc",16-Sep-22,1907877974,Premier Inn P CARD ONLY,574.00
Manchester City Council,Adult Social Care,"Consumable items eg Toilet rolls, soap etc",16-Sep-22,1907878390,Premier Inn P CARD ONLY,563.00
Manchester City Council,Adult Social Care,"Consumable items eg Toilet rolls, soap etc",16-Sep-22,1907878309,Premier Inn P CARD ONLY,557.00
Manchester City Council,Adult Social Care,"Consumable items eg Toilet rolls, soap etc",16-Sep-22,1907878329,Premier Inn P CARD ONLY,555.00
Manchester City Council,Adult Social Care,"Consumable items eg Toilet rolls, soap etc",16-Sep-22,1907878045,Premier Inn P CARD ONLY,550.50
Manchester City Council,Adult Social Care,"Consumable items eg Toilet rolls, soap etc",16-Sep-22,1907878077,Premier Inn P CARD ONLY,550.50
Manchester City Council,Adult Social Care,"Consumable items eg Toilet rolls, soap etc",16-Sep-22,1907877921,Premier Inn P CARD ONLY,548.00
Manchester City Council,Adult Social Care,"Consumable items eg Toilet rolls, soap etc",16-Sep-22,1907877924,Premier Inn P CARD ONLY,548.00
Manchester City Council,Adult Social Care,"Consumable items eg Toilet rolls, soap etc",16-Sep-22,1907878646,Premier Inn P CARD ONLY,547.00
Manchester City Council,Adult Social Care,"Consumable items eg Toilet rolls, soap etc",16-Sep-22,1907877669,Premier Inn P CARD ONLY,544.85
Manchester City Council,Adult Social Care,"Consumable items eg Toilet rolls, soap etc",16-Sep-22,1907878195,Premier Inn P CARD ONLY,540.00
Manchester City Council,Adult Social Care,"Consumable items eg Toilet rolls, soap etc",16-Sep-22,1907878024,Premier Inn P CARD ONLY,539.50
Manchester City Council,Adult Social Care,"Consumable items eg Toilet rolls, soap etc",16-Sep-22,1907878493,Premier Inn P CARD ONLY,538.00
Manchester City Council,Adult Social Care,"Consumable items eg Toilet rolls, soap etc",16-Sep-22,1907878229,Premier Inn P CARD ONLY,537.00
Manchester City Council,Adult Social Care,"Consumable items eg Toilet rolls, soap etc",16-Sep-22,1907877711,Premier Inn P CARD ONLY,534.00
Manchester City Council,Adult Social Care,"Consumable items eg Toilet rolls, soap etc",16-Sep-22,1907878640,Premier Inn P CARD ONLY,533.50
Manchester City Council,Adult Social Care,"Consumable items eg Toilet rolls, soap etc",16-Sep-22,1907877957,Premier Inn P CARD ONLY,533.00
Manchester City Council,Adult Social Care,"Consumable items eg Toilet rolls, soap etc",16-Sep-22,1907878183,Premier Inn P CARD ONLY,532.00
Manchester City Council,Adult Social Care,"Consumable items eg Toilet rolls, soap etc",16-Sep-22,1907877743,Premier Inn P CARD ONLY,528.50
Manchester City Council,Adult Social Care,"Consumable items eg Toilet rolls, soap etc",16-Sep-22,1907878431,Premier Inn P CARD ONLY,523.00
Manchester City Council,Adult Social Care,"Consumable items eg Toilet rolls, soap etc",16-Sep-22,1907878476,Premier Inn P CARD ONLY,520.00
Manchester City Council,Adult Social Care,"Consumable items eg Toilet rolls, soap etc",16-Sep-22,1907878550,Premier Inn P CARD ONLY,516.00
Manchester City Council,Adult Social Care,"Consumable items eg Toilet rolls, soap etc",16-Sep-22,1907878611,Premier Inn P CARD ONLY,511.00
Manchester City Council,Adult Social Care,"Consumable items eg Toilet rolls, soap etc",16-Sep-22,1907878551,Premier Inn P CARD ONLY,510.00
Manchester City Council,Adult Social Care,"Consumable items eg Toilet rolls, soap etc",16-Sep-22,1907878177,Premier Inn P CARD ONLY,504.50
Manchester City Council,Adult Social Care,"Consumable items eg Toilet rolls, soap etc",16-Sep-22,1907878494,Premier Inn P CARD ONLY,503.50
Manchester City Council,Adult Social Care,"Consumable items eg Toilet rolls, soap etc",16-Sep-22,1907877733,Premier Inn P CARD ONLY,501.00
Manchester City Council,Adult Social Care,"Consumable items eg Toilet rolls, soap etc",16-Sep-22,1907877776,Premier Inn P CARD ONLY,-511.00
Manchester City Council,Adult Social Care,"Consumable items eg Toilet rolls, soap etc",16-Sep-22,1907877995,Premier Inn P CARD ONLY,-578.00
Manchester City Council,Manchester Leisure,Stationery,16-Sep-22,1907878263,PROFESSIONAL MUSIC,549.00
Manchester City Council,Adult Social Care,"Consumable items eg Toilet rolls, soap etc",16-Sep-22,1907878876,QUICKSPACES,"3,347.50"
Manchester City Council,Manchester Leisure,Grant and subscriptions awarded,16-Sep-22,5105834049,Redacted Personal Information,"1,370.00"
Manchester City Council,Manchester Leisure,Special Event,16-Sep-22,1907877586,Redacted Personal Information,"1,200.00"
Manchester City Council,Chief Executives,Payments to Sub-Contractors,16-Sep-22,5105834179,Redacted Personal Information,688.00
Manchester City Council,Childrens & Education Services,Storage Costs,16-Sep-22,5105834137,Restore PLC,"3,518.64"
Manchester City Council,Childrens & Education Services,Storage Costs,16-Sep-22,5105834138,Restore PLC,"2,254.84"
Manchester City Council,Adult Social Care,"Consumable items eg Toilet rolls, soap etc",16-Sep-22,1907878154,RICHARDSON & COMPANY S,"2,424.00"
Manchester City Council,Chief Executives,Examination Fees,16-Sep-22,5105834203,ROAR Forensics Ltd,"2,994.88"
Manchester City Council,Chief Executives,Examination Fees,16-Sep-22,5105834204,ROAR Forensics Ltd,940.50
Manchester City Council,Adult Social Care,"Consumable items eg Toilet rolls, soap etc",16-Sep-22,1907878779,ROOMS4NOW MY-PLACES,"3,970.26"
Manchester City Council,Adult Social Care,"Consumable items eg Toilet rolls, soap etc",16-Sep-22,1907878649,ROOMS4NOW MY-PLACES,"3,559.33"
Manchester City Council,Adult Social Care,"Consumable items eg Toilet rolls, soap etc",16-Sep-22,1907878863,ROOMS4NOW MY-PLACES,"2,842.52"
Manchester City Council,Adult Social Care,"Consumable items eg Toilet rolls, soap etc",16-Sep-22,1907879010,ROOMS4NOW MY-PLACES,"2,627.27"
Manchester City Council,Adult Social Care,"Consumable items eg Toilet rolls, soap etc",16-Sep-22,1907878100,ROOMS4NOW MY-PLACES,"1,336.81"
Manchester City Council,Adult Social Care,"Consumable items eg Toilet rolls, soap etc",16-Sep-22,1907878262,ROOMS4NOW MY-PLACES,"1,336.81"
Manchester City Council,Adult Social Care,"Consumable items eg Toilet rolls, soap etc",16-Sep-22,1907878589,ROOMS4NOW MY-PLACES,"1,336.81"
Manchester City Council,Highways Services,Building Materials for direct delivery,16-Sep-22,5105834157,Rosgal Ltd,"1,759.50"
Manchester City Council,Highways Services,Building Materials for direct delivery,16-Sep-22,5105834156,Rosgal Ltd,"1,656.00"
Manchester City Council,Highways Services,Building Materials for direct delivery,16-Sep-22,5105834155,Rosgal Ltd,621.00
Manchester City Council,Highways Services,Building Materials for direct delivery,16-Sep-22,5105834148,Rosgal Ltd,-621.00
Manchester City Council,Highways Services,Building Materials for direct delivery,16-Sep-22,5105834149,Rosgal Ltd,"-1,656.00"
Manchester City Council,Highways Services,Building Materials for direct delivery,16-Sep-22,5105834150,Rosgal Ltd,"-1,759.50"
Manchester City Council,Environment and Operations,Construction Works,16-Sep-22,5105833032,Rosgal Ltd,"150,000.00"
Manchester City Council,Environment and Operations,Construction Works,16-Sep-22,5105833031,Rosgal Ltd,"57,783.69"
Manchester City Council,Highways Services,Payments to Sub-Contractors,16-Sep-22,5105834152,Rosgal Ltd,"-52,293.45"
Manchester City Council,Highways Services,Payments to Sub-Contractors,16-Sep-22,5105834153,Rosgal Ltd,"-73,043.90"
Manchester City Council,Manchester Leisure,Postage,16-Sep-22,1907878104,ROYAL MAIL ONLINE SHOP,680.00
Manchester City Council,Childrens & Education Services,"Consumable items eg Toilet rolls, soap etc",16-Sep-22,1907878384,SAMSUNG UK,549.00
Manchester City Council,Adult Social Care,External repairs and maintenance for buildings,16-Sep-22,5105834012,Sheridan Lifts Ltd,"10,665.50"
Manchester City Council,Chief Executives,Payments to Sub-Contractors,16-Sep-22,5105834019,SocialSignin Ltd,"18,690.00"
Manchester City Council,Childrens & Education Services,Transport Coach Hire,16-Sep-22,5105833703,T/A Schools Direct,"8,303.00"
Manchester City Council,Childrens & Education Services,Transport Coach Hire,16-Sep-22,5105833854,T/A Schools Direct,"7,658.00"
Manchester City Council,Childrens & Education Services,Transport Coach Hire,16-Sep-22,5105833722,T/A Schools Direct,"7,470.50"
Manchester City Council,Childrens & Education Services,Transport Coach Hire,16-Sep-22,5105833702,T/A Schools Direct,"3,933.00"
Manchester City Council,Libraries and Theatres,Vehicle Plant Furniture and Equipment,16-Sep-22,5105833955,TFG Stage Technology Ltd,"6,422.91"
Manchester City Council,Adult Social Care,"Consumable items eg Toilet rolls, soap etc",16-Sep-22,1907877745,THE CITY WAREHOUSE APA,"4,230.00"
Manchester City Council,Adult Social Care,"Consumable items eg Toilet rolls, soap etc",16-Sep-22,1907877890,THE CITY WAREHOUSE APA,"3,100.00"
Manchester City Council,Adult Social Care,"Consumable items eg Toilet rolls, soap etc",16-Sep-22,1907878499,THE CITY WAREHOUSE APA,"1,355.00"
Manchester City Council,Childrens & Education Services,Training and Development,16-Sep-22,5105834211,The Hub Events Ltd,580.00
Manchester City Council,Chief Executives,Advertising,16-Sep-22,5105834062,The Law Society,850.00
Manchester City Council,Chief Executives,Advertising,16-Sep-22,5105834063,The Law Society,850.00
Manchester City Council,Chief Executives,ICT Sup & Maintnance,16-Sep-22,5105834021,The Networking People (TNP) Ltd,"4,975.00"
Manchester City Council,Chief Executives,ICT Sup & Maintnance,16-Sep-22,5105834067,The Networking People (TNP) Ltd,"4,000.00"
Manchester City Council,Childrens & Education Services,"Consumable items eg Toilet rolls, soap etc",16-Sep-22,1907878936,The Works Store Ltd,600.00
Manchester City Council,Adult Social Care,"Consumable items eg Toilet rolls, soap etc",16-Sep-22,1907877748,TRAVELODGE P CARD ONLY,"3,068.75"
Manchester City Council,Adult Social Care,"Consumable items eg Toilet rolls, soap etc",16-Sep-22,1907878246,TRAVELODGE P CARD ONLY,"2,816.83"
Manchester City Council,Adult Social Care,"Consumable items eg Toilet rolls, soap etc",16-Sep-22,1907878514,TRAVELODGE P CARD ONLY,"2,445.65"
Manchester City Council,Adult Social Care,"Consumable items eg Toilet rolls, soap etc",16-Sep-22,1907878397,TRAVELODGE P CARD ONLY,"2,331.43"
Manchester City Council,Adult Social Care,"Consumable items eg Toilet rolls, soap etc",16-Sep-22,1907877693,TRAVELODGE P CARD ONLY,"2,226.35"
Manchester City Council,Adult Social Care,"Consumable items eg Toilet rolls, soap etc",16-Sep-22,1907878490,TRAVELODGE P CARD ONLY,"2,117.21"
Manchester City Council,Adult Social Care,"Consumable items eg Toilet rolls, soap etc",16-Sep-22,1907878020,TRAVELODGE P CARD ONLY,"1,952.03"
Manchester City Council,Adult Social Care,"Consumable items eg Toilet rolls, soap etc",16-Sep-22,1907878254,TRAVELODGE P CARD ONLY,"1,911.19"
Manchester City Council,Adult Social Care,"Consumable items eg Toilet rolls, soap etc",16-Sep-22,1907877860,TRAVELODGE P CARD ONLY,"1,886.71"
Manchester City Council,Adult Social Care,"Consumable items eg Toilet rolls, soap etc",16-Sep-22,1907878212,TRAVELODGE P CARD ONLY,"1,805.11"
Manchester City Council,Adult Social Care,"Consumable items eg Toilet rolls, soap etc",16-Sep-22,1907878394,TRAVELODGE P CARD ONLY,"1,725.55"
Manchester City Council,Adult Social Care,"Consumable items eg Toilet rolls, soap etc",16-Sep-22,1907878413,TRAVELODGE P CARD ONLY,"1,611.35"
Manchester City Council,Adult Social Care,"Consumable items eg Toilet rolls, soap etc",16-Sep-22,1907878931,TRAVELODGE P CARD ONLY,"1,533.89"
Manchester City Council,Adult Social Care,"Consumable items eg Toilet rolls, soap etc",16-Sep-22,1907879012,TRAVELODGE P CARD ONLY,"1,521.69"
Manchester City Council,Adult Social Care,"Consumable items eg Toilet rolls, soap etc",16-Sep-22,1907877713,TRAVELODGE P CARD ONLY,"1,492.01"
Manchester City Council,Adult Social Care,"Consumable items eg Toilet rolls, soap etc",16-Sep-22,1907877761,TRAVELODGE P CARD ONLY,"1,352.29"
Manchester City Council,Adult Social Care,"Consumable items eg Toilet rolls, soap etc",16-Sep-22,1907878456,TRAVELODGE P CARD ONLY,"1,319.67"
Manchester City Council,Adult Social Care,"Consumable items eg Toilet rolls, soap etc",16-Sep-22,1907877909,TRAVELODGE P CARD ONLY,"1,301.31"
Manchester City Council,Adult Social Care,"Consumable items eg Toilet rolls, soap etc",16-Sep-22,1907877964,TRAVELODGE P CARD ONLY,"1,242.19"
Manchester City Council,Adult Social Care,"Consumable items eg Toilet rolls, soap etc",16-Sep-22,1907877706,TRAVELODGE P CARD ONLY,"1,226.91"
Manchester City Council,Adult Social Care,"Consumable items eg Toilet rolls, soap etc",16-Sep-22,1907878289,TRAVELODGE P CARD ONLY,"1,175.89"
Manchester City Council,Adult Social Care,"Consumable items eg Toilet rolls, soap etc",16-Sep-22,1907878609,TRAVELODGE P CARD ONLY,"1,163.69"
Manchester City Council,Adult Social Care,"Consumable items eg Toilet rolls, soap etc",16-Sep-22,1907878192,TRAVELODGE P CARD ONLY,"1,113.62"
Manchester City Council,Adult Social Care,"Consumable items eg Toilet rolls, soap etc",16-Sep-22,1907877929,TRAVELODGE P CARD ONLY,"1,064.73"
Manchester City Council,Adult Social Care,"Consumable items eg Toilet rolls, soap etc",16-Sep-22,1907878321,TRAVELODGE P CARD ONLY,"1,059.61"
Manchester City Council,Adult Social Care,"Consumable items eg Toilet rolls, soap etc",16-Sep-22,1907878582,TRAVELODGE P CARD ONLY,"1,029.04"
Manchester City Council,Adult Social Care,"Consumable items eg Toilet rolls, soap etc",16-Sep-22,1907877851,TRAVELODGE P CARD ONLY,"1,003.53"
Manchester City Council,Adult Social Care,"Consumable items eg Toilet rolls, soap etc",16-Sep-22,1907878739,TRAVELODGE P CARD ONLY,"1,001.49"
Manchester City Council,Adult Social Care,"Consumable items eg Toilet rolls, soap etc",16-Sep-22,1907878277,TRAVELODGE P CARD ONLY,992.32
Manchester City Council,Adult Social Care,"Consumable items eg Toilet rolls, soap etc",16-Sep-22,1907878078,TRAVELODGE P CARD ONLY,987.21
Manchester City Council,Adult Social Care,"Consumable items eg Toilet rolls, soap etc",16-Sep-22,1907878360,TRAVELODGE P CARD ONLY,919.89
Manchester City Council,Adult Social Care,"Consumable items eg Toilet rolls, soap etc",16-Sep-22,1907877861,TRAVELODGE P CARD ONLY,915.82
Manchester City Council,Adult Social Care,"Consumable items eg Toilet rolls, soap etc",16-Sep-22,1907877996,TRAVELODGE P CARD ONLY,872.97
Manchester City Council,Adult Social Care,"Consumable items eg Toilet rolls, soap etc",16-Sep-22,1907877971,TRAVELODGE P CARD ONLY,864.81
Manchester City Council,Adult Social Care,"Consumable items eg Toilet rolls, soap etc",16-Sep-22,1907878358,TRAVELODGE P CARD ONLY,845.43
Manchester City Council,Adult Social Care,"Consumable items eg Toilet rolls, soap etc",16-Sep-22,1907878214,TRAVELODGE P CARD ONLY,836.25
Manchester City Council,Adult Social Care,"Consumable items eg Toilet rolls, soap etc",16-Sep-22,1907878242,TRAVELODGE P CARD ONLY,828.09
Manchester City Council,Adult Social Care,"Consumable items eg Toilet rolls, soap etc",16-Sep-22,1907878198,TRAVELODGE P CARD ONLY,824.01
Manchester City Council,Adult Social Care,"Consumable items eg Toilet rolls, soap etc",16-Sep-22,1907878928,TRAVELODGE P CARD ONLY,808.78
Manchester City Council,Adult Social Care,"Consumable items eg Toilet rolls, soap etc",16-Sep-22,1907877688,TRAVELODGE P CARD ONLY,782.19
Manchester City Council,Adult Social Care,"Consumable items eg Toilet rolls, soap etc",16-Sep-22,1907877802,TRAVELODGE P CARD ONLY,777.13
Manchester City Council,Adult Social Care,"Consumable items eg Toilet rolls, soap etc",16-Sep-22,1907878058,TRAVELODGE P CARD ONLY,762.83
Manchester City Council,Adult Social Care,"Consumable items eg Toilet rolls, soap etc",16-Sep-22,1907877844,TRAVELODGE P CARD ONLY,755.67
Manchester City Council,Adult Social Care,"Consumable items eg Toilet rolls, soap etc",16-Sep-22,1907878233,TRAVELODGE P CARD ONLY,733.23
Manchester City Council,Adult Social Care,"Consumable items eg Toilet rolls, soap etc",16-Sep-22,1907878336,TRAVELODGE P CARD ONLY,715.89
Manchester City Council,Adult Social Care,"Consumable items eg Toilet rolls, soap etc",16-Sep-22,1907878934,TRAVELODGE P CARD ONLY,713.92
Manchester City Council,Adult Social Care,"Consumable items eg Toilet rolls, soap etc",16-Sep-22,1907877935,TRAVELODGE P CARD ONLY,703.70
Manchester City Council,Adult Social Care,"Consumable items eg Toilet rolls, soap etc",16-Sep-22,1907877775,TRAVELODGE P CARD ONLY,655.89
Manchester City Council,Adult Social Care,"Consumable items eg Toilet rolls, soap etc",16-Sep-22,1907877808,TRAVELODGE P CARD ONLY,640.48
Manchester City Council,Adult Social Care,"Consumable items eg Toilet rolls, soap etc",16-Sep-22,1907878093,TRAVELODGE P CARD ONLY,630.22
